Workbook

Sheet Produktionsanlæg
A1: PRODUKTIONSANLÆG | B1: Enhed | C1: Standardlevetid | D1: Mængde | E1: Enhedspris | F1: Samlet værdi | G1: Afskrivning | I1: Postnr. | J1: Samlede afskrivninger
A2: Boringer | I2: 0 | J2: =SUM(G:G,Distributionsanlæg!G:G,Fællesfunktionsanlæg!G:G) -> 0
A3: Boring (inkl. etablering, forerør, filter og prøvepumpning) | B3: dybdemeter | C3: =Genanskaffelsespriser!E5 -> 30 | D3: 0 | E3: =Genanskaffelsespriser!$D5 -> 2538 | F3: =D3*E3 -> 0 | G3: =F3/C3 -> 0
A4: Råvandsstationer
A5: Råvandsstation komplet montering og boringshus/tørbrønd | B5: stk. | C5: =Genanskaffelsespriser!E7 -> 30 | D5: 0 | E5: =Genanskaffelsespriser!$D7 -> 57810 | F5: =D5*E5 -> 0 | G5: =F5/C5 -> 0
A6: Instrumenter (flowmåler+tryk transducer+alarmer) | B6: stk. | C6: =Genanskaffelsespriser!E8 -> 10 | D6: 0 | E6: =Genanskaffelsespriser!$D8 -> 65241 | F6: =D6*E6 -> 0 | G6: 0
A7: Pumpe inkl. stigrør og forerørsforsejlinger mv. 1 | B7: m³/h | C7: =Genanskaffelsespriser!E9 -> 15 | D7: 0 | E7: =IF(COUNTIF(D7:D7,"<>0")<=1,IF((SUM(D7:D7))=0,0,(+HLOOKUP((SUM(D7:D7)),Priser!$E$54:$J$56,2)+((SUM(D7:D7))-HLOOKUP((SUM(D7:D7)),Priser!$E$54:$J$56,1))*HLOOKUP((SUM(D7:D7)),Priser!$E$54:$J$56,3))/(SUM(D7:D7)))*(1+Genanskaffelsespriser!$D$196),"Fejl") -> 0 | F7: =D7*E7 -> 0 | G7: 0
A8: Pumpe inkl. stigrør og forerørsforsejlinger mv. 2 | B8: m³/h | C8: =Genanskaffelsespriser!E9 -> 15 | D8: 0 | E8: =IF(COUNTIF(D8:D8,"<>0")<=1,IF((SUM(D8:D8))=0,0,(+HLOOKUP((SUM(D8:D8)),Priser!$E$54:$J$56,2)+((SUM(D8:D8))-HLOOKUP((SUM(D8:D8)),Priser!$E$54:$J$56,1))*HLOOKUP((SUM(D8:D8)),Priser!$E$54:$J$56,3))/(SUM(D8:D8)))*(1+Genanskaffelsespriser!$D$196),"Fejl") -> 0 | F8: =D8*E8 -> 0 | G8: 0
A9: Pumpe inkl. stigrør og forerørsforsejlinger mv. 3 | B9: m³/h | C9: =Genanskaffelsespriser!E9 -> 15 | D9: 0 | E9: =IF(COUNTIF(D9:D9,"<>0")<=1,IF((SUM(D9:D9))=0,0,(+HLOOKUP((SUM(D9:D9)),Priser!$E$54:$J$56,2)+((SUM(D9:D9))-HLOOKUP((SUM(D9:D9)),Priser!$E$54:$J$56,1))*HLOOKUP((SUM(D9:D9)),Priser!$E$54:$J$56,3))/(SUM(D9:D9)))*(1+Genanskaffelsespriser!$D$196),"Fejl") -> 0 | F9: 0 | G9: 0
A10: Pumpe inkl. stigrør og forerørsforsejlinger mv. 4 | B10: m³/h | C10: =Genanskaffelsespriser!E9 -> 15 | D10: 0 | E10: =IF(COUNTIF(D10:D10,"<>0")<=1,IF((SUM(D10:D10))=0,0,(+HLOOKUP((SUM(D10:D10)),Priser!$E$54:$J$56,2)+((SUM(D10:D10))-HLOOKUP((SUM(D10:D10)),Priser!$E$54:$J$56,1))*HLOOKUP((SUM(D10:D10)),Priser!$E$54:$J$56,3))/(SUM(D10:D10)))*(1+Genanskaffelsespriser!$D$196),"Fejl") -> 0 | F10: 0 | G10: 0
A11: Pumpe inkl. stigrør og forerørsforsejlinger mv. 5 | B11: m³/h | C11: =Genanskaffelsespriser!E9 -> 15 | D11: 0 | E11: =IF(COUNTIF(D11:D11,"<>0")<=1,IF((SUM(D11:D11))=0,0,(+HLOOKUP((SUM(D11:D11)),Priser!$E$54:$J$56,2)+((SUM(D11:D11))-HLOOKUP((SUM(D11:D11)),Priser!$E$54:$J$56,1))*HLOOKUP((SUM(D11:D11)),Priser!$E$54:$J$56,3))/(SUM(D11:D11)))*(1+Genanskaffelsespriser!$D$196),"Fejl") -> 0 | F11: 0 | G11: 0
A12: Pumpe inkl. stigrør og forerørsforsejlinger mv. 6 | B12: m³/h | C12: =Genanskaffelsespriser!E9 -> 15 | D12: 0 | E12: =IF(COUNTIF(D12:D12,"<>0")<=1,IF((SUM(D12:D12))=0,0,(+HLOOKUP((SUM(D12:D12)),Priser!$E$54:$J$56,2)+((SUM(D12:D12))-HLOOKUP((SUM(D12:D12)),Priser!$E$54:$J$56,1))*HLOOKUP((SUM(D12:D12)),Priser!$E$54:$J$56,3))/(SUM(D12:D12)))*(1+Genanskaffelsespriser!$D$196),"Fejl") -> 0 | F12: 0 | G12: 0
A13: Pumpe inkl. stigrør og forerørsforsejlinger mv. 7 | B13: m³/h | C13: =Genanskaffelsespriser!E9 -> 15 | D13: 0 | E13: =IF(COUNTIF(D13:D13,"<>0")<=1,IF((SUM(D13:D13))=0,0,(+HLOOKUP((SUM(D13:D13)),Priser!$E$54:$J$56,2)+((SUM(D13:D13))-HLOOKUP((SUM(D13:D13)),Priser!$E$54:$J$56,1))*HLOOKUP((SUM(D13:D13)),Priser!$E$54:$J$56,3))/(SUM(D13:D13)))*(1+Genanskaffelsespriser!$D$196),"Fejl") -> 0 | F13: 0 | G13: 0
A14: Pumpe inkl. stigrør og forerørsforsejlinger mv. 8 | B14: m³/h | C14: =Genanskaffelsespriser!E9 -> 15 | D14: 0 | E14: =IF(COUNTIF(D14:D14,"<>0")<=1,IF((SUM(D14:D14))=0,0,(+HLOOKUP((SUM(D14:D14)),Priser!$E$54:$J$56,2)+((SUM(D14:D14))-HLOOKUP((SUM(D14:D14)),Priser!$E$54:$J$56,1))*HLOOKUP((SUM(D14:D14)),Priser!$E$54:$J$56,3))/(SUM(D14:D14)))*(1+Genanskaffelsespriser!$D$196),"Fejl") -> 0 | F14: 0 | G14: 0
A15: Pumpe inkl. stigrør og forerørsforsejlinger mv. 9 | B15: m³/h | C15: =Genanskaffelsespriser!E9 -> 15 | D15: 0 | E15: =IF(COUNTIF(D15:D15,"<>0")<=1,IF((SUM(D15:D15))=0,0,(+HLOOKUP((SUM(D15:D15)),Priser!$E$54:$J$56,2)+((SUM(D15:D15))-HLOOKUP((SUM(D15:D15)),Priser!$E$54:$J$56,1))*HLOOKUP((SUM(D15:D15)),Priser!$E$54:$J$56,3))/(SUM(D15:D15)))*(1+Genanskaffelsespriser!$D$196),"Fejl") -> 0 | F15: 0 | G15: 0
A16: Pumpe inkl. stigrør og forerørsforsejlinger mv. 10 | B16: m³/h | C16: 15 | D16: 0 | E16: =IF(COUNTIF(D16:D16,"<>0")<=1,IF((SUM(D16:D16))=0,0,(+HLOOKUP((SUM(D16:D16)),Priser!$E$54:$J$56,2)+((SUM(D16:D16))-HLOOKUP((SUM(D16:D16)),Priser!$E$54:$J$56,1))*HLOOKUP((SUM(D16:D16)),Priser!$E$54:$J$56,3))/(SUM(D16:D16)))*(1+Genanskaffelsespriser!$D$196),"Fejl") -> 0 | F16: 0 | G16: 0
A17: Pumpe inkl. stigrør og forerørsforsejlinger mv. 11 | B17: m³/h | C17: 15 | D17: 0 | E17: =IF(COUNTIF(D17:D17,"<>0")<=1,IF((SUM(D17:D17))=0,0,(+HLOOKUP((SUM(D17:D17)),Priser!$E$54:$J$56,2)+((SUM(D17:D17))-HLOOKUP((SUM(D17:D17)),Priser!$E$54:$J$56,1))*HLOOKUP((SUM(D17:D17)),Priser!$E$54:$J$56,3))/(SUM(D17:D17)))*(1+Genanskaffelsespriser!$D$196),"Fejl") -> 0 | F17: 0 | G17: 0
A18: Pumpe inkl. stigrør og forerørsforsejlinger mv. 12 | B18: m³/h | C18: 15 | D18: 0 | E18: =IF(COUNTIF(D18:D18,"<>0")<=1,IF((SUM(D18:D18))=0,0,(+HLOOKUP((SUM(D18:D18)),Priser!$E$54:$J$56,2)+((SUM(D18:D18))-HLOOKUP((SUM(D18:D18)),Priser!$E$54:$J$56,1))*HLOOKUP((SUM(D18:D18)),Priser!$E$54:$J$56,3))/(SUM(D18:D18)))*(1+Genanskaffelsespriser!$D$196),"Fejl") -> 0 | F18: 0 | G18: 0
A19: Pumpe inkl. stigrør og forerørsforsejlinger mv. 13 | B19: m³/h | C19: 15 | D19: 0 | E19: =IF(COUNTIF(D19:D19,"<>0")<=1,IF((SUM(D19:D19))=0,0,(+HLOOKUP((SUM(D19:D19)),Priser!$E$54:$J$56,2)+((SUM(D19:D19))-HLOOKUP((SUM(D19:D19)),Priser!$E$54:$J$56,1))*HLOOKUP((SUM(D19:D19)),Priser!$E$54:$J$56,3))/(SUM(D19:D19)))*(1+Genanskaffelsespriser!$D$196),"Fejl") -> 0 | F19: 0 | G19: 0
A20: Pumpe inkl. stigrør og forerørsforsejlinger mv. 14 | B20: m³/h | C20: 15 | D20: 0 | E20: =IF(COUNTIF(D20:D20,"<>0")<=1,IF((SUM(D20:D20))=0,0,(+HLOOKUP((SUM(D20:D20)),Priser!$E$54:$J$56,2)+((SUM(D20:D20))-HLOOKUP((SUM(D20:D20)),Priser!$E$54:$J$56,1))*HLOOKUP((SUM(D20:D20)),Priser!$E$54:$J$56,3))/(SUM(D20:D20)))*(1+Genanskaffelsespriser!$D$196),"Fejl") -> 0 | F20: 0 | G20: 0
A21: Pumpe inkl. stigrør og forerørsforsejlinger mv. 15 | B21: m³/h | C21: 15 | D21: 0 | E21: =IF(COUNTIF(D21:D21,"<>0")<=1,IF((SUM(D21:D21))=0,0,(+HLOOKUP((SUM(D21:D21)),Priser!$E$54:$J$56,2)+((SUM(D21:D21))-HLOOKUP((SUM(D21:D21)),Priser!$E$54:$J$56,1))*HLOOKUP((SUM(D21:D21)),Priser!$E$54:$J$56,3))/(SUM(D21:D21)))*(1+Genanskaffelsespriser!$D$196),"Fejl") -> 0 | F21: 0 | G21: 0
A22: Pumpe inkl. stigrør og forerørsforsejlinger mv. 16 | B22: m³/h | C22: 15 | D22: 0 | E22: =IF(COUNTIF(D22:D22,"<>0")<=1,IF((SUM(D22:D22))=0,0,(+HLOOKUP((SUM(D22:D22)),Priser!$E$54:$J$56,2)+((SUM(D22:D22))-HLOOKUP((SUM(D22:D22)),Priser!$E$54:$J$56,1))*HLOOKUP((SUM(D22:D22)),Priser!$E$54:$J$56,3))/(SUM(D22:D22)))*(1+Genanskaffelsespriser!$D$196),"Fejl") -> 0 | F22: 0 | G22: 0
A23: Pumpe inkl. stigrør og forerørsforsejlinger mv. 17 | B23: m³/h | C23: 15 | D23: 0 | E23: =IF(COUNTIF(D23:D23,"<>0")<=1,IF((SUM(D23:D23))=0,0,(+HLOOKUP((SUM(D23:D23)),Priser!$E$54:$J$56,2)+((SUM(D23:D23))-HLOOKUP((SUM(D23:D23)),Priser!$E$54:$J$56,1))*HLOOKUP((SUM(D23:D23)),Priser!$E$54:$J$56,3))/(SUM(D23:D23)))*(1+Genanskaffelsespriser!$D$196),"Fejl") -> 0 | F23: 0 | G23: 0
A24: Pumpe inkl. stigrør og forerørsforsejlinger mv. 18 | B24: m³/h | C24: 15 | D24: 0 | E24: =IF(COUNTIF(D24:D24,"<>0")<=1,IF((SUM(D24:D24))=0,0,(+HLOOKUP((SUM(D24:D24)),Priser!$E$54:$J$56,2)+((SUM(D24:D24))-HLOOKUP((SUM(D24:D24)),Priser!$E$54:$J$56,1))*HLOOKUP((SUM(D24:D24)),Priser!$E$54:$J$56,3))/(SUM(D24:D24)))*(1+Genanskaffelsespriser!$D$196),"Fejl") -> 0 | F24: 0 | G24: 0
A25: Pumpe inkl. stigrør og forerørsforsejlinger mv. 19 | B25: m³/h | C25: 15 | D25: 0 | E25: =IF(COUNTIF(D25:D25,"<>0")<=1,IF((SUM(D25:D25))=0,0,(+HLOOKUP((SUM(D25:D25)),Priser!$E$54:$J$56,2)+((SUM(D25:D25))-HLOOKUP((SUM(D25:D25)),Priser!$E$54:$J$56,1))*HLOOKUP((SUM(D25:D25)),Priser!$E$54:$J$56,3))/(SUM(D25:D25)))*(1+Genanskaffelsespriser!$D$196),"Fejl") -> 0 | F25: 0 | G25: 0
A26: Pumpe inkl. stigrør og forerørsforsejlinger mv. 20 | B26: m³/h | C26: 15 | D26: 0 | E26: =IF(COUNTIF(D26:D26,"<>0")<=1,IF((SUM(D26:D26))=0,0,(+HLOOKUP((SUM(D26:D26)),Priser!$E$54:$J$56,2)+((SUM(D26:D26))-HLOOKUP((SUM(D26:D26)),Priser!$E$54:$J$56,1))*HLOOKUP((SUM(D26:D26)),Priser!$E$54:$J$56,3))/(SUM(D26:D26)))*(1+Genanskaffelsespriser!$D$196),"Fejl") -> 0 | F26: 0 | G26: 0
A27: Pumpe inkl. stigrør og forerørsforsejlinger mv. 21 | B27: m³/h | C27: 15 | D27: 0 | E27: =IF(COUNTIF(D27:D27,"<>0")<=1,IF((SUM(D27:D27))=0,0,(+HLOOKUP((SUM(D27:D27)),Priser!$E$54:$J$56,2)+((SUM(D27:D27))-HLOOKUP((SUM(D27:D27)),Priser!$E$54:$J$56,1))*HLOOKUP((SUM(D27:D27)),Priser!$E$54:$J$56,3))/(SUM(D27:D27)))*(1+Genanskaffelsespriser!$D$196),"Fejl") -> 0 | F27: 0 | G27: 0
A28: Pumpe inkl. stigrør og forerørsforsejlinger mv. 22 | B28: m³/h | C28: 15 | D28: 0 | E28: =IF(COUNTIF(D28:D28,"<>0")<=1,IF((SUM(D28:D28))=0,0,(+HLOOKUP((SUM(D28:D28)),Priser!$E$54:$J$56,2)+((SUM(D28:D28))-HLOOKUP((SUM(D28:D28)),Priser!$E$54:$J$56,1))*HLOOKUP((SUM(D28:D28)),Priser!$E$54:$J$56,3))/(SUM(D28:D28)))*(1+Genanskaffelsespriser!$D$196),"Fejl") -> 0 | F28: 0 | G28: 0
A29: Pumpe inkl. stigrør og forerørsforsejlinger mv. 23 | B29: m³/h | C29: 15 | D29: 0 | E29: =IF(COUNTIF(D29:D29,"<>0")<=1,IF((SUM(D29:D29))=0,0,(+HLOOKUP((SUM(D29:D29)),Priser!$E$54:$J$56,2)+((SUM(D29:D29))-HLOOKUP((SUM(D29:D29)),Priser!$E$54:$J$56,1))*HLOOKUP((SUM(D29:D29)),Priser!$E$54:$J$56,3))/(SUM(D29:D29)))*(1+Genanskaffelsespriser!$D$196),"Fejl") -> 0 | F29: 0 | G29: 0
A30: Pumpe inkl. stigrør og forerørsforsejlinger mv. 24 | B30: m³/h | C30: 15 | D30: 0 | E30: =IF(COUNTIF(D30:D30,"<>0")<=1,IF((SUM(D30:D30))=0,0,(+HLOOKUP((SUM(D30:D30)),Priser!$E$54:$J$56,2)+((SUM(D30:D30))-HLOOKUP((SUM(D30:D30)),Priser!$E$54:$J$56,1))*HLOOKUP((SUM(D30:D30)),Priser!$E$54:$J$56,3))/(SUM(D30:D30)))*(1+Genanskaffelsespriser!$D$196),"Fejl") -> 0 | F30: 0 | G30: 0
A31: Pumpe inkl. stigrør og forerørsforsejlinger mv. 25 | B31: m³/h | C31: 15 | D31: 0 | E31: =IF(COUNTIF(D31:D31,"<>0")<=1,IF((SUM(D31:D31))=0,0,(+HLOOKUP((SUM(D31:D31)),Priser!$E$54:$J$56,2)+((SUM(D31:D31))-HLOOKUP((SUM(D31:D31)),Priser!$E$54:$J$56,1))*HLOOKUP((SUM(D31:D31)),Priser!$E$54:$J$56,3))/(SUM(D31:D31)))*(1+Genanskaffelsespriser!$D$196),"Fejl") -> 0 | F31: 0 | G31: 0
A32: Pumpe inkl. stigrør og forerørsforsejlinger mv. 26 | B32: m³/h | C32: 15 | D32: 0 | E32: =IF(COUNTIF(D32:D32,"<>0")<=1,IF((SUM(D32:D32))=0,0,(+HLOOKUP((SUM(D32:D32)),Priser!$E$54:$J$56,2)+((SUM(D32:D32))-HLOOKUP((SUM(D32:D32)),Priser!$E$54:$J$56,1))*HLOOKUP((SUM(D32:D32)),Priser!$E$54:$J$56,3))/(SUM(D32:D32)))*(1+Genanskaffelsespriser!$D$196),"Fejl") -> 0 | F32: 0 | G32: 0
A33: Pumpe inkl. stigrør og forerørsforsejlinger mv. 27 | B33: m³/h | C33: 15 | D33: 0 | E33: =IF(COUNTIF(D33:D33,"<>0")<=1,IF((SUM(D33:D33))=0,0,(+HLOOKUP((SUM(D33:D33)),Priser!$E$54:$J$56,2)+((SUM(D33:D33))-HLOOKUP((SUM(D33:D33)),Priser!$E$54:$J$56,1))*HLOOKUP((SUM(D33:D33)),Priser!$E$54:$J$56,3))/(SUM(D33:D33)))*(1+Genanskaffelsespriser!$D$196),"Fejl") -> 0 | F33: 0 | G33: 0
A34: Pumpe inkl. stigrør og forerørsforsejlinger mv. 28 | B34: m³/h | C34: 15 | D34: 0 | E34: =IF(COUNTIF(D34:D34,"<>0")<=1,IF((SUM(D34:D34))=0,0,(+HLOOKUP((SUM(D34:D34)),Priser!$E$54:$J$56,2)+((SUM(D34:D34))-HLOOKUP((SUM(D34:D34)),Priser!$E$54:$J$56,1))*HLOOKUP((SUM(D34:D34)),Priser!$E$54:$J$56,3))/(SUM(D34:D34)))*(1+Genanskaffelsespriser!$D$196),"Fejl") -> 0 | F34: 0 | G34: 0
A35: Pumpe inkl. stigrør og forerørsforsejlinger mv. 29 | B35: m³/h | C35: 15 | D35: 0 | E35: =IF(COUNTIF(D35:D35,"<>0")<=1,IF((SUM(D35:D35))=0,0,(+HLOOKUP((SUM(D35:D35)),Priser!$E$54:$J$56,2)+((SUM(D35:D35))-HLOOKUP((SUM(D35:D35)),Priser!$E$54:$J$56,1))*HLOOKUP((SUM(D35:D35)),Priser!$E$54:$J$56,3))/(SUM(D35:D35)))*(1+Genanskaffelsespriser!$D$196),"Fejl") -> 0 | F35: 0 | G35: 0
A36: Pumpe inkl. stigrør og forerørsforsejlinger mv. 30 | B36: m³/h | C36: 15 | D36: 0 | E36: =IF(COUNTIF(D36:D36,"<>0")<=1,IF((SUM(D36:D36))=0,0,(+HLOOKUP((SUM(D36:D36)),Priser!$E$54:$J$56,2)+((SUM(D36:D36))-HLOOKUP((SUM(D36:D36)),Priser!$E$54:$J$56,1))*HLOOKUP((SUM(D36:D36)),Priser!$E$54:$J$56,3))/(SUM(D36:D36)))*(1+Genanskaffelsespriser!$D$196),"Fejl") -> 0 | F36: 0 | G36: 0
A37: Pumpe inkl. stigrør og forerørsforsejlinger mv. 31 | B37: m³/h | C37: 15 | D37: 0 | E37: =IF(COUNTIF(D37:D37,"<>0")<=1,IF((SUM(D37:D37))=0,0,(+HLOOKUP((SUM(D37:D37)),Priser!$E$54:$J$56,2)+((SUM(D37:D37))-HLOOKUP((SUM(D37:D37)),Priser!$E$54:$J$56,1))*HLOOKUP((SUM(D37:D37)),Priser!$E$54:$J$56,3))/(SUM(D37:D37)))*(1+Genanskaffelsespriser!$D$196),"Fejl") -> 0 | F37: 0 | G37: 0
A38: Pumpe inkl. stigrør og forerørsforsejlinger mv. 32 | B38: m³/h | C38: 15 | D38: 0 | E38: =IF(COUNTIF(D38:D38,"<>0")<=1,IF((SUM(D38:D38))=0,0,(+HLOOKUP((SUM(D38:D38)),Priser!$E$54:$J$56,2)+((SUM(D38:D38))-HLOOKUP((SUM(D38:D38)),Priser!$E$54:$J$56,1))*HLOOKUP((SUM(D38:D38)),Priser!$E$54:$J$56,3))/(SUM(D38:D38)))*(1+Genanskaffelsespriser!$D$196),"Fejl") -> 0 | F38: 0 | G38: 0
A39: Pumpe inkl. stigrør og forerørsforsejlinger mv. 33 | B39: m³/h | C39: 15 | D39: 0 | E39: =IF(COUNTIF(D39:D39,"<>0")<=1,IF((SUM(D39:D39))=0,0,(+HLOOKUP((SUM(D39:D39)),Priser!$E$54:$J$56,2)+((SUM(D39:D39))-HLOOKUP((SUM(D39:D39)),Priser!$E$54:$J$56,1))*HLOOKUP((SUM(D39:D39)),Priser!$E$54:$J$56,3))/(SUM(D39:D39)))*(1+Genanskaffelsespriser!$D$196),"Fejl") -> 0 | F39: 0 | G39: 0
A40: Pumpe inkl. stigrør og forerørsforsejlinger mv. 34 | B40: m³/h | C40: 15 | D40: 0 | E40: =IF(COUNTIF(D40:D40,"<>0")<=1,IF((SUM(D40:D40))=0,0,(+HLOOKUP((SUM(D40:D40)),Priser!$E$54:$J$56,2)+((SUM(D40:D40))-HLOOKUP((SUM(D40:D40)),Priser!$E$54:$J$56,1))*HLOOKUP((SUM(D40:D40)),Priser!$E$54:$J$56,3))/(SUM(D40:D40)))*(1+Genanskaffelsespriser!$D$196),"Fejl") -> 0 | F40: 0 | G40: 0
A41: Pumpe inkl. stigrør og forerørsforsejlinger mv. 35 | B41: m³/h | C41: 15 | D41: 0 | E41: =IF(COUNTIF(D41:D41,"<>0")<=1,IF((SUM(D41:D41))=0,0,(+HLOOKUP((SUM(D41:D41)),Priser!$E$54:$J$56,2)+((SUM(D41:D41))-HLOOKUP((SUM(D41:D41)),Priser!$E$54:$J$56,1))*HLOOKUP((SUM(D41:D41)),Priser!$E$54:$J$56,3))/(SUM(D41:D41)))*(1+Genanskaffelsespriser!$D$196),"Fejl") -> 0 | F41: 0 | G41: 0
A42: Pumpe inkl. stigrør og forerørsforsejlinger mv. 36 | B42: m³/h | C42: 15 | D42: 0 | E42: =IF(COUNTIF(D42:D42,"<>0")<=1,IF((SUM(D42:D42))=0,0,(+HLOOKUP((SUM(D42:D42)),Priser!$E$54:$J$56,2)+((SUM(D42:D42))-HLOOKUP((SUM(D42:D42)),Priser!$E$54:$J$56,1))*HLOOKUP((SUM(D42:D42)),Priser!$E$54:$J$56,3))/(SUM(D42:D42)))*(1+Genanskaffelsespriser!$D$196),"Fejl") -> 0 | F42: 0 | G42: 0
A43: Pumpe inkl. stigrør og forerørsforsejlinger mv. 37 | B43: m³/h | C43: 15 | D43: 0 | E43: =IF(COUNTIF(D43:D43,"<>0")<=1,IF((SUM(D43:D43))=0,0,(+HLOOKUP((SUM(D43:D43)),Priser!$E$54:$J$56,2)+((SUM(D43:D43))-HLOOKUP((SUM(D43:D43)),Priser!$E$54:$J$56,1))*HLOOKUP((SUM(D43:D43)),Priser!$E$54:$J$56,3))/(SUM(D43:D43)))*(1+Genanskaffelsespriser!$D$196),"Fejl") -> 0 | F43: 0 | G43: 0
A44: Pumpe inkl. stigrør og forerørsforsejlinger mv. 38 | B44: m³/h | C44: 15 | D44: 0 | E44: =IF(COUNTIF(D44:D44,"<>0")<=1,IF((SUM(D44:D44))=0,0,(+HLOOKUP((SUM(D44:D44)),Priser!$E$54:$J$56,2)+((SUM(D44:D44))-HLOOKUP((SUM(D44:D44)),Priser!$E$54:$J$56,1))*HLOOKUP((SUM(D44:D44)),Priser!$E$54:$J$56,3))/(SUM(D44:D44)))*(1+Genanskaffelsespriser!$D$196),"Fejl") -> 0 | F44: 0 | G44: 0
A45: Pumpe inkl. stigrør og forerørsforsejlinger mv. 39 | B45: m³/h | C45: 15 | D45: 0 | E45: =IF(COUNTIF(D45:D45,"<>0")<=1,IF((SUM(D45:D45))=0,0,(+HLOOKUP((SUM(D45:D45)),Priser!$E$54:$J$56,2)+((SUM(D45:D45))-HLOOKUP((SUM(D45:D45)),Priser!$E$54:$J$56,1))*HLOOKUP((SUM(D45:D45)),Priser!$E$54:$J$56,3))/(SUM(D45:D45)))*(1+Genanskaffelsespriser!$D$196),"Fejl") -> 0 | F45: 0 | G45: 0
A46: Pumpe inkl. stigrør og forerørsforsejlinger mv. 40 | B46: m³/h | C46: 15 | D46: 0 | E46: =IF(COUNTIF(D46:D46,"<>0")<=1,IF((SUM(D46:D46))=0,0,(+HLOOKUP((SUM(D46:D46)),Priser!$E$54:$J$56,2)+((SUM(D46:D46))-HLOOKUP((SUM(D46:D46)),Priser!$E$54:$J$56,1))*HLOOKUP((SUM(D46:D46)),Priser!$E$54:$J$56,3))/(SUM(D46:D46)))*(1+Genanskaffelsespriser!$D$196),"Fejl") -> 0 | F46: 0 | G46: 0
A47: Pumpe inkl. stigrør og forerørsforsejlinger mv. 41 | B47: m³/h | C47: 15 | D47: 0 | E47: =IF(COUNTIF(D47:D47,"<>0")<=1,IF((SUM(D47:D47))=0,0,(+HLOOKUP((SUM(D47:D47)),Priser!$E$54:$J$56,2)+((SUM(D47:D47))-HLOOKUP((SUM(D47:D47)),Priser!$E$54:$J$56,1))*HLOOKUP((SUM(D47:D47)),Priser!$E$54:$J$56,3))/(SUM(D47:D47)))*(1+Genanskaffelsespriser!$D$196),"Fejl") -> 0 | F47: 0 | G47: 0
A48: Pumpe inkl. stigrør og forerørsforsejlinger mv. 42 | B48: m³/h | C48: 15 | D48: 0 | E48: =IF(COUNTIF(D48:D48,"<>0")<=1,IF((SUM(D48:D48))=0,0,(+HLOOKUP((SUM(D48:D48)),Priser!$E$54:$J$56,2)+((SUM(D48:D48))-HLOOKUP((SUM(D48:D48)),Priser!$E$54:$J$56,1))*HLOOKUP((SUM(D48:D48)),Priser!$E$54:$J$56,3))/(SUM(D48:D48)))*(1+Genanskaffelsespriser!$D$196),"Fejl") -> 0 | F48: 0 | G48: 0
A49: Pumpe inkl. stigrør og forerørsforsejlinger mv. 43 | B49: m³/h | C49: 15 | D49: 0 | E49: =IF(COUNTIF(D49:D49,"<>0")<=1,IF((SUM(D49:D49))=0,0,(+HLOOKUP((SUM(D49:D49)),Priser!$E$54:$J$56,2)+((SUM(D49:D49))-HLOOKUP((SUM(D49:D49)),Priser!$E$54:$J$56,1))*HLOOKUP((SUM(D49:D49)),Priser!$E$54:$J$56,3))/(SUM(D49:D49)))*(1+Genanskaffelsespriser!$D$196),"Fejl") -> 0 | F49: 0 | G49: 0
A50: Pumpe inkl. stigrør og forerørsforsejlinger mv. 44 | B50: m³/h | C50: 15 | D50: 0 | E50: =IF(COUNTIF(D50:D50,"<>0")<=1,IF((SUM(D50:D50))=0,0,(+HLOOKUP((SUM(D50:D50)),Priser!$E$54:$J$56,2)+((SUM(D50:D50))-HLOOKUP((SUM(D50:D50)),Priser!$E$54:$J$56,1))*HLOOKUP((SUM(D50:D50)),Priser!$E$54:$J$56,3))/(SUM(D50:D50)))*(1+Genanskaffelsespriser!$D$196),"Fejl") -> 0 | F50: 0 | G50: 0
A51: Pumpe inkl. stigrør og forerørsforsejlinger mv. 45 | B51: m³/h | C51: 15 | D51: 0 | E51: =IF(COUNTIF(D51:D51,"<>0")<=1,IF((SUM(D51:D51))=0,0,(+HLOOKUP((SUM(D51:D51)),Priser!$E$54:$J$56,2)+((SUM(D51:D51))-HLOOKUP((SUM(D51:D51)),Priser!$E$54:$J$56,1))*HLOOKUP((SUM(D51:D51)),Priser!$E$54:$J$56,3))/(SUM(D51:D51)))*(1+Genanskaffelsespriser!$D$196),"Fejl") -> 0 | F51: 0 | G51: 0
A52: Pumpe inkl. stigrør og forerørsforsejlinger mv. 46 | B52: m³/h | C52: 15 | D52: 0 | E52: =IF(COUNTIF(D52:D52,"<>0")<=1,IF((SUM(D52:D52))=0,0,(+HLOOKUP((SUM(D52:D52)),Priser!$E$54:$J$56,2)+((SUM(D52:D52))-HLOOKUP((SUM(D52:D52)),Priser!$E$54:$J$56,1))*HLOOKUP((SUM(D52:D52)),Priser!$E$54:$J$56,3))/(SUM(D52:D52)))*(1+Genanskaffelsespriser!$D$196),"Fejl") -> 0 | F52: 0 | G52: 0
A53: Pumpe inkl. stigrør og forerørsforsejlinger mv. 47 | B53: m³/h | C53: 15 | D53: 0 | E53: =IF(COUNTIF(D53:D53,"<>0")<=1,IF((SUM(D53:D53))=0,0,(+HLOOKUP((SUM(D53:D53)),Priser!$E$54:$J$56,2)+((SUM(D53:D53))-HLOOKUP((SUM(D53:D53)),Priser!$E$54:$J$56,1))*HLOOKUP((SUM(D53:D53)),Priser!$E$54:$J$56,3))/(SUM(D53:D53)))*(1+Genanskaffelsespriser!$D$196),"Fejl") -> 0 | F53: 0 | G53: 0
A54: Pumpe inkl. stigrør og forerørsforsejlinger mv. 48 | B54: m³/h | C54: 15 | D54: 0 | E54: =IF(COUNTIF(D54:D54,"<>0")<=1,IF((SUM(D54:D54))=0,0,(+HLOOKUP((SUM(D54:D54)),Priser!$E$54:$J$56,2)+((SUM(D54:D54))-HLOOKUP((SUM(D54:D54)),Priser!$E$54:$J$56,1))*HLOOKUP((SUM(D54:D54)),Priser!$E$54:$J$56,3))/(SUM(D54:D54)))*(1+Genanskaffelsespriser!$D$196),"Fejl") -> 0 | F54: 0 | G54: 0
A55: Pumpe inkl. stigrør og forerørsforsejlinger mv. 49 | B55: m³/h | C55: 15 | D55: 0 | E55: =IF(COUNTIF(D55:D55,"<>0")<=1,IF((SUM(D55:D55))=0,0,(+HLOOKUP((SUM(D55:D55)),Priser!$E$54:$J$56,2)+((SUM(D55:D55))-HLOOKUP((SUM(D55:D55)),Priser!$E$54:$J$56,1))*HLOOKUP((SUM(D55:D55)),Priser!$E$54:$J$56,3))/(SUM(D55:D55)))*(1+Genanskaffelsespriser!$D$196),"Fejl") -> 0 | F55: 0 | G55: 0
A56: Pumpe inkl. stigrør og forerørsforsejlinger mv. 50 | B56: m³/h | C56: 15 | D56: 0 | E56: =IF(COUNTIF(D56:D56,"<>0")<=1,IF((SUM(D56:D56))=0,0,(+HLOOKUP((SUM(D56:D56)),Priser!$E$54:$J$56,2)+((SUM(D56:D56))-HLOOKUP((SUM(D56:D56)),Priser!$E$54:$J$56,1))*HLOOKUP((SUM(D56:D56)),Priser!$E$54:$J$56,3))/(SUM(D56:D56)))*(1+Genanskaffelsespriser!$D$196),"Fejl") -> 0 | F56: 0 | G56: 0
A57: Pumpe inkl. stigrør og forerørsforsejlinger mv. 51 | B57: m³/h | C57: 15 | D57: 0 | E57: =IF(COUNTIF(D57:D57,"<>0")<=1,IF((SUM(D57:D57))=0,0,(+HLOOKUP((SUM(D57:D57)),Priser!$E$54:$J$56,2)+((SUM(D57:D57))-HLOOKUP((SUM(D57:D57)),Priser!$E$54:$J$56,1))*HLOOKUP((SUM(D57:D57)),Priser!$E$54:$J$56,3))/(SUM(D57:D57)))*(1+Genanskaffelsespriser!$D$196),"Fejl") -> 0 | F57: 0 | G57: 0
A58: Pumpe inkl. stigrør og forerørsforsejlinger mv. 52 | B58: m³/h | C58: 15 | D58: 0 | E58: =IF(COUNTIF(D58:D58,"<>0")<=1,IF((SUM(D58:D58))=0,0,(+HLOOKUP((SUM(D58:D58)),Priser!$E$54:$J$56,2)+((SUM(D58:D58))-HLOOKUP((SUM(D58:D58)),Priser!$E$54:$J$56,1))*HLOOKUP((SUM(D58:D58)),Priser!$E$54:$J$56,3))/(SUM(D58:D58)))*(1+Genanskaffelsespriser!$D$196),"Fejl") -> 0 | F58: 0 | G58: 0
A59: Pumpe inkl. stigrør og forerørsforsejlinger mv. 53 | B59: m³/h | C59: 15 | D59: 0 | E59: =IF(COUNTIF(D59:D59,"<>0")<=1,IF((SUM(D59:D59))=0,0,(+HLOOKUP((SUM(D59:D59)),Priser!$E$54:$J$56,2)+((SUM(D59:D59))-HLOOKUP((SUM(D59:D59)),Priser!$E$54:$J$56,1))*HLOOKUP((SUM(D59:D59)),Priser!$E$54:$J$56,3))/(SUM(D59:D59)))*(1+Genanskaffelsespriser!$D$196),"Fejl") -> 0 | F59: 0 | G59: 0
A60: Pumpe inkl. stigrør og forerørsforsejlinger mv. 54 | B60: m³/h | C60: 15 | D60: 0 | E60: =IF(COUNTIF(D60:D60,"<>0")<=1,IF((SUM(D60:D60))=0,0,(+HLOOKUP((SUM(D60:D60)),Priser!$E$54:$J$56,2)+((SUM(D60:D60))-HLOOKUP((SUM(D60:D60)),Priser!$E$54:$J$56,1))*HLOOKUP((SUM(D60:D60)),Priser!$E$54:$J$56,3))/(SUM(D60:D60)))*(1+Genanskaffelsespriser!$D$196),"Fejl") -> 0 | F60: 0 | G60: 0
A61: Pumpe inkl. stigrør og forerørsforsejlinger mv. 55 | B61: m³/h | C61: 15 | D61: 0 | E61: =IF(COUNTIF(D61:D61,"<>0")<=1,IF((SUM(D61:D61))=0,0,(+HLOOKUP((SUM(D61:D61)),Priser!$E$54:$J$56,2)+((SUM(D61:D61))-HLOOKUP((SUM(D61:D61)),Priser!$E$54:$J$56,1))*HLOOKUP((SUM(D61:D61)),Priser!$E$54:$J$56,3))/(SUM(D61:D61)))*(1+Genanskaffelsespriser!$D$196),"Fejl") -> 0 | F61: 0 | G61: 0
A62: Pumpe inkl. stigrør og forerørsforsejlinger mv. 56 | B62: m³/h | C62: 15 | D62: 0 | E62: =IF(COUNTIF(D62:D62,"<>0")<=1,IF((SUM(D62:D62))=0,0,(+HLOOKUP((SUM(D62:D62)),Priser!$E$54:$J$56,2)+((SUM(D62:D62))-HLOOKUP((SUM(D62:D62)),Priser!$E$54:$J$56,1))*HLOOKUP((SUM(D62:D62)),Priser!$E$54:$J$56,3))/(SUM(D62:D62)))*(1+Genanskaffelsespriser!$D$196),"Fejl") -> 0 | F62: 0 | G62: 0
A63: Pumpe inkl. stigrør og forerørsforsejlinger mv. 57 | B63: m³/h | C63: 15 | D63: 0 | E63: =IF(COUNTIF(D63:D63,"<>0")<=1,IF((SUM(D63:D63))=0,0,(+HLOOKUP((SUM(D63:D63)),Priser!$E$54:$J$56,2)+((SUM(D63:D63))-HLOOKUP((SUM(D63:D63)),Priser!$E$54:$J$56,1))*HLOOKUP((SUM(D63:D63)),Priser!$E$54:$J$56,3))/(SUM(D63:D63)))*(1+Genanskaffelsespriser!$D$196),"Fejl") -> 0 | F63: 0 | G63: 0
A64: Pumpe inkl. stigrør og forerørsforsejlinger mv. 58 | B64: m³/h | C64: 15 | D64: 0 | E64: =IF(COUNTIF(D64:D64,"<>0")<=1,IF((SUM(D64:D64))=0,0,(+HLOOKUP((SUM(D64:D64)),Priser!$E$54:$J$56,2)+((SUM(D64:D64))-HLOOKUP((SUM(D64:D64)),Priser!$E$54:$J$56,1))*HLOOKUP((SUM(D64:D64)),Priser!$E$54:$J$56,3))/(SUM(D64:D64)))*(1+Genanskaffelsespriser!$D$196),"Fejl") -> 0 | F64: 0 | G64: 0
A65: Pumpe inkl. stigrør og forerørsforsejlinger mv. 59 | B65: m³/h | C65: 15 | D65: 0 | E65: =IF(COUNTIF(D65:D65,"<>0")<=1,IF((SUM(D65:D65))=0,0,(+HLOOKUP((SUM(D65:D65)),Priser!$E$54:$J$56,2)+((SUM(D65:D65))-HLOOKUP((SUM(D65:D65)),Priser!$E$54:$J$56,1))*HLOOKUP((SUM(D65:D65)),Priser!$E$54:$J$56,3))/(SUM(D65:D65)))*(1+Genanskaffelsespriser!$D$196),"Fejl") -> 0 | F65: 0 | G65: 0
A66: Pumpe inkl. stigrør og forerørsforsejlinger mv. 60 | B66: m³/h | C66: 15 | D66: 0 | E66: =IF(COUNTIF(D66:D66,"<>0")<=1,IF((SUM(D66:D66))=0,0,(+HLOOKUP((SUM(D66:D66)),Priser!$E$54:$J$56,2)+((SUM(D66:D66))-HLOOKUP((SUM(D66:D66)),Priser!$E$54:$J$56,1))*HLOOKUP((SUM(D66:D66)),Priser!$E$54:$J$56,3))/(SUM(D66:D66)))*(1+Genanskaffelsespriser!$D$196),"Fejl") -> 0 | F66: =D66*E66 -> 0 | G66: =F66/C66 -> 0
A67: Erstatninger (OBS ingen øst-tillæg eller øvrige tillæg) | B67: stk. | C67: =Genanskaffelsespriser!E10 -> 30 | D67: 0 | E67: =Genanskaffelsespriser!$D10 -> 44911 | F67: =D67*E67 -> 0 | G67: 0
A68: Hegn | B68: stk. | C68: =Genanskaffelsespriser!E11 -> 15 | D68: 0 | E68: =Genanskaffelsespriser!$D11 -> 85428 | F68: =D68*E68 -> 0 | G68: 0
A69: Elanlæg | B69: boring | C69: =Genanskaffelsespriser!E12 -> 20 | D69: 0 | E69: =Genanskaffelsespriser!$D12 -> 108657 | F69: =D69*E69 -> 0 | G69: 0
A70: SRO anlæg | B70: boring | C70: =Genanskaffelsespriser!E13 -> 10 | D70: 0 | E70: =Genanskaffelsespriser!$D13 -> 29256 | F70: =D70*E70 -> 0 | G70: 0
A71: Råvandsledninger - Land
A72: Ø 50mm < Ledningsnet ≤ Ø110 mm | B72: meter | C72: =Genanskaffelsespriser!E15 -> 75 | D72: 0 | E72: =Genanskaffelsespriser!$D15 -> 354 | F72: =D72*E72 -> 0 | G72: 0
A73: Ø110 mm < Ledningsnet ≤ Ø 250 mm | B73: meter | C73: =Genanskaffelsespriser!E16 -> 75 | D73: 0 | E73: =Genanskaffelsespriser!$D16 -> 1018 | F73: =D73*E73 -> 0 | G73: 0
A74: Ø 250 mm < Ledningsnet ≤ Ø 500mm | B74: meter | C74: =Genanskaffelsespriser!E17 -> 75 | D74: 0 | E74: =Genanskaffelsespriser!$D17 -> 2335 | F74: =D74*E74 -> 0 | G74: 0
A75: Ledningsnet > Ø 500 mm | B75: meter | C75: =Genanskaffelsespriser!E18 -> 75 | D75: 0 | E75: =Genanskaffelsespriser!$D18 -> 5029 | F75: =D75*E75 -> 0 | G75: 0
A76: Råvandsledninger - By
A77: Ø 50mm < Ledningsnet ≤ Ø110 mm | B77: meter | C77: =Genanskaffelsespriser!E20 -> 75 | D77: 0 | E77: =Genanskaffelsespriser!$D20 -> 958 | F77: =D77*E77 -> 0 | G77: 0
A78: Ø110 mm < Ledningsnet ≤ Ø 250 mm | B78: meter | C78: =Genanskaffelsespriser!E21 -> 75 | D78: 0 | E78: =Genanskaffelsespriser!$D21 -> 1684 | F78: =D78*E78 -> 0 | G78: 0
A79: Ø 250 mm < Ledningsnet ≤ Ø 500mm | B79: meter | C79: =Genanskaffelsespriser!E22 -> 75 | D79: 0 | E79: =Genanskaffelsespriser!$D22 -> 3153 | F79: =D79*E79 -> 0 | G79: 0
A80: Ledningsnet > Ø 500 mm | B80: meter | C80: =Genanskaffelsespriser!E23 -> 75 | D80: 0 | E80: =Genanskaffelsespriser!$D23 -> 5998 | F80: =D80*E80 -> 0 | G80: 0
A81: Råvandsledninger - City
A82: Ø 50mm < Ledningsnet ≤ Ø110 mm | B82: meter | C82: =Genanskaffelsespriser!E25 -> 75 | D82: 0 | E82: =Genanskaffelsespriser!$D25 -> 1495 | F82: =D82*E82 -> 0 | G82: 0
A83: Ø110 mm < Ledningsnet ≤ Ø 250 mm | B83: meter | C83: =Genanskaffelsespriser!E26 -> 75 | D83: 0 | E83: =Genanskaffelsespriser!$D26 -> 2192 | F83: =D83*E83 -> 0 | G83: 0
A84: Ø 250 mm < Ledningsnet ≤ Ø 500mm | B84: meter | C84: =Genanskaffelsespriser!E27 -> 75 | D84: 0 | E84: =Genanskaffelsespriser!$D27 -> 3773 | F84: =D84*E84 -> 0 | G84: 0
A85: Ledningsnet > Ø 500 mm | B85: meter | C85: =Genanskaffelsespriser!E28 -> 75 | D85: 0 | E85: =Genanskaffelsespriser!$D28 -> 6732 | F85: =D85*E85 -> 0 | G85: 0
A86: Vandværk 1
A87: Beluftningsanlæg, iltningstrappe, Konstruktioner | B87: m³/h | C87: =Genanskaffelsespriser!$E$30 -> 50 | D87: 0 | E87: =IF(COUNTIF(D87:D87,"<>0")<=1,IF((SUM(D87:D87))>0,(+HLOOKUP((SUM(D87:D87)),Priser!$E$96:$J$108,2)+((SUM(D87:D87))-HLOOKUP((SUM(D87:D87)),Priser!$E$96:$J$108,1))*HLOOKUP((SUM(D87:D87)),Priser!$E$96:$J$108,3))/(SUM(D87:D87)),0)*Priser!$Q$97*(1+Genanskaffelsespriser!$D$196),"Fejl") -> 0 | F87: =E87*D87 -> 0 | G87: 0
A88: Beluftningsanlæg, iltningstrappe, Mek./EL | B88: m³/h | C88: =Genanskaffelsespriser!$E$31 -> 25 | D88: 0 | E88: =IF(COUNTIF(D88:D88,"<>0")<=1,IF((SUM(D88:D88))>0,(+HLOOKUP((SUM(D88:D88)),Priser!$E$96:$J$108,2)+((SUM(D88:D88))-HLOOKUP((SUM(D88:D88)),Priser!$E$96:$J$108,1))*HLOOKUP((SUM(D88:D88)),Priser!$E$96:$J$108,3))/(SUM(D88:D88)),0)*Priser!$R$97*(1+Genanskaffelsespriser!$D$196),"Fejl") -> 0 | F88: =E88*D88 -> 0 | G88: 0
A89: Beluftningsanlæg, ika-beluftning, Konstruktioner | B89: m³/h | C89: =Genanskaffelsespriser!$E$32 -> 50 | D89: 0 | E89: =IF(COUNTIF(D89:D89,"<>0")<=1,IF((SUM(D89:D89))>0,(+HLOOKUP((SUM(D89:D89)),Priser!$E$96:$J$108,4)+((SUM(D89:D89))-HLOOKUP((SUM(D89:D89)),Priser!$E$96:$J$108,1))*HLOOKUP((SUM(D89:D89)),Priser!$E$96:$J$108,5))/(SUM(D89:D89)),0)*Priser!$Q$99*(1+Genanskaffelsespriser!$D$196),"Fejl") -> 0 | F89: 0 | G89: 0
A90: Beluftningsanlæg, ika-beluftning, Mek./EL | B90: m³/h | C90: =Genanskaffelsespriser!$E$33 -> 25 | D90: 0 | E90: =IF(COUNTIF(D90:D90,"<>0")<=1,IF((SUM(D90:D90))>0,(+HLOOKUP((SUM(D90:D90)),Priser!$E$96:$J$108,4)+((SUM(D90:D90))-HLOOKUP((SUM(D90:D90)),Priser!$E$96:$J$108,1))*HLOOKUP((SUM(D90:D90)),Priser!$E$96:$J$108,5))/(SUM(D90:D90)),0)*Priser!$R$99*(1+Genanskaffelsespriser!$D$196),"Fejl") -> 0 | F90: 0 | G90: 0
A91: Beluftningsanlæg, bundbeluftbning, Konstruktioner | B91: m³/h | C91: =Genanskaffelsespriser!$E$34 -> 50 | D91: 0 | E91: =IF(COUNTIF(D91:D91,"<>0")<=1,IF((SUM(D91:D91))>0,(+HLOOKUP((SUM(D91:D91)),Priser!$E$96:$J$108,8)+((SUM(D91:D91))-HLOOKUP((SUM(D91:D91)),Priser!$E$96:$J$108,1))*HLOOKUP((SUM(D91:D91)),Priser!$E$96:$J$108,9))/(SUM(D91:D91)),0)*Priser!$Q$103*(1+Genanskaffelsespriser!$D$196),"Fejl") -> 0 | F91: 0 | G91: 0
A92: Beluftningsanlæg, bundbeluftbning, Mek./EL | B92: m³/h | C92: =Genanskaffelsespriser!$E$35 -> 25 | D92: 0 | E92: =IF(COUNTIF(D92:D92,"<>0")<=1,IF((SUM(D92:D92))>0,(+HLOOKUP((SUM(D92:D92)),Priser!$E$96:$J$108,8)+((SUM(D92:D92))-HLOOKUP((SUM(D92:D92)),Priser!$E$96:$J$108,1))*HLOOKUP((SUM(D92:D92)),Priser!$E$96:$J$108,9))/(SUM(D92:D92)),0)*Priser!$R$103*(1+Genanskaffelsespriser!$D$196),"Fejl") -> 0 | F92: 0 | G92: 0
A93: Beluftningsanlæg, rislebakke, Konstruktioner | B93: m³/h | C93: =Genanskaffelsespriser!$E$36 -> 50 | D93: 0 | E93: =IF(COUNTIF(D93:D93,"<>0")<=1,IF((SUM(D93:D93))>0,(+HLOOKUP((SUM(D93:D93)),Priser!$E$96:$J$108,6)+((SUM(D93:D93))-HLOOKUP((SUM(D93:D93)),Priser!$E$96:$J$108,1))*HLOOKUP((SUM(D93:D93)),Priser!$E$96:$J$108,7))/(SUM(D93:D93)),0)*Priser!$Q$103*(1+Genanskaffelsespriser!$D$196),"Fejl") -> 0 | F93: 0 | G93: 0
A94: Beluftningsanlæg, rislebakke, Mek./EL | B94: m³/h | C94: =Genanskaffelsespriser!$E$37 -> 25 | D94: 0 | E94: =IF(COUNTIF(D94:D94,"<>0")<=1,IF((SUM(D94:D94))>0,(+HLOOKUP((SUM(D94:D94)),Priser!$E$96:$J$108,6)+((SUM(D94:D94))-HLOOKUP((SUM(D94:D94)),Priser!$E$96:$J$108,1))*HLOOKUP((SUM(D94:D94)),Priser!$E$96:$J$108,7))/(SUM(D94:D94)),0)*Priser!$R$103*(1+Genanskaffelsespriser!$D$196),"Fejl") -> 0 | F94: 0 | G94: 0
A95: Beluftningsanlæg, kompressorbeluftning | B95: m³/h | C95: =Genanskaffelsespriser!$E$38 -> 25 | D95: 0 | E95: =IF(COUNTIF(D95:D95,"<>0")<=1,IF((SUM(D95:D95))>0,(+HLOOKUP((SUM(D95:D95)),Priser!$E$96:$J$108,10)+((SUM(D95:D95))-HLOOKUP((SUM(D95:D95)),Priser!$E$96:$J$108,1))*HLOOKUP((SUM(D95:D95)),Priser!$E$96:$J$108,11))/(SUM(D95:D95)),0)*(1+Genanskaffelsespriser!$D$196),"Fejl") -> 0 | F95: 0 | G95: 0
A96: Beluftningsanlæg, ren ilt | B96: m³/h | C96: =Genanskaffelsespriser!$E$39 -> 25 | D96: 0 | E96: =IF(COUNTIF(D96:D96,"<>0")<=1,IF((SUM(D96:D96))>0,(+HLOOKUP((SUM(D96:D96)),Priser!$E$96:$J$108,12)+((SUM(D96:D96))-HLOOKUP((SUM(D96:D96)),Priser!$E$96:$J$108,1))*HLOOKUP((SUM(D96:D96)),Priser!$E$96:$J$108,13))/(SUM(D96:D96)),0)*(1+Genanskaffelsespriser!$D$196),"Fejl") -> 0 | F96: 0 | G96: 0
A97: Behandlingsanlæg, kalk anlæg | B97: m³/h | C97: =Genanskaffelsespriser!$E$40 -> 25 | D97: 0 | E97: =IF(COUNTIF(D97:D97,"<>0")<=1,IF((SUM(D97:D97))>0,(+HLOOKUP((SUM(D97:D97)),Priser!$E$118:$I$123,3)+((SUM(D97:D97))-HLOOKUP((SUM(D97:D97)),Priser!$E$118:$I$123,1))*HLOOKUP((SUM(D97:D97)),Priser!$E$118:$I$123,4))/(SUM(D97:D97)),0)*(1+Genanskaffelsespriser!$D$196),"Fejl") -> 0 | F97: 0 | G97: 0
A98: Behandlingsanlæg, luddosering | B98: m³/h | C98: =Genanskaffelsespriser!$E$41 -> 25 | D98: 0 | E98: =IF(COUNTIF(D98:D98,"<>0")<=1,IF((SUM(D98:D98))>0,(+HLOOKUP((SUM(D98:D98)),Priser!$E$118:$I$123,5)+((SUM(D98:D98))-HLOOKUP((SUM(D98:D98)),Priser!$E$118:$I$123,1))*HLOOKUP((SUM(D98:D98)),Priser!$E$118:$I$123,6))/(SUM(D98:D98)),0)*(1+Genanskaffelsespriser!$D$196),"Fejl") -> 0 | F98: 0 | G98: 0
A99: Filteranlæg, åbne filtre, enkelt filtrering, Konstruktioner | B99: m³/h | C99: =Genanskaffelsespriser!$E$42 -> 50 | D99: 0 | E99: =IF(COUNTIF(D99:D99,"<>0")<=1,IF((SUM(D99:D99))>0,(+HLOOKUP((SUM(D99:D99)),Priser!$E$132:$I$141,9)+((SUM(D99:D99))-HLOOKUP((SUM(D99:D99)),Priser!$E$132:$I$141,1))*HLOOKUP((SUM(D99:D99)),Priser!$E$132:$I$141,10))/(SUM(D99:D99)),0)*Priser!$Q$140*(1+Genanskaffelsespriser!$D$196),"Fejl") -> 0 | F99: 0 | G99: 0
A100: Filteranlæg, åbne filtre, enkelt filtrering, Mek./EL | B100: m³/h | C100: =Genanskaffelsespriser!$E$43 -> 25 | D100: 0 | E100: =IF(COUNTIF(D100:D100,"<>0")<=1,IF((SUM(D100:D100))>0,(+HLOOKUP((SUM(D100:D100)),Priser!$E$132:$I$141,9)+((SUM(D100:D100))-HLOOKUP((SUM(D100:D100)),Priser!$E$132:$I$141,1))*HLOOKUP((SUM(D100:D100)),Priser!$E$132:$I$141,10))/(SUM(D100:D100)),0)*Priser!$R$140*(1+Genanskaffelsespriser!$D$196),"Fejl") -> 0 | F100: 0 | G100: 0
A101: Filteranlæg, åbne filtre, dobbelt filtrering, Konstruktioner | B101: m³/h | C101: =Genanskaffelsespriser!$E$44 -> 50 | D101: 0 | E101: =IF(COUNTIF(D101:D101,"<>0")<=1,IF((SUM(D101:D101))>0,(+HLOOKUP((SUM(D101:D101)),Priser!$E$132:$I$141,6)+((SUM(D101:D101))-HLOOKUP((SUM(D101:D101)),Priser!$E$132:$I$141,1))*HLOOKUP((SUM(D101:D101)),Priser!$E$132:$I$141,7))/(SUM(D101:D101)),0)*Priser!$Q$138*(1+Genanskaffelsespriser!$D$196),"Fejl") -> 0 | F101: 0 | G101: 0
A102: Filteranlæg, åbne filtre, dobbelt filtrering, Mek./EL | B102: m³/h | C102: =Genanskaffelsespriser!$E$45 -> 25 | D102: 0 | E102: =IF(COUNTIF(D102:D102,"<>0")<=1,IF((SUM(D102:D102))>0,(+HLOOKUP((SUM(D102:D102)),Priser!$E$132:$I$141,6)+((SUM(D102:D102))-HLOOKUP((SUM(D102:D102)),Priser!$E$132:$I$141,1))*HLOOKUP((SUM(D102:D102)),Priser!$E$132:$I$141,7))/(SUM(D102:D102)),0)*Priser!$R$138*(1+Genanskaffelsespriser!$D$196),"Fejl") -> 0 | F102: 0 | G102: 0
A103: Filteranlæg, trykfiltre, enkelt filtrering | B103: m³/h | C103: =Genanskaffelsespriser!$E$46 -> 25 | D103: 0 | E103: =IF(COUNTIF(D103:D103,"<>0")<=1,IF((SUM(D103:D103))>0,(+HLOOKUP((SUM(D103:D103)),Priser!$E$150:$J$152,2)+((SUM(D103:D103))-HLOOKUP((SUM(D103:D103)),Priser!$E$150:$J$152,1))*HLOOKUP((SUM(D103:D103)),Priser!$E$150:$J$152,3))/(SUM(D103:D103)),0)*(1+Genanskaffelsespriser!$D$196),"Fejl") -> 0 | F103: 0 | G103: 0
A104: Filteranlæg, trykfiltre, dobbelt filtrering | B104: m³/h | C104: =Genanskaffelsespriser!$E$47 -> 25 | D104: 0 | E104: =IF(COUNTIF(D104:D104,"<>0")<=1,IF((SUM(D104:D104))>0,(+HLOOKUP((SUM(D104:D104)),Priser!$E$154:$J$156,2)+((SUM(D104:D104))-HLOOKUP((SUM(D104:D104)),Priser!$E$154:$J$156,1))*HLOOKUP((SUM(D104:D104)),Priser!$E$154:$J$156,3))/(SUM(D104:D104)),0)*Priser!$R$138*(1+Genanskaffelsespriser!$D$196),"Fejl") -> 0 | F104: 0 | G104: 0
A105: Rentvandsbeholder insitu støbt | B105: m³ | C105: =Genanskaffelsespriser!$E$48 -> 50 | D105: 0 | E105: =IF(COUNTIF(D105:D105,"<>0")<=1,IF((SUM(D105:D105))>0,(+HLOOKUP((SUM(D105:D105)),Priser!$E$168:$J$170,2)+((SUM(D105:D105))-HLOOKUP((SUM(D105:D105)),Priser!$E$168:$J$170,1))*HLOOKUP((SUM(D105:D105)),Priser!$E$168:$J$170,3))/(SUM(D105:D105)),0)*(1+Genanskaffelsespriser!$D$196),"Fejl") -> 0 | F105: 0 | G105: 0
A106: Rentvandsbeholder element | B106: m³ | C106: =Genanskaffelsespriser!$E$49 -> 50 | D106: 0 | E106: =IF(COUNTIF(D106:D106,"<>0")<=1,IF((SUM(D106:D106))>0,(+HLOOKUP(SUM(D106:D106),Priser!$E$175:$J$177,2)+((SUM(D106:D106))-HLOOKUP((SUM(D106:D106)),Priser!$E$175:$J$177,1))*HLOOKUP((SUM(D106:D106)),Priser!$E$175:$J$177,3))/(SUM(D106:D106)),0)*(1+Genanskaffelsespriser!$D$196),"Fejl") -> 0 | F106: 0 | G106: 0
A107: Udpumpningsanlæg, rentvandspumper på vandværk | B107: m³/h | C107: =Genanskaffelsespriser!$E$50 -> 25 | D107: 0 | E107: =IF(COUNTIF(D107:D107,"<>0")<=1,IF((SUM(D107:D107))>0,(+HLOOKUP((SUM(D107:D107)),Priser!$E$236:$J$238,2)+((SUM(D107:D107))-HLOOKUP((SUM(D107:D107)),Priser!$E$236:$J$238,1))*HLOOKUP((SUM(D107:D107)),Priser!$E$236:$J$238,3))/(SUM(D107:D107)),0)*(1+Genanskaffelsespriser!$D$196),"Fejl") -> 0 | F107: 0 | G107: 0
A108: Udpumpningsanlæg, frekvensomformer | B108: kW | C108: =Genanskaffelsespriser!$E$51 -> 25 | D108: 0 | E108: =IF(COUNTIF(D108:D108,"<>0")<=1,IF((SUM(D108:D108))>0,(+HLOOKUP((SUM(D108:D108)),Priser!$E$255:$J$257,2)+((SUM(D108:D108))-HLOOKUP((SUM(D108:D108)),Priser!$E$255:$J$257,1))*HLOOKUP((SUM(D108:D108)),Priser!$E$255:$J$257,3))/(SUM(D108:D108)),0)*(1+Genanskaffelsespriser!$D$196),"Fejl") -> 0 | F108: 0 | G108: 0
A109: Udpumpningsanlæg, Hydrofor | B109: liter | C109: =Genanskaffelsespriser!$E$52 -> 25 | D109: 0 | E109: =IF(COUNTIF(D109:D109,"<>0")<=1,IF((SUM(D109:D109))>0,(+HLOOKUP((SUM(D109:D109)),Priser!$E$275:$J$277,2)+((SUM(D109:D109))-HLOOKUP((SUM(D109:D109)),Priser!$E$275:$J$277,1))*HLOOKUP((SUM(D109:D109)),Priser!$E$275:$J$277,3))/(SUM(D109:D109)),0)*(1+Genanskaffelsespriser!$D$196),"Fejl") -> 0 | F109: 0 | G109: 0
A110: Skyllevand-/slamhåndteringsanlæg - lukkede betonbeholdere | B110: m³ | C110: =Genanskaffelsespriser!$E$53 -> 50 | D110: 0 | E110: =IF(COUNTIF(D110:D110,"<>0")<=1,IF((SUM(D110:D110))>0,(+HLOOKUP((SUM(D110:D110)),Priser!$E$207:$J$209,2)+((SUM(D110:D110))-HLOOKUP((SUM(D110:D110)),Priser!$E$207:$J$209,1))*HLOOKUP((SUM(D110:D110)),Priser!$E$207:$J$209,3))/(SUM(D110:D110)),0)*(1+Genanskaffelsespriser!$D$196),"Fejl") -> 0 | F110: 0 | G110: 0
A111: Skyllevand-/slamhåndteringsanl. - åbne med faste sider/bund | B111: m³ | C111: =Genanskaffelsespriser!$E$54 -> 50 | D111: 0 | E111: =IF(COUNTIF(D111:D111,"<>0")<=1,IF((SUM(D111:D111))>0,(+HLOOKUP((SUM(D111:D111)),Priser!$E$207:$J$212,5)+((SUM(D111:D111))-HLOOKUP((SUM(D111:D111)),Priser!$E$207:$J$212,1))*HLOOKUP((SUM(D111:D111)),Priser!$E$207:$J$212,6))/(SUM(D111:D111)),0)*(1+Genanskaffelsespriser!$D$196),"Fejl") -> 0 | F111: 0 | G111: 0
A112: Skyllevand-/slamhåndteringsanlæg - jordbassiner | B112: m³ | C112: =Genanskaffelsespriser!$E$55 -> 50 | D112: 0 | E112: =IF(COUNTIF(D112:D112,"<>0")<=1,IF((SUM(D112:D112))>0,(+HLOOKUP((SUM(D112:D112)),Priser!$E$207:$J$215,8)+((SUM(D112:D112))-HLOOKUP((SUM(D112:D112)),Priser!$E$207:$J$215,1))*HLOOKUP((SUM(D112:D112)),Priser!$E$207:$J$215,9))/(SUM(D112:D112)),0)*(1+Genanskaffelsespriser!$D$196),"Fejl") -> 0 | F112: 0 | G112: 0
A113: Skyllevandsbehandling, inkl. UV-filter mv., Mek./EL | B113: m³/h. | C113: =Genanskaffelsespriser!$E$56 -> 25 | D113: 0 | E113: =IF(COUNTIF(D113:D113,"<>0")<=1,IF((SUM(D113:D113))>0,(+HLOOKUP((SUM(D113:D113)),Priser!$F$374:$H$376,2)+((SUM(D113:D113))-HLOOKUP((SUM(D113:D113)),Priser!$F$374:$H$376,1))*HLOOKUP((SUM(D113:D113)),Priser!$F$374:$H$376,3))/(SUM(D113:D113)),0)*Priser!$Q$376*(1+Genanskaffelsespriser!$D$196),"Fejl") -> 0 | F113: 0 | G113: 0
A114: Skyllevandsbehandling, inkl. UV-filter mv., SRO | B114: m³/h. | C114: =Genanskaffelsespriser!$E$57 -> 10 | D114: 0 | E114: =IF(COUNTIF(D114:D114,"<>0")<=1,IF((SUM(D114:D114))>0,(+HLOOKUP((SUM(D114:D114)),Priser!$F$374:$H$376,2)+((SUM(D114:D114))-HLOOKUP((SUM(D114:D114)),Priser!$F$374:$H$376,1))*HLOOKUP((SUM(D114:D114)),Priser!$F$374:$H$376,3))/(SUM(D114:D114)),0)*Priser!$R$376*(1+Genanskaffelsespriser!$D$196),"Fejl") -> 0 | F114: 0 | G114: 0
A115: Nødstrømsanlæg på vandværk | B115: kW | C115: =Genanskaffelsespriser!$E$58 -> 25 | D115: 0 | E115: =IF(COUNTIF(D115:D115,"<>0")<=1,IF((SUM(D115:D115))>0,(+HLOOKUP((SUM(D115:D115)),Priser!$E$294:$J$296,2)+((SUM(D115:D115))-HLOOKUP((SUM(D115:D115)),Priser!$E$294:$J$296,1))*HLOOKUP((SUM(D115:D115)),Priser!$E$294:$J$296,3))/(SUM(D115:D115)),0)*(1+Genanskaffelsespriser!$D$196),"Fejl") -> 0 | F115: 0 | G115: 0
A116: Elanlæg og SRO-anlæg - vandværk, Elanlæg | B116: m³/h. | C116: =Genanskaffelsespriser!$E$59 -> 25 | D116: 0 | E116: =IF(COUNTIF(D116:D116,"<>0")<=1,IF((SUM(D116:D116))>0,((+HLOOKUP((SUM(D116:D116)),Priser!$E$311:$J$315,4)+((SUM(D116:D116))-HLOOKUP((SUM(D116:D116)),Priser!$E$311:$J$315,1))*HLOOKUP((SUM(D116:D116)),Priser!$E$311:$J$315,5))/(SUM(D116:D116))),0)*(1+Genanskaffelsespriser!$D$196),"Fejl") -> 0 | F116: 0 | G116: 0
A117: Elanlæg og SRO-anlæg - vandværk, SRO | B117: m³/h. | C117: =Genanskaffelsespriser!$E$60 -> 10 | D117: 0 | E117: =IF(COUNTIF(D117:D117,"<>0")<=1,IF((SUM(D117:D117))>0,(+HLOOKUP((SUM(D117:D117)),Priser!$E$311:$J$318,7)+((SUM(D117:D117))-HLOOKUP((SUM(D117:D117)),Priser!$E$311:$J$318,1))*HLOOKUP((SUM(D117:D117)),Priser!$E$311:$J$318,8))/(SUM(D117:D117)),0)*(1+Genanskaffelsespriser!$D$196),"Fejl") -> 0 | F117: 0 | G117: 0
A118: Vandværk 2
A119: Beluftningsanlæg, iltningstrappe, Konstruktioner | B119: m³/h | C119: =Genanskaffelsespriser!$E$30 -> 50 | D119: 0 | E119: =IF(COUNTIF(D119:D119,"<>0")<=1,IF((SUM(D119:D119))>0,(+HLOOKUP((SUM(D119:D119)),Priser!$E$96:$J$108,2)+((SUM(D119:D119))-HLOOKUP((SUM(D119:D119)),Priser!$E$96:$J$108,1))*HLOOKUP((SUM(D119:D119)),Priser!$E$96:$J$108,3))/(SUM(D119:D119)),0)*Priser!$Q$97*(1+Genanskaffelsespriser!$D$196),"Fejl") -> 0 | F119: =E119*D119 -> 0 | G119: =F119/C119 -> 0
A120: Beluftningsanlæg, iltningstrappe, Mek./EL | B120: m³/h | C120: =Genanskaffelsespriser!$E$31 -> 25 | D120: 0 | E120: =IF(COUNTIF(D120:D120,"<>0")<=1,IF((SUM(D120:D120))>0,(+HLOOKUP((SUM(D120:D120)),Priser!$E$96:$J$108,2)+((SUM(D120:D120))-HLOOKUP((SUM(D120:D120)),Priser!$E$96:$J$108,1))*HLOOKUP((SUM(D120:D120)),Priser!$E$96:$J$108,3))/(SUM(D120:D120)),0)*Priser!$R$97*(1+Genanskaffelsespriser!$D$196),"Fejl") -> 0 | F120: =E120*D120 -> 0 | G120: 0
A121: Beluftningsanlæg, ika-beluftning, Konstruktioner | B121: m³/h | C121: =Genanskaffelsespriser!$E$32 -> 50 | D121: 0 | E121: =IF(COUNTIF(D121:D121,"<>0")<=1,IF((SUM(D121:D121))>0,(+HLOOKUP((SUM(D121:D121)),Priser!$E$96:$J$108,4)+((SUM(D121:D121))-HLOOKUP((SUM(D121:D121)),Priser!$E$96:$J$108,1))*HLOOKUP((SUM(D121:D121)),Priser!$E$96:$J$108,5))/(SUM(D121:D121)),0)*Priser!$Q$99*(1+Genanskaffelsespriser!$D$196),"Fejl") -> 0 | F121: 0 | G121: 0
A122: Beluftningsanlæg, ika-beluftning, Mek./EL | B122: m³/h | C122: =Genanskaffelsespriser!$E$33 -> 25 | D122: 0 | E122: =IF(COUNTIF(D122:D122,"<>0")<=1,IF((SUM(D122:D122))>0,(+HLOOKUP((SUM(D122:D122)),Priser!$E$96:$J$108,4)+((SUM(D122:D122))-HLOOKUP((SUM(D122:D122)),Priser!$E$96:$J$108,1))*HLOOKUP((SUM(D122:D122)),Priser!$E$96:$J$108,5))/(SUM(D122:D122)),0)*Priser!$R$99*(1+Genanskaffelsespriser!$D$196),"Fejl") -> 0 | F122: 0 | G122: 0
A123: Beluftningsanlæg, bundbeluftbning, Konstruktioner | B123: m³/h | C123: =Genanskaffelsespriser!$E$34 -> 50 | D123: 0 | E123: =IF(COUNTIF(D123:D123,"<>0")<=1,IF((SUM(D123:D123))>0,(+HLOOKUP((SUM(D123:D123)),Priser!$E$96:$J$108,8)+((SUM(D123:D123))-HLOOKUP((SUM(D123:D123)),Priser!$E$96:$J$108,1))*HLOOKUP((SUM(D123:D123)),Priser!$E$96:$J$108,9))/(SUM(D123:D123)),0)*Priser!$Q$103*(1+Genanskaffelsespriser!$D$196),"Fejl") -> 0 | F123: 0 | G123: 0
A124: Beluftningsanlæg, bundbeluftbning, Mek./EL | B124: m³/h | C124: =Genanskaffelsespriser!$E$35 -> 25 | D124: 0 | E124: =IF(COUNTIF(D124:D124,"<>0")<=1,IF((SUM(D124:D124))>0,(+HLOOKUP((SUM(D124:D124)),Priser!$E$96:$J$108,8)+((SUM(D124:D124))-HLOOKUP((SUM(D124:D124)),Priser!$E$96:$J$108,1))*HLOOKUP((SUM(D124:D124)),Priser!$E$96:$J$108,9))/(SUM(D124:D124)),0)*Priser!$R$103*(1+Genanskaffelsespriser!$D$196),"Fejl") -> 0 | F124: 0 | G124: 0
A125: Beluftningsanlæg, rislebakke, Konstruktioner | B125: m³/h | C125: =Genanskaffelsespriser!$E$36 -> 50 | D125: 0 | E125: =IF(COUNTIF(D125:D125,"<>0")<=1,IF((SUM(D125:D125))>0,(+HLOOKUP((SUM(D125:D125)),Priser!$E$96:$J$108,6)+((SUM(D125:D125))-HLOOKUP((SUM(D125:D125)),Priser!$E$96:$J$108,1))*HLOOKUP((SUM(D125:D125)),Priser!$E$96:$J$108,7))/(SUM(D125:D125)),0)*Priser!$Q$103*(1+Genanskaffelsespriser!$D$196),"Fejl") -> 0 | F125: 0 | G125: 0
A126: Beluftningsanlæg, rislebakke, Mek./EL | B126: m³/h | C126: =Genanskaffelsespriser!$E$37 -> 25 | D126: 0 | E126: =IF(COUNTIF(D126:D126,"<>0")<=1,IF((SUM(D126:D126))>0,(+HLOOKUP((SUM(D126:D126)),Priser!$E$96:$J$108,6)+((SUM(D126:D126))-HLOOKUP((SUM(D126:D126)),Priser!$E$96:$J$108,1))*HLOOKUP((SUM(D126:D126)),Priser!$E$96:$J$108,7))/(SUM(D126:D126)),0)*Priser!$R$103*(1+Genanskaffelsespriser!$D$196),"Fejl") -> 0 | F126: 0 | G126: 0
A127: Beluftningsanlæg, kompressorbeluftning | B127: m³/h | C127: =Genanskaffelsespriser!$E$38 -> 25 | D127: 0 | E127: =IF(COUNTIF(D127:D127,"<>0")<=1,IF((SUM(D127:D127))>0,(+HLOOKUP((SUM(D127:D127)),Priser!$E$96:$J$108,10)+((SUM(D127:D127))-HLOOKUP((SUM(D127:D127)),Priser!$E$96:$J$108,1))*HLOOKUP((SUM(D127:D127)),Priser!$E$96:$J$108,11))/(SUM(D127:D127)),0)*(1+Genanskaffelsespriser!$D$196),"Fejl") -> 0 | F127: 0 | G127: 0
A128: Beluftningsanlæg, ren ilt | B128: m³/h | C128: =Genanskaffelsespriser!$E$39 -> 25 | D128: 0 | E128: =IF(COUNTIF(D128:D128,"<>0")<=1,IF((SUM(D128:D128))>0,(+HLOOKUP((SUM(D128:D128)),Priser!$E$96:$J$108,12)+((SUM(D128:D128))-HLOOKUP((SUM(D128:D128)),Priser!$E$96:$J$108,1))*HLOOKUP((SUM(D128:D128)),Priser!$E$96:$J$108,13))/(SUM(D128:D128)),0)*(1+Genanskaffelsespriser!$D$196),"Fejl") -> 0 | F128: 0 | G128: 0
A129: Behandlingsanlæg, kalk anlæg | B129: m³/h | C129: =Genanskaffelsespriser!$E$40 -> 25 | D129: 0 | E129: =IF(COUNTIF(D129:D129,"<>0")<=1,IF((SUM(D129:D129))>0,(+HLOOKUP((SUM(D129:D129)),Priser!$E$118:$I$123,3)+((SUM(D129:D129))-HLOOKUP((SUM(D129:D129)),Priser!$E$118:$I$123,1))*HLOOKUP((SUM(D129:D129)),Priser!$E$118:$I$123,4))/(SUM(D129:D129)),0)*(1+Genanskaffelsespriser!$D$196),"Fejl") -> 0 | F129: 0 | G129: 0
A130: Behandlingsanlæg, luddosering | B130: m³/h | C130: =Genanskaffelsespriser!$E$41 -> 25 | D130: 0 | E130: =IF(COUNTIF(D130:D130,"<>0")<=1,IF((SUM(D130:D130))>0,(+HLOOKUP((SUM(D130:D130)),Priser!$E$118:$I$123,5)+((SUM(D130:D130))-HLOOKUP((SUM(D130:D130)),Priser!$E$118:$I$123,1))*HLOOKUP((SUM(D130:D130)),Priser!$E$118:$I$123,6))/(SUM(D130:D130)),0)*(1+Genanskaffelsespriser!$D$196),"Fejl") -> 0 | F130: 0 | G130: 0
A131: Filteranlæg, åbne filtre, enkelt filtrering, Konstruktioner | B131: m³/h | C131: =Genanskaffelsespriser!$E$42 -> 50 | D131: 0 | E131: =IF(COUNTIF(D131:D131,"<>0")<=1,IF((SUM(D131:D131))>0,(+HLOOKUP((SUM(D131:D131)),Priser!$E$132:$I$141,9)+((SUM(D131:D131))-HLOOKUP((SUM(D131:D131)),Priser!$E$132:$I$141,1))*HLOOKUP((SUM(D131:D131)),Priser!$E$132:$I$141,10))/(SUM(D131:D131)),0)*Priser!$Q$140*(1+Genanskaffelsespriser!$D$196),"Fejl") -> 0 | F131: 0 | G131: 0
A132: Filteranlæg, åbne filtre, enkelt filtrering, Mek./EL | B132: m³/h | C132: =Genanskaffelsespriser!$E$43 -> 25 | D132: 0 | E132: =IF(COUNTIF(D132:D132,"<>0")<=1,IF((SUM(D132:D132))>0,(+HLOOKUP((SUM(D132:D132)),Priser!$E$132:$I$141,9)+((SUM(D132:D132))-HLOOKUP((SUM(D132:D132)),Priser!$E$132:$I$141,1))*HLOOKUP((SUM(D132:D132)),Priser!$E$132:$I$141,10))/(SUM(D132:D132)),0)*Priser!$R$140*(1+Genanskaffelsespriser!$D$196),"Fejl") -> 0 | F132: 0 | G132: 0
A133: Filteranlæg, åbne filtre, dobbelt filtrering, Konstruktioner | B133: m³/h | C133: =Genanskaffelsespriser!$E$44 -> 50 | D133: 0 | E133: =IF(COUNTIF(D133:D133,"<>0")<=1,IF((SUM(D133:D133))>0,(+HLOOKUP((SUM(D133:D133)),Priser!$E$132:$I$141,6)+((SUM(D133:D133))-HLOOKUP((SUM(D133:D133)),Priser!$E$132:$I$141,1))*HLOOKUP((SUM(D133:D133)),Priser!$E$132:$I$141,7))/(SUM(D133:D133)),0)*Priser!$Q$138*(1+Genanskaffelsespriser!$D$196),"Fejl") -> 0 | F133: 0 | G133: 0
A134: Filteranlæg, åbne filtre, dobbelt filtrering, Mek./EL | B134: m³/h | C134: =Genanskaffelsespriser!$E$45 -> 25 | D134: 0 | E134: =IF(COUNTIF(D134:D134,"<>0")<=1,IF((SUM(D134:D134))>0,(+HLOOKUP((SUM(D134:D134)),Priser!$E$132:$I$141,6)+((SUM(D134:D134))-HLOOKUP((SUM(D134:D134)),Priser!$E$132:$I$141,1))*HLOOKUP((SUM(D134:D134)),Priser!$E$132:$I$141,7))/(SUM(D134:D134)),0)*Priser!$R$138*(1+Genanskaffelsespriser!$D$196),"Fejl") -> 0 | F134: 0 | G134: 0
A135: Filteranlæg, trykfiltre, enkelt filtrering | B135: m³/h | C135: =Genanskaffelsespriser!$E$46 -> 25 | D135: 0 | E135: =IF(COUNTIF(D135:D135,"<>0")<=1,IF((SUM(D135:D135))>0,(+HLOOKUP((SUM(D135:D135)),Priser!$E$150:$J$152,2)+((SUM(D135:D135))-HLOOKUP((SUM(D135:D135)),Priser!$E$150:$J$152,1))*HLOOKUP((SUM(D135:D135)),Priser!$E$150:$J$152,3))/(SUM(D135:D135)),0)*(1+Genanskaffelsespriser!$D$196),"Fejl") -> 0 | F135: 0 | G135: 0
A136: Filteranlæg, trykfiltre, dobbelt filtrering | B136: m³/h | C136: =Genanskaffelsespriser!$E$47 -> 25 | D136: 0 | E136: =IF(COUNTIF(D136:D136,"<>0")<=1,IF((SUM(D136:D136))>0,(+HLOOKUP((SUM(D136:D136)),Priser!$E$154:$J$156,2)+((SUM(D136:D136))-HLOOKUP((SUM(D136:D136)),Priser!$E$154:$J$156,1))*HLOOKUP((SUM(D136:D136)),Priser!$E$154:$J$156,3))/(SUM(D136:D136)),0)*Priser!$R$138*(1+Genanskaffelsespriser!$D$196),"Fejl") -> 0 | F136: 0 | G136: 0
A137: Rentvandsbeholder insitu støbt | B137: m³ | C137: =Genanskaffelsespriser!$E$48 -> 50 | D137: 0 | E137: =IF(COUNTIF(D137:D137,"<>0")<=1,IF((SUM(D137:D137))>0,(+HLOOKUP((SUM(D137:D137)),Priser!$E$168:$J$170,2)+((SUM(D137:D137))-HLOOKUP((SUM(D137:D137)),Priser!$E$168:$J$170,1))*HLOOKUP((SUM(D137:D137)),Priser!$E$168:$J$170,3))/(SUM(D137:D137)),0)*(1+Genanskaffelsespriser!$D$196),"Fejl") -> 0 | F137: 0 | G137: 0
A138: Rentvandsbeholder element | B138: m³ | C138: =Genanskaffelsespriser!$E$49 -> 50 | D138: 0 | E138: =IF(COUNTIF(D138:D138,"<>0")<=1,IF((SUM(D138:D138))>0,(+HLOOKUP(SUM(D138:D138),Priser!$E$175:$J$177,2)+((SUM(D138:D138))-HLOOKUP((SUM(D138:D138)),Priser!$E$175:$J$177,1))*HLOOKUP((SUM(D138:D138)),Priser!$E$175:$J$177,3))/(SUM(D138:D138)),0)*(1+Genanskaffelsespriser!$D$196),"Fejl") -> 0 | F138: 0 | G138: 0
A139: Udpumpningsanlæg, rentvandspumper på vandværk | B139: m³/h | C139: =Genanskaffelsespriser!$E$50 -> 25 | D139: 0 | E139: =IF(COUNTIF(D139:D139,"<>0")<=1,IF((SUM(D139:D139))>0,(+HLOOKUP((SUM(D139:D139)),Priser!$E$236:$J$238,2)+((SUM(D139:D139))-HLOOKUP((SUM(D139:D139)),Priser!$E$236:$J$238,1))*HLOOKUP((SUM(D139:D139)),Priser!$E$236:$J$238,3))/(SUM(D139:D139)),0)*(1+Genanskaffelsespriser!$D$196),"Fejl") -> 0 | F139: 0 | G139: 0
A140: Udpumpningsanlæg, frekvensomformer | B140: kW | C140: =Genanskaffelsespriser!$E$51 -> 25 | D140: 0 | E140: =IF(COUNTIF(D140:D140,"<>0")<=1,IF((SUM(D140:D140))>0,(+HLOOKUP((SUM(D140:D140)),Priser!$E$255:$J$257,2)+((SUM(D140:D140))-HLOOKUP((SUM(D140:D140)),Priser!$E$255:$J$257,1))*HLOOKUP((SUM(D140:D140)),Priser!$E$255:$J$257,3))/(SUM(D140:D140)),0)*(1+Genanskaffelsespriser!$D$196),"Fejl") -> 0 | F140: 0 | G140: 0
A141: Udpumpningsanlæg, Hydrofor | B141: liter | C141: =Genanskaffelsespriser!$E$52 -> 25 | D141: 0 | E141: =IF(COUNTIF(D141:D141,"<>0")<=1,IF((SUM(D141:D141))>0,(+HLOOKUP((SUM(D141:D141)),Priser!$E$275:$J$277,2)+((SUM(D141:D141))-HLOOKUP((SUM(D141:D141)),Priser!$E$275:$J$277,1))*HLOOKUP((SUM(D141:D141)),Priser!$E$275:$J$277,3))/(SUM(D141:D141)),0)*(1+Genanskaffelsespriser!$D$196),"Fejl") -> 0 | F141: 0 | G141: 0
A142: Skyllevand-/slamhåndteringsanlæg - lukkede betonbeholdere | B142: m³ | C142: =Genanskaffelsespriser!$E$53 -> 50 | D142: 0 | E142: =IF(COUNTIF(D142:D142,"<>0")<=1,IF((SUM(D142:D142))>0,(+HLOOKUP((SUM(D142:D142)),Priser!$E$207:$J$209,2)+((SUM(D142:D142))-HLOOKUP((SUM(D142:D142)),Priser!$E$207:$J$209,1))*HLOOKUP((SUM(D142:D142)),Priser!$E$207:$J$209,3))/(SUM(D142:D142)),0)*(1+Genanskaffelsespriser!$D$196),"Fejl") -> 0 | F142: 0 | G142: 0
A143: Skyllevand-/slamhåndteringsanl. - åbne med faste sider/bund | B143: m³ | C143: =Genanskaffelsespriser!$E$54 -> 50 | D143: 0 | E143: =IF(COUNTIF(D143:D143,"<>0")<=1,IF((SUM(D143:D143))>0,(+HLOOKUP((SUM(D143:D143)),Priser!$E$207:$J$212,5)+((SUM(D143:D143))-HLOOKUP((SUM(D143:D143)),Priser!$E$207:$J$212,1))*HLOOKUP((SUM(D143:D143)),Priser!$E$207:$J$212,6))/(SUM(D143:D143)),0)*(1+Genanskaffelsespriser!$D$196),"Fejl") -> 0 | F143: 0 | G143: 0
A144: Skyllevand-/slamhåndteringsanlæg - jordbassiner | B144: m³ | C144: =Genanskaffelsespriser!$E$55 -> 50 | D144: 0 | E144: =IF(COUNTIF(D144:D144,"<>0")<=1,IF((SUM(D144:D144))>0,(+HLOOKUP((SUM(D144:D144)),Priser!$E$207:$J$215,8)+((SUM(D144:D144))-HLOOKUP((SUM(D144:D144)),Priser!$E$207:$J$215,1))*HLOOKUP((SUM(D144:D144)),Priser!$E$207:$J$215,9))/(SUM(D144:D144)),0)*(1+Genanskaffelsespriser!$D$196),"Fejl") -> 0 | F144: 0 | G144: 0
A145: Skyllevandsbehandling, inkl. UV-filter mv., Mek./EL | B145: m³/h. | C145: =Genanskaffelsespriser!$E$56 -> 25 | D145: 0 | E145: =IF(COUNTIF(D145:D145,"<>0")<=1,IF((SUM(D145:D145))>0,(+HLOOKUP((SUM(D145:D145)),Priser!$F$374:$H$376,2)+((SUM(D145:D145))-HLOOKUP((SUM(D145:D145)),Priser!$F$374:$H$376,1))*HLOOKUP((SUM(D145:D145)),Priser!$F$374:$H$376,3))/(SUM(D145:D145)),0)*Priser!$Q$376*(1+Genanskaffelsespriser!$D$196),"Fejl") -> 0 | F145: 0 | G145: 0
A146: Skyllevandsbehandling, inkl. UV-filter mv., SRO | B146: m³/h. | C146: =Genanskaffelsespriser!$E$57 -> 10 | D146: 0 | E146: =IF(COUNTIF(D146:D146,"<>0")<=1,IF((SUM(D146:D146))>0,(+HLOOKUP((SUM(D146:D146)),Priser!$F$374:$H$376,2)+((SUM(D146:D146))-HLOOKUP((SUM(D146:D146)),Priser!$F$374:$H$376,1))*HLOOKUP((SUM(D146:D146)),Priser!$F$374:$H$376,3))/(SUM(D146:D146)),0)*Priser!$R$376*(1+Genanskaffelsespriser!$D$196),"Fejl") -> 0 | F146: 0 | G146: 0
A147: Nødstrømsanlæg på vandværk | B147: kW | C147: =Genanskaffelsespriser!$E$58 -> 25 | D147: 0 | E147: =IF(COUNTIF(D147:D147,"<>0")<=1,IF((SUM(D147:D147))>0,(+HLOOKUP((SUM(D147:D147)),Priser!$E$294:$J$296,2)+((SUM(D147:D147))-HLOOKUP((SUM(D147:D147)),Priser!$E$294:$J$296,1))*HLOOKUP((SUM(D147:D147)),Priser!$E$294:$J$296,3))/(SUM(D147:D147)),0)*(1+Genanskaffelsespriser!$D$196),"Fejl") -> 0 | F147: 0 | G147: 0
A148: Elanlæg og SRO-anlæg - vandværk, Elanlæg | B148: m³/h. | C148: =Genanskaffelsespriser!$E$59 -> 25 | D148: 0 | E148: =IF(COUNTIF(D148:D148,"<>0")<=1,IF((SUM(D148:D148))>0,((+HLOOKUP((SUM(D148:D148)),Priser!$E$311:$J$315,4)+((SUM(D148:D148))-HLOOKUP((SUM(D148:D148)),Priser!$E$311:$J$315,1))*HLOOKUP((SUM(D148:D148)),Priser!$E$311:$J$315,5))/(SUM(D148:D148))),0)*(1+Genanskaffelsespriser!$D$196),"Fejl") -> 0 | F148: 0 | G148: 0
A149: Elanlæg og SRO-anlæg - vandværk, SRO | B149: m³/h. | C149: =Genanskaffelsespriser!$E$60 -> 10 | D149: 0 | E149: =IF(COUNTIF(D149:D149,"<>0")<=1,IF((SUM(D149:D149))>0,(+HLOOKUP((SUM(D149:D149)),Priser!$E$311:$J$318,7)+((SUM(D149:D149))-HLOOKUP((SUM(D149:D149)),Priser!$E$311:$J$318,1))*HLOOKUP((SUM(D149:D149)),Priser!$E$311:$J$318,8))/(SUM(D149:D149)),0)*(1+Genanskaffelsespriser!$D$196),"Fejl") -> 0 | F149: 0 | G149: 0
A150: Vandværk 3
A151: Beluftningsanlæg, iltningstrappe, Konstruktioner | B151: m³/h | C151: =Genanskaffelsespriser!$E$30 -> 50 | D151: 0 | E151: =IF(COUNTIF(D151:D151,"<>0")<=1,IF((SUM(D151:D151))>0,(+HLOOKUP((SUM(D151:D151)),Priser!$E$96:$J$108,2)+((SUM(D151:D151))-HLOOKUP((SUM(D151:D151)),Priser!$E$96:$J$108,1))*HLOOKUP((SUM(D151:D151)),Priser!$E$96:$J$108,3))/(SUM(D151:D151)),0)*Priser!$Q$97*(1+Genanskaffelsespriser!$D$196),"Fejl") -> 0 | F151: =E151*D151 -> 0 | G151: =F151/C151 -> 0
A152: Beluftningsanlæg, iltningstrappe, Mek./EL | B152: m³/h | C152: =Genanskaffelsespriser!$E$31 -> 25 | D152: 0 | E152: =IF(COUNTIF(D152:D152,"<>0")<=1,IF((SUM(D152:D152))>0,(+HLOOKUP((SUM(D152:D152)),Priser!$E$96:$J$108,2)+((SUM(D152:D152))-HLOOKUP((SUM(D152:D152)),Priser!$E$96:$J$108,1))*HLOOKUP((SUM(D152:D152)),Priser!$E$96:$J$108,3))/(SUM(D152:D152)),0)*Priser!$R$97*(1+Genanskaffelsespriser!$D$196),"Fejl") -> 0 | F152: =E152*D152 -> 0 | G152: 0
A153: Beluftningsanlæg, ika-beluftning, Konstruktioner | B153: m³/h | C153: =Genanskaffelsespriser!$E$32 -> 50 | D153: 0 | E153: =IF(COUNTIF(D153:D153,"<>0")<=1,IF((SUM(D153:D153))>0,(+HLOOKUP((SUM(D153:D153)),Priser!$E$96:$J$108,4)+((SUM(D153:D153))-HLOOKUP((SUM(D153:D153)),Priser!$E$96:$J$108,1))*HLOOKUP((SUM(D153:D153)),Priser!$E$96:$J$108,5))/(SUM(D153:D153)),0)*Priser!$Q$99*(1+Genanskaffelsespriser!$D$196),"Fejl") -> 0 | F153: 0 | G153: 0
A154: Beluftningsanlæg, ika-beluftning, Mek./EL | B154: m³/h | C154: =Genanskaffelsespriser!$E$33 -> 25 | D154: 0 | E154: =IF(COUNTIF(D154:D154,"<>0")<=1,IF((SUM(D154:D154))>0,(+HLOOKUP((SUM(D154:D154)),Priser!$E$96:$J$108,4)+((SUM(D154:D154))-HLOOKUP((SUM(D154:D154)),Priser!$E$96:$J$108,1))*HLOOKUP((SUM(D154:D154)),Priser!$E$96:$J$108,5))/(SUM(D154:D154)),0)*Priser!$R$99*(1+Genanskaffelsespriser!$D$196),"Fejl") -> 0 | F154: 0 | G154: 0
A155: Beluftningsanlæg, bundbeluftbning, Konstruktioner | B155: m³/h | C155: =Genanskaffelsespriser!$E$34 -> 50 | D155: 0 | E155: =IF(COUNTIF(D155:D155,"<>0")<=1,IF((SUM(D155:D155))>0,(+HLOOKUP((SUM(D155:D155)),Priser!$E$96:$J$108,8)+((SUM(D155:D155))-HLOOKUP((SUM(D155:D155)),Priser!$E$96:$J$108,1))*HLOOKUP((SUM(D155:D155)),Priser!$E$96:$J$108,9))/(SUM(D155:D155)),0)*Priser!$Q$103*(1+Genanskaffelsespriser!$D$196),"Fejl") -> 0 | F155: 0 | G155: 0
A156: Beluftningsanlæg, bundbeluftbning, Mek./EL | B156: m³/h | C156: =Genanskaffelsespriser!$E$35 -> 25 | D156: 0 | E156: =IF(COUNTIF(D156:D156,"<>0")<=1,IF((SUM(D156:D156))>0,(+HLOOKUP((SUM(D156:D156)),Priser!$E$96:$J$108,8)+((SUM(D156:D156))-HLOOKUP((SUM(D156:D156)),Priser!$E$96:$J$108,1))*HLOOKUP((SUM(D156:D156)),Priser!$E$96:$J$108,9))/(SUM(D156:D156)),0)*Priser!$R$103*(1+Genanskaffelsespriser!$D$196),"Fejl") -> 0 | F156: 0 | G156: 0
A157: Beluftningsanlæg, rislebakke, Konstruktioner | B157: m³/h | C157: =Genanskaffelsespriser!$E$36 -> 50 | D157: 0 | E157: =IF(COUNTIF(D157:D157,"<>0")<=1,IF((SUM(D157:D157))>0,(+HLOOKUP((SUM(D157:D157)),Priser!$E$96:$J$108,6)+((SUM(D157:D157))-HLOOKUP((SUM(D157:D157)),Priser!$E$96:$J$108,1))*HLOOKUP((SUM(D157:D157)),Priser!$E$96:$J$108,7))/(SUM(D157:D157)),0)*Priser!$Q$103*(1+Genanskaffelsespriser!$D$196),"Fejl") -> 0 | F157: 0 | G157: 0
A158: Beluftningsanlæg, rislebakke, Mek./EL | B158: m³/h | C158: =Genanskaffelsespriser!$E$37 -> 25 | D158: 0 | E158: =IF(COUNTIF(D158:D158,"<>0")<=1,IF((SUM(D158:D158))>0,(+HLOOKUP((SUM(D158:D158)),Priser!$E$96:$J$108,6)+((SUM(D158:D158))-HLOOKUP((SUM(D158:D158)),Priser!$E$96:$J$108,1))*HLOOKUP((SUM(D158:D158)),Priser!$E$96:$J$108,7))/(SUM(D158:D158)),0)*Priser!$R$103*(1+Genanskaffelsespriser!$D$196),"Fejl") -> 0 | F158: 0 | G158: 0
A159: Beluftningsanlæg, kompressorbeluftning | B159: m³/h | C159: =Genanskaffelsespriser!$E$38 -> 25 | D159: 0 | E159: =IF(COUNTIF(D159:D159,"<>0")<=1,IF((SUM(D159:D159))>0,(+HLOOKUP((SUM(D159:D159)),Priser!$E$96:$J$108,10)+((SUM(D159:D159))-HLOOKUP((SUM(D159:D159)),Priser!$E$96:$J$108,1))*HLOOKUP((SUM(D159:D159)),Priser!$E$96:$J$108,11))/(SUM(D159:D159)),0)*(1+Genanskaffelsespriser!$D$196),"Fejl") -> 0 | F159: 0 | G159: 0
A160: Beluftningsanlæg, ren ilt | B160: m³/h | C160: =Genanskaffelsespriser!$E$39 -> 25 | D160: 0 | E160: =IF(COUNTIF(D160:D160,"<>0")<=1,IF((SUM(D160:D160))>0,(+HLOOKUP((SUM(D160:D160)),Priser!$E$96:$J$108,12)+((SUM(D160:D160))-HLOOKUP((SUM(D160:D160)),Priser!$E$96:$J$108,1))*HLOOKUP((SUM(D160:D160)),Priser!$E$96:$J$108,13))/(SUM(D160:D160)),0)*(1+Genanskaffelsespriser!$D$196),"Fejl") -> 0 | F160: 0 | G160: 0
A161: Behandlingsanlæg, kalk anlæg | B161: m³/h | C161: =Genanskaffelsespriser!$E$40 -> 25 | D161: 0 | E161: =IF(COUNTIF(D161:D161,"<>0")<=1,IF((SUM(D161:D161))>0,(+HLOOKUP((SUM(D161:D161)),Priser!$E$118:$I$123,3)+((SUM(D161:D161))-HLOOKUP((SUM(D161:D161)),Priser!$E$118:$I$123,1))*HLOOKUP((SUM(D161:D161)),Priser!$E$118:$I$123,4))/(SUM(D161:D161)),0)*(1+Genanskaffelsespriser!$D$196),"Fejl") -> 0 | F161: 0 | G161: 0
A162: Behandlingsanlæg, luddosering | B162: m³/h | C162: =Genanskaffelsespriser!$E$41 -> 25 | D162: 0 | E162: =IF(COUNTIF(D162:D162,"<>0")<=1,IF((SUM(D162:D162))>0,(+HLOOKUP((SUM(D162:D162)),Priser!$E$118:$I$123,5)+((SUM(D162:D162))-HLOOKUP((SUM(D162:D162)),Priser!$E$118:$I$123,1))*HLOOKUP((SUM(D162:D162)),Priser!$E$118:$I$123,6))/(SUM(D162:D162)),0)*(1+Genanskaffelsespriser!$D$196),"Fejl") -> 0 | F162: 0 | G162: 0
A163: Filteranlæg, åbne filtre, enkelt filtrering, Konstruktioner | B163: m³/h | C163: =Genanskaffelsespriser!$E$42 -> 50 | D163: 0 | E163: =IF(COUNTIF(D163:D163,"<>0")<=1,IF((SUM(D163:D163))>0,(+HLOOKUP((SUM(D163:D163)),Priser!$E$132:$I$141,9)+((SUM(D163:D163))-HLOOKUP((SUM(D163:D163)),Priser!$E$132:$I$141,1))*HLOOKUP((SUM(D163:D163)),Priser!$E$132:$I$141,10))/(SUM(D163:D163)),0)*Priser!$Q$140*(1+Genanskaffelsespriser!$D$196),"Fejl") -> 0 | F163: 0 | G163: 0
A164: Filteranlæg, åbne filtre, enkelt filtrering, Mek./EL | B164: m³/h | C164: =Genanskaffelsespriser!$E$43 -> 25 | D164: 0 | E164: =IF(COUNTIF(D164:D164,"<>0")<=1,IF((SUM(D164:D164))>0,(+HLOOKUP((SUM(D164:D164)),Priser!$E$132:$I$141,9)+((SUM(D164:D164))-HLOOKUP((SUM(D164:D164)),Priser!$E$132:$I$141,1))*HLOOKUP((SUM(D164:D164)),Priser!$E$132:$I$141,10))/(SUM(D164:D164)),0)*Priser!$R$140*(1+Genanskaffelsespriser!$D$196),"Fejl") -> 0 | F164: 0 | G164: 0
A165: Filteranlæg, åbne filtre, dobbelt filtrering, Konstruktioner | B165: m³/h | C165: =Genanskaffelsespriser!$E$44 -> 50 | D165: 0 | E165: =IF(COUNTIF(D165:D165,"<>0")<=1,IF((SUM(D165:D165))>0,(+HLOOKUP((SUM(D165:D165)),Priser!$E$132:$I$141,6)+((SUM(D165:D165))-HLOOKUP((SUM(D165:D165)),Priser!$E$132:$I$141,1))*HLOOKUP((SUM(D165:D165)),Priser!$E$132:$I$141,7))/(SUM(D165:D165)),0)*Priser!$Q$138*(1+Genanskaffelsespriser!$D$196),"Fejl") -> 0 | F165: 0 | G165: 0
A166: Filteranlæg, åbne filtre, dobbelt filtrering, Mek./EL | B166: m³/h | C166: =Genanskaffelsespriser!$E$45 -> 25 | D166: 0 | E166: =IF(COUNTIF(D166:D166,"<>0")<=1,IF((SUM(D166:D166))>0,(+HLOOKUP((SUM(D166:D166)),Priser!$E$132:$I$141,6)+((SUM(D166:D166))-HLOOKUP((SUM(D166:D166)),Priser!$E$132:$I$141,1))*HLOOKUP((SUM(D166:D166)),Priser!$E$132:$I$141,7))/(SUM(D166:D166)),0)*Priser!$R$138*(1+Genanskaffelsespriser!$D$196),"Fejl") -> 0 | F166: 0 | G166: 0
A167: Filteranlæg, trykfiltre, enkelt filtrering | B167: m³/h | C167: =Genanskaffelsespriser!$E$46 -> 25 | D167: 0 | E167: =IF(COUNTIF(D167:D167,"<>0")<=1,IF((SUM(D167:D167))>0,(+HLOOKUP((SUM(D167:D167)),Priser!$E$150:$J$152,2)+((SUM(D167:D167))-HLOOKUP((SUM(D167:D167)),Priser!$E$150:$J$152,1))*HLOOKUP((SUM(D167:D167)),Priser!$E$150:$J$152,3))/(SUM(D167:D167)),0)*(1+Genanskaffelsespriser!$D$196),"Fejl") -> 0 | F167: 0 | G167: 0
A168: Filteranlæg, trykfiltre, dobbelt filtrering | B168: m³/h | C168: =Genanskaffelsespriser!$E$47 -> 25 | D168: 0 | E168: =IF(COUNTIF(D168:D168,"<>0")<=1,IF((SUM(D168:D168))>0,(+HLOOKUP((SUM(D168:D168)),Priser!$E$154:$J$156,2)+((SUM(D168:D168))-HLOOKUP((SUM(D168:D168)),Priser!$E$154:$J$156,1))*HLOOKUP((SUM(D168:D168)),Priser!$E$154:$J$156,3))/(SUM(D168:D168)),0)*Priser!$R$138*(1+Genanskaffelsespriser!$D$196),"Fejl") -> 0 | F168: 0 | G168: 0
A169: Rentvandsbeholder insitu støbt | B169: m³ | C169: =Genanskaffelsespriser!$E$48 -> 50 | D169: 0 | E169: =IF(COUNTIF(D169:D169,"<>0")<=1,IF((SUM(D169:D169))>0,(+HLOOKUP((SUM(D169:D169)),Priser!$E$168:$J$170,2)+((SUM(D169:D169))-HLOOKUP((SUM(D169:D169)),Priser!$E$168:$J$170,1))*HLOOKUP((SUM(D169:D169)),Priser!$E$168:$J$170,3))/(SUM(D169:D169)),0)*(1+Genanskaffelsespriser!$D$196),"Fejl") -> 0 | F169: 0 | G169: 0
A170: Rentvandsbeholder element | B170: m³ | C170: =Genanskaffelsespriser!$E$49 -> 50 | D170: 0 | E170: =IF(COUNTIF(D170:D170,"<>0")<=1,IF((SUM(D170:D170))>0,(+HLOOKUP(SUM(D170:D170),Priser!$E$175:$J$177,2)+((SUM(D170:D170))-HLOOKUP((SUM(D170:D170)),Priser!$E$175:$J$177,1))*HLOOKUP((SUM(D170:D170)),Priser!$E$175:$J$177,3))/(SUM(D170:D170)),0)*(1+Genanskaffelsespriser!$D$196),"Fejl") -> 0 | F170: 0 | G170: 0
A171: Udpumpningsanlæg, rentvandspumper på vandværk | B171: m³/h | C171: =Genanskaffelsespriser!$E$50 -> 25 | D171: 0 | E171: =IF(COUNTIF(D171:D171,"<>0")<=1,IF((SUM(D171:D171))>0,(+HLOOKUP((SUM(D171:D171)),Priser!$E$236:$J$238,2)+((SUM(D171:D171))-HLOOKUP((SUM(D171:D171)),Priser!$E$236:$J$238,1))*HLOOKUP((SUM(D171:D171)),Priser!$E$236:$J$238,3))/(SUM(D171:D171)),0)*(1+Genanskaffelsespriser!$D$196),"Fejl") -> 0 | F171: 0 | G171: 0
A172: Udpumpningsanlæg, frekvensomformer | B172: kW | C172: =Genanskaffelsespriser!$E$51 -> 25 | D172: 0 | E172: =IF(COUNTIF(D172:D172,"<>0")<=1,IF((SUM(D172:D172))>0,(+HLOOKUP((SUM(D172:D172)),Priser!$E$255:$J$257,2)+((SUM(D172:D172))-HLOOKUP((SUM(D172:D172)),Priser!$E$255:$J$257,1))*HLOOKUP((SUM(D172:D172)),Priser!$E$255:$J$257,3))/(SUM(D172:D172)),0)*(1+Genanskaffelsespriser!$D$196),"Fejl") -> 0 | F172: 0 | G172: 0
A173: Udpumpningsanlæg, Hydrofor | B173: liter | C173: =Genanskaffelsespriser!$E$52 -> 25 | D173: 0 | E173: =IF(COUNTIF(D173:D173,"<>0")<=1,IF((SUM(D173:D173))>0,(+HLOOKUP((SUM(D173:D173)),Priser!$E$275:$J$277,2)+((SUM(D173:D173))-HLOOKUP((SUM(D173:D173)),Priser!$E$275:$J$277,1))*HLOOKUP((SUM(D173:D173)),Priser!$E$275:$J$277,3))/(SUM(D173:D173)),0)*(1+Genanskaffelsespriser!$D$196),"Fejl") -> 0 | F173: 0 | G173: 0
A174: Skyllevand-/slamhåndteringsanlæg - lukkede betonbeholdere | B174: m³ | C174: =Genanskaffelsespriser!$E$53 -> 50 | D174: 0 | E174: =IF(COUNTIF(D174:D174,"<>0")<=1,IF((SUM(D174:D174))>0,(+HLOOKUP((SUM(D174:D174)),Priser!$E$207:$J$209,2)+((SUM(D174:D174))-HLOOKUP((SUM(D174:D174)),Priser!$E$207:$J$209,1))*HLOOKUP((SUM(D174:D174)),Priser!$E$207:$J$209,3))/(SUM(D174:D174)),0)*(1+Genanskaffelsespriser!$D$196),"Fejl") -> 0 | F174: 0 | G174: 0
A175: Skyllevand-/slamhåndteringsanl. - åbne med faste sider/bund | B175: m³ | C175: =Genanskaffelsespriser!$E$54 -> 50 | D175: 0 | E175: =IF(COUNTIF(D175:D175,"<>0")<=1,IF((SUM(D175:D175))>0,(+HLOOKUP((SUM(D175:D175)),Priser!$E$207:$J$212,5)+((SUM(D175:D175))-HLOOKUP((SUM(D175:D175)),Priser!$E$207:$J$212,1))*HLOOKUP((SUM(D175:D175)),Priser!$E$207:$J$212,6))/(SUM(D175:D175)),0)*(1+Genanskaffelsespriser!$D$196),"Fejl") -> 0 | F175: 0 | G175: 0
A176: Skyllevand-/slamhåndteringsanlæg - jordbassiner | B176: m³ | C176: =Genanskaffelsespriser!$E$55 -> 50 | D176: 0 | E176: =IF(COUNTIF(D176:D176,"<>0")<=1,IF((SUM(D176:D176))>0,(+HLOOKUP((SUM(D176:D176)),Priser!$E$207:$J$215,8)+((SUM(D176:D176))-HLOOKUP((SUM(D176:D176)),Priser!$E$207:$J$215,1))*HLOOKUP((SUM(D176:D176)),Priser!$E$207:$J$215,9))/(SUM(D176:D176)),0)*(1+Genanskaffelsespriser!$D$196),"Fejl") -> 0 | F176: 0 | G176: 0
A177: Skyllevandsbehandling, inkl. UV-filter mv., Mek./EL | B177: m³/h. | C177: =Genanskaffelsespriser!$E$56 -> 25 | D177: 0 | E177: =IF(COUNTIF(D177:D177,"<>0")<=1,IF((SUM(D177:D177))>0,(+HLOOKUP((SUM(D177:D177)),Priser!$F$374:$H$376,2)+((SUM(D177:D177))-HLOOKUP((SUM(D177:D177)),Priser!$F$374:$H$376,1))*HLOOKUP((SUM(D177:D177)),Priser!$F$374:$H$376,3))/(SUM(D177:D177)),0)*Priser!$Q$376*(1+Genanskaffelsespriser!$D$196),"Fejl") -> 0 | F177: 0 | G177: 0
A178: Skyllevandsbehandling, inkl. UV-filter mv., SRO | B178: m³/h. | C178: =Genanskaffelsespriser!$E$57 -> 10 | D178: 0 | E178: =IF(COUNTIF(D178:D178,"<>0")<=1,IF((SUM(D178:D178))>0,(+HLOOKUP((SUM(D178:D178)),Priser!$F$374:$H$376,2)+((SUM(D178:D178))-HLOOKUP((SUM(D178:D178)),Priser!$F$374:$H$376,1))*HLOOKUP((SUM(D178:D178)),Priser!$F$374:$H$376,3))/(SUM(D178:D178)),0)*Priser!$R$376*(1+Genanskaffelsespriser!$D$196),"Fejl") -> 0 | F178: 0 | G178: 0
A179: Nødstrømsanlæg på vandværk | B179: kW | C179: =Genanskaffelsespriser!$E$58 -> 25 | D179: 0 | E179: =IF(COUNTIF(D179:D179,"<>0")<=1,IF((SUM(D179:D179))>0,(+HLOOKUP((SUM(D179:D179)),Priser!$E$294:$J$296,2)+((SUM(D179:D179))-HLOOKUP((SUM(D179:D179)),Priser!$E$294:$J$296,1))*HLOOKUP((SUM(D179:D179)),Priser!$E$294:$J$296,3))/(SUM(D179:D179)),0)*(1+Genanskaffelsespriser!$D$196),"Fejl") -> 0 | F179: 0 | G179: 0
A180: Elanlæg og SRO-anlæg - vandværk, Elanlæg | B180: m³/h. | C180: =Genanskaffelsespriser!$E$59 -> 25 | D180: 0 | E180: =IF(COUNTIF(D180:D180,"<>0")<=1,IF((SUM(D180:D180))>0,((+HLOOKUP((SUM(D180:D180)),Priser!$E$311:$J$315,4)+((SUM(D180:D180))-HLOOKUP((SUM(D180:D180)),Priser!$E$311:$J$315,1))*HLOOKUP((SUM(D180:D180)),Priser!$E$311:$J$315,5))/(SUM(D180:D180))),0)*(1+Genanskaffelsespriser!$D$196),"Fejl") -> 0 | F180: 0 | G180: 0
A181: Elanlæg og SRO-anlæg - vandværk, SRO | B181: m³/h. | C181: =Genanskaffelsespriser!$E$60 -> 10 | D181: 0 | E181: =IF(COUNTIF(D181:D181,"<>0")<=1,IF((SUM(D181:D181))>0,(+HLOOKUP((SUM(D181:D181)),Priser!$E$311:$J$318,7)+((SUM(D181:D181))-HLOOKUP((SUM(D181:D181)),Priser!$E$311:$J$318,1))*HLOOKUP((SUM(D181:D181)),Priser!$E$311:$J$318,8))/(SUM(D181:D181)),0)*(1+Genanskaffelsespriser!$D$196),"Fejl") -> 0 | F181: 0 | G181: 0
A182: Bygninger
A183: Etageareal vandbehandlingsbygning | B183: m² | C183: =Genanskaffelsespriser!E62 -> 75 | D183: 0 | E183: =Genanskaffelsespriser!$D62 -> 18108 | F183: =D183*E183 -> 0 | G183: =F183/C183 -> 0
A184: Etageareal kontor og mandskabsfaciliteter | B184: m² | C184: =Genanskaffelsespriser!E63 -> 75 | D184: 0 | E184: =Genanskaffelsespriser!$D63 -> 19309 | F184: 0 | G184: 0
A185: Værksted | B185: m² | C185: =Genanskaffelsespriser!E64 -> 75 | D185: 0 | E185: =Genanskaffelsespriser!$D64 -> 14921 | F185: 0 | G185: 0
A186: Lager | B186: m² | C186: =Genanskaffelsespriser!E65 -> 75 | D186: 0 | E186: =Genanskaffelsespriser!$D65 -> 14921 | F186: 0 | G186: 0
A187: Garage og rørlager | B187: m² | C187: =Genanskaffelsespriser!E66 -> 75 | D187: 0 | E187: =Genanskaffelsespriser!$D66 -> 10444 | F187: 0 | G187: 0
A188: Bygning for trykforøgere | B188: m² | C188: =Genanskaffelsespriser!E67 -> 75 | D188: 0 | E188: =Genanskaffelsespriser!$D67 -> 20318 | F188: 0 | G188: 0
A189: Laboratorium (bygning, inkl. inventar+udstyr), Konstruktioner | B189: m² | C189: =Genanskaffelsespriser!E68 -> 75 | D189: 0 | E189: =Genanskaffelsespriser!$D68 -> 20362 | F189: 0 | G189: 0
A190: Laboratorium (bygning, inkl. inventar+udstyr), Mek./EL | B190: m² | C190: =Genanskaffelsespriser!E69 -> 10 | D190: 0 | E190: =Genanskaffelsespriser!$D69 -> 13575 | F190: 0 | G190: 0
A191: Andre
A192: Sikring (terror, hærværk), Mek./EL | B192: stk. | C192: =Genanskaffelsespriser!E71 -> 25 | D192: 0 | E192: =Genanskaffelsespriser!$D71 -> 6372 | F192: =D192*E192 -> 0 | G192: 0
A193: Sikring (terror, hærværk), SRO | B193: stk. | C193: =Genanskaffelsespriser!E72 -> 10 | D193: 0 | E193: =Genanskaffelsespriser!$D72 -> 14868 | F193: 0 | G193: 0
A194: Sikring, mindre avanceret (hegn, porte), Mek./EL | B194: stk. | C194: =Genanskaffelsespriser!E73 -> 25 | D194: 0 | E194: =Genanskaffelsespriser!$D73 -> 26067 | F194: 0 | G194: 0
A195: Sikring, mindre avanceret (hegn, porte), SRO | B195: stk. | C195: =Genanskaffelsespriser!E74 -> 10 | D195: 0 | E195: =Genanskaffelsespriser!$D74 -> 60823 | F195: 0 | G195: 0
A196: Sikring, avanceret (hegn, porte og overvågningssystemer), Mek./EL | B196: stk. | C196: =Genanskaffelsespriser!E75 -> 25 | D196: 0 | E196: =Genanskaffelsespriser!$D75 -> 56318 | F196: 0 | G196: 0
A197: Sikring, avanceret (hegn, porte og overvågningssystemer), SRO | B197: stk. | C197: =Genanskaffelsespriser!E76 -> 10 | D197: 0 | E197: =Genanskaffelsespriser!$D76 -> 225271 | F197: 0 | G197: 0

Sheet Distributionsanlæg
A1: DISTRIBUTIONSANLÆG | B1: Enhed | C1: Standardlevetid | D1: Mængde | E1: Enhedspris | F1: Samlet værdi | G1: Afskrivning
A2: Ledningsnet - Land
A3: Ledningsnet ≤ Ø50 mm | B3: meter | C3: =Genanskaffelsespriser!E81 -> 75 | D3: 0 | E3: =Genanskaffelsespriser!$D81 -> 529 | F3: =D3*E3 -> 0 | G3: =F3/C3 -> 0
A4: Ø 50mm < Ledningsnet ≤ Ø110 mm | B4: meter | C4: =Genanskaffelsespriser!E82 -> 75 | D4: 0 | E4: =Genanskaffelsespriser!$D82 -> 808 | F4: =D4*E4 -> 0 | G4: =F4/C4 -> 0
A5: Ø110 mm < Ledningsnet ≤ Ø 250 mm | B5: meter | C5: =Genanskaffelsespriser!E83 -> 75 | D5: 0 | E5: =Genanskaffelsespriser!$D83 -> 1513 | F5: 0 | G5: 0
A6: Ø 250 mm < Ledningsnet ≤ Ø 500mm | B6: meter | C6: =Genanskaffelsespriser!E84 -> 75 | D6: 0 | E6: =Genanskaffelsespriser!$D84 -> 2944 | F6: 0 | G6: 0
A7: Ledningsnet > Ø 500 mm | B7: meter | C7: =Genanskaffelsespriser!E85 -> 75 | D7: 0 | E7: =Genanskaffelsespriser!$D85 -> 5751 | F7: 0 | G7: 0
A8: Støbejernsledninger ≤ Ø50 mm | B8: meter | C8: =Genanskaffelsespriser!E86 -> 100 | D8: 0 | E8: =Genanskaffelsespriser!$D86 -> 899 | F8: 0 | G8: 0
A9: Støbejernsledninger Ø 50mm < Ledningsnet ≤ Ø110 mm | B9: meter | C9: =Genanskaffelsespriser!E87 -> 100 | D9: 0 | E9: =Genanskaffelsespriser!$D87 -> 1053 | F9: 0 | G9: 0
A10: Støbejernsledninger Ø110 mm < Ledningsnet ≤ Ø 250 mm | B10: meter | C10: =Genanskaffelsespriser!E88 -> 100 | D10: 0 | E10: =Genanskaffelsespriser!$D88 -> 1490 | F10: 0 | G10: 0
A11: Støbejernsledninger Ø 250 mm < Ledningsnet ≤ Ø 500mm | B11: meter | C11: =Genanskaffelsespriser!E89 -> 100 | D11: 0 | E11: =Genanskaffelsespriser!$D89 -> 2762 | F11: 0 | G11: 0
A12: Støbejernsledninger Ledningsnet > Ø 500 mm | B12: meter | C12: =Genanskaffelsespriser!E90 -> 100 | D12: 0 | E12: =Genanskaffelsespriser!$D90 -> 5484 | F12: 0 | G12: 0
A13: Eternitledninger ≤ Ø50 mm | B13: meter | C13: =Genanskaffelsespriser!E91 -> 75 | D13: 0 | E13: =Genanskaffelsespriser!$D91 -> 655 | F13: 0 | G13: 0
A14: Eternitledninger Ø 50mm < Ledningsnet ≤ Ø110 mm | B14: meter | C14: =Genanskaffelsespriser!E92 -> 75 | D14: 0 | E14: =Genanskaffelsespriser!$D92 -> 885 | F14: 0 | G14: 0
A15: Eternitledninger Ø110 mm < Ledningsnet ≤ Ø 250 mm | B15: meter | C15: =Genanskaffelsespriser!E93 -> 75 | D15: 0 | E15: =Genanskaffelsespriser!$D93 -> 1287 | F15: 0 | G15: 0
A16: Eternitledninger Ø 250 mm < Ledningsnet ≤ Ø 500mm | B16: meter | C16: =Genanskaffelsespriser!E94 -> 75 | D16: 0 | E16: =Genanskaffelsespriser!$D94 -> 3056 | F16: 0 | G16: 0
A17: Eternitledninger Ledningsnet > Ø 500 mm | B17: meter | C17: =Genanskaffelsespriser!E95 -> 75 | D17: 0 | E17: =Genanskaffelsespriser!$D95 -> 8477 | F17: 0 | G17: 0
A18: Skelbrønd, Konstruktioner | B18: stk. | C18: =Genanskaffelsespriser!E96 -> 50 | D18: 0 | E18: =Genanskaffelsespriser!$D96 -> 10415 | F18: 0 | G18: 0
A19: Skelbrønd, Mek./EL | B19: stk. | C19: =Genanskaffelsespriser!E97 -> 15 | D19: 0 | E19: =Genanskaffelsespriser!$D97 -> 15623 | F19: 0 | G19: 0
A20: Inspektionsbrønd, Konstruktioner | B20: stk. | C20: =Genanskaffelsespriser!E98 -> 50 | D20: 0 | E20: =Genanskaffelsespriser!$D98 -> 10415 | F20: 0 | G20: 0
A21: Inspektionsbrønd, Mek./EL | B21: stk. | C21: =Genanskaffelsespriser!E99 -> 15 | D21: 0 | E21: =Genanskaffelsespriser!$D99 -> 13019 | F21: 0 | G21: 0
A22: Stik på ledningsnet, Konstruktioner | B22: stk. | C22: =Genanskaffelsespriser!E100 -> 75 | D22: 0 | E22: =Genanskaffelsespriser!$D100 -> 4722 | F22: 0 | G22: 0
A23: Stik på ledningsnet, Mek./EL | B23: stk. | C23: =Genanskaffelsespriser!E101 -> 75 | D23: 0 | E23: =Genanskaffelsespriser!$D101 -> 4722 | F23: 0 | G23: 0
A24: Ledningsnet - By
A25: Ledningsnet ≤ Ø50 mm | B25: meter | C25: =Genanskaffelsespriser!E103 -> 75 | D25: 0 | E25: =Genanskaffelsespriser!$D103 -> 650 | F25: 0 | G25: 0
A26: Ø 50mm < Ledningsnet ≤ Ø110 mm | B26: meter | C26: =Genanskaffelsespriser!E104 -> 75 | D26: 0 | E26: =Genanskaffelsespriser!$D104 -> 958 | F26: 0 | G26: 0
A27: Ø110 mm < Ledningsnet ≤ Ø 250 mm | B27: meter | C27: =Genanskaffelsespriser!E105 -> 75 | D27: 0 | E27: =Genanskaffelsespriser!$D105 -> 1684 | F27: 0 | G27: 0
A28: Ø 250 mm < Ledningsnet ≤ Ø 500mm | B28: meter | C28: =Genanskaffelsespriser!E106 -> 75 | D28: 0 | E28: =Genanskaffelsespriser!$D106 -> 3153 | F28: 0 | G28: 0
A29: Ledningsnet > Ø 500 mm | B29: meter | C29: =Genanskaffelsespriser!E107 -> 75 | D29: 0 | E29: =Genanskaffelsespriser!$D107 -> 5998 | F29: 0 | G29: 0
A30: Støbejernsledninger ≤ Ø50 mm | B30: meter | C30: =Genanskaffelsespriser!E108 -> 100 | D30: 0 | E30: =Genanskaffelsespriser!$D108 -> 1020 | F30: 0 | G30: 0
A31: Støbejernsledninger Ø 50mm < Ledningsnet ≤ Ø110 mm | B31: meter | C31: =Genanskaffelsespriser!E109 -> 100 | D31: 0 | E31: =Genanskaffelsespriser!$D109 -> 1203 | F31: 0 | G31: 0
A32: Støbejernsledninger Ø110 mm < Ledningsnet ≤ Ø 250 mm | B32: meter | C32: =Genanskaffelsespriser!E110 -> 100 | D32: 0 | E32: =Genanskaffelsespriser!$D110 -> 1661 | F32: 0 | G32: 0
A33: Støbejernsledninger Ø 250 mm < Ledningsnet ≤ Ø 500mm | B33: meter | C33: =Genanskaffelsespriser!E111 -> 100 | D33: 0 | E33: =Genanskaffelsespriser!$D111 -> 2971 | F33: 0 | G33: 0
A34: Støbejernsledninger Ledningsnet > Ø 500 mm | B34: meter | C34: =Genanskaffelsespriser!E112 -> 100 | D34: 0 | E34: =Genanskaffelsespriser!$D112 -> 5731 | F34: 0 | G34: 0
A35: Eternitledninger ≤ Ø50 mm | B35: meter | C35: =Genanskaffelsespriser!E113 -> 75 | D35: 0 | E35: =Genanskaffelsespriser!$D113 -> 776 | F35: 0 | G35: 0
A36: Eternitledninger Ø 50mm < Ledningsnet ≤ Ø110 mm | B36: meter | C36: =Genanskaffelsespriser!E114 -> 75 | D36: 0 | E36: =Genanskaffelsespriser!$D114 -> 1035 | F36: 0 | G36: 0
A37: Eternitledninger Ø110 mm < Ledningsnet ≤ Ø 250 mm | B37: meter | C37: =Genanskaffelsespriser!E115 -> 75 | D37: 0 | E37: =Genanskaffelsespriser!$D115 -> 1456 | F37: 0 | G37: 0
A38: Eternitledninger Ø 250 mm < Ledningsnet ≤ Ø 500mm | B38: meter | C38: =Genanskaffelsespriser!E116 -> 75 | D38: 0 | E38: =Genanskaffelsespriser!$D116 -> 3265 | F38: 0 | G38: 0
A39: Eternitledninger Ledningsnet > Ø 500 mm | B39: meter | C39: =Genanskaffelsespriser!E117 -> 75 | D39: 0 | E39: =Genanskaffelsespriser!$D117 -> 8724 | F39: 0 | G39: 0
A40: Skelbrønd, Konstruktioner | B40: stk. | C40: =Genanskaffelsespriser!E118 -> 50 | D40: 0 | E40: =Genanskaffelsespriser!$D118 -> 11457 | F40: 0 | G40: 0
A41: Skelbrønd, Mek./EL | B41: stk. | C41: =Genanskaffelsespriser!E119 -> 15 | D41: 0 | E41: =Genanskaffelsespriser!$D119 -> 17185 | F41: 0 | G41: 0
A42: Inspektionsbrønd, Konstruktioner | B42: stk. | C42: =Genanskaffelsespriser!E120 -> 50 | D42: 0 | E42: =Genanskaffelsespriser!$D120 -> 11457 | F42: 0 | G42: 0
A43: Inspektionsbrønd, Mek./EL | B43: stk. | C43: =Genanskaffelsespriser!E121 -> 15 | D43: 0 | E43: =Genanskaffelsespriser!$D121 -> 14321 | F43: 0 | G43: 0
A44: Stik på ledningsnet, Konstruktioner | B44: stk. | C44: =Genanskaffelsespriser!E122 -> 75 | D44: 0 | E44: =Genanskaffelsespriser!$D122 -> 5666 | F44: 0 | G44: 0
A45: Stik på ledningsnet, Mek./EL | B45: stk. | C45: =Genanskaffelsespriser!E123 -> 75 | D45: 0 | E45: =Genanskaffelsespriser!$D123 -> 5666 | F45: 0 | G45: 0
A46: Ledningsnet - City
A47: Ledningsnet ≤ Ø50 mm | B47: meter | C47: =Genanskaffelsespriser!E125 -> 75 | D47: 0 | E47: =Genanskaffelsespriser!$D125 -> 1078 | F47: 0 | G47: 0
A48: Ø 50mm < Ledningsnet ≤ Ø110 mm | B48: meter | C48: =Genanskaffelsespriser!E126 -> 75 | D48: 0 | E48: =Genanskaffelsespriser!$D126 -> 1495 | F48: 0 | G48: 0
A49: Ø110 mm < Ledningsnet ≤ Ø 250 mm | B49: meter | C49: =Genanskaffelsespriser!E127 -> 75 | D49: 0 | E49: =Genanskaffelsespriser!$D127 -> 2192 | F49: 0 | G49: 0
A50: Ø 250 mm < Ledningsnet ≤ Ø 500mm | B50: meter | C50: =Genanskaffelsespriser!E128 -> 75 | D50: 0 | E50: =Genanskaffelsespriser!$D128 -> 3773 | F50: 0 | G50: 0
A51: Ledningsnet > Ø 500 mm | B51: meter | C51: =Genanskaffelsespriser!E129 -> 75 | D51: 0 | E51: =Genanskaffelsespriser!$D129 -> 6732 | F51: 0 | G51: 0
A52: Støbejernsledninger ≤ Ø50 mm | B52: meter | C52: =Genanskaffelsespriser!E130 -> 100 | D52: 0 | E52: =Genanskaffelsespriser!$D130 -> 1448 | F52: 0 | G52: 0
A53: Støbejernsledninger Ø 50mm < Ledningsnet ≤ Ø110 mm | B53: meter | C53: =Genanskaffelsespriser!E131 -> 100 | D53: 0 | E53: =Genanskaffelsespriser!$D131 -> 1740 | F53: 0 | G53: 0
A54: Støbejernsledninger Ø110 mm < Ledningsnet ≤ Ø 250 mm | B54: meter | C54: =Genanskaffelsespriser!E132 -> 100 | D54: 0 | E54: =Genanskaffelsespriser!$D132 -> 2169 | F54: 0 | G54: 0
A55: Støbejernsledninger Ø 250 mm < Ledningsnet ≤ Ø 500mm | B55: meter | C55: =Genanskaffelsespriser!E133 -> 100 | D55: 0 | E55: =Genanskaffelsespriser!$D133 -> 3591 | F55: 0 | G55: 0
A56: Støbejernsledninger Ledningsnet > Ø 500 mm | B56: meter | C56: =Genanskaffelsespriser!E134 -> 100 | D56: 0 | E56: =Genanskaffelsespriser!$D134 -> 6465 | F56: 0 | G56: 0
A57: Eternitledninger ≤ Ø50 mm | B57: meter | C57: =Genanskaffelsespriser!E135 -> 75 | D57: 0 | E57: =Genanskaffelsespriser!$D135 -> 1204 | F57: 0 | G57: 0
A58: Eternitledninger Ø 50mm < Ledningsnet ≤ Ø110 mm | B58: meter | C58: =Genanskaffelsespriser!E136 -> 75 | D58: 0 | E58: =Genanskaffelsespriser!$D136 -> 1572 | F58: 0 | G58: 0
A59: Eternitledninger Ø110 mm < Ledningsnet ≤ Ø 250 mm | B59: meter | C59: =Genanskaffelsespriser!E137 -> 75 | D59: 0 | E59: =Genanskaffelsespriser!$D137 -> 1966 | F59: 0 | G59: 0
A60: Eternitledninger Ø 250 mm < Ledningsnet ≤ Ø 500mm | B60: meter | C60: =Genanskaffelsespriser!E138 -> 75 | D60: 0 | E60: =Genanskaffelsespriser!$D138 -> 3885 | F60: 0 | G60: 0
A61: Eternitledninger Ledningsnet > Ø 500 mm | B61: meter | C61: =Genanskaffelsespriser!E139 -> 75 | D61: 0 | E61: =Genanskaffelsespriser!$D139 -> 9458 | F61: 0 | G61: 0
A62: Skelbrønd, Konstruktioner | B62: stk. | C62: =Genanskaffelsespriser!E140 -> 50 | D62: 0 | E62: =Genanskaffelsespriser!$D140 -> 12498 | F62: 0 | G62: 0
A63: Skelbrønd, Mek./EL | B63: stk. | C63: =Genanskaffelsespriser!E141 -> 15 | D63: 0 | E63: =Genanskaffelsespriser!$D141 -> 18747 | F63: 0 | G63: 0
A64: Inspektionsbrønd, Konstruktioner | B64: stk. | C64: =Genanskaffelsespriser!E142 -> 50 | D64: 0 | E64: =Genanskaffelsespriser!$D142 -> 12498 | F64: 0 | G64: 0
A65: Inspektionsbrønd, Mek./EL | B65: stk. | C65: =Genanskaffelsespriser!E143 -> 15 | D65: 0 | E65: =Genanskaffelsespriser!$D143 -> 15623 | F65: 0 | G65: 0
A66: Stik på ledningsnet, Konstruktioner | B66: stk. | C66: =Genanskaffelsespriser!E144 -> 75 | D66: 0 | E66: =Genanskaffelsespriser!$D144 -> 6139 | F66: 0 | G66: 0
A67: Stik på ledningsnet, Mek./EL | B67: stk. | C67: =Genanskaffelsespriser!E145 -> 75 | D67: 0 | E67: =Genanskaffelsespriser!$D145 -> 6139 | F67: 0 | G67: 0
A68: Ledningsnet - Indre city
A69: Ledningsnet ≤ Ø50 mm | B69: meter | C69: =Genanskaffelsespriser!E147 -> 75 | D69: 0 | E69: =Genanskaffelsespriser!$D147 -> 1697 | F69: 0 | G69: =F69/C69 -> 0
A70: Ø 50mm < Ledningsnet ≤ Ø110 mm | B70: meter | C70: =Genanskaffelsespriser!E148 -> 75 | D70: 0 | E70: =Genanskaffelsespriser!$D148 -> 2268 | F70: 0 | G70: 0
A71: Ø110 mm < Ledningsnet ≤ Ø 250 mm | B71: meter | C71: =Genanskaffelsespriser!E149 -> 75 | D71: 0 | E71: =Genanskaffelsespriser!$D149 -> 3009 | F71: =D71*E71 -> 0 | G71: 0
A72: Ø 250 mm < Ledningsnet ≤ Ø 500mm | B72: meter | C72: =Genanskaffelsespriser!E150 -> 75 | D72: 0 | E72: =Genanskaffelsespriser!$D150 -> 4773 | F72: 0 | G72: 0
A73: Ledningsnet > Ø 500 mm | B73: meter | C73: =Genanskaffelsespriser!E151 -> 75 | D73: 0 | E73: =Genanskaffelsespriser!$D151 -> 7915 | F73: 0 | G73: 0
A74: Støbejernsledninger ≤ Ø50 mm | B74: meter | C74: =Genanskaffelsespriser!E152 -> 100 | D74: 0 | E74: =Genanskaffelsespriser!$D152 -> 2067 | F74: 0 | G74: 0
A75: Støbejernsledninger Ø 50mm < Ledningsnet ≤ Ø110 mm | B75: meter | C75: =Genanskaffelsespriser!E153 -> 100 | D75: 0 | E75: =Genanskaffelsespriser!$D153 -> 2513 | F75: 0 | G75: 0
A76: Støbejernsledninger Ø110 mm < Ledningsnet ≤ Ø 250 mm | B76: meter | C76: =Genanskaffelsespriser!E154 -> 100 | D76: 0 | E76: =Genanskaffelsespriser!$D154 -> 2986 | F76: 0 | G76: 0
A77: Støbejernsledninger Ø 250 mm < Ledningsnet ≤ Ø 500mm | B77: meter | C77: =Genanskaffelsespriser!E155 -> 100 | D77: 0 | E77: =Genanskaffelsespriser!$D155 -> 4591 | F77: 0 | G77: 0
A78: Støbejernsledninger Ledningsnet > Ø 500 mm | B78: meter | C78: =Genanskaffelsespriser!E156 -> 100 | D78: 0 | E78: =Genanskaffelsespriser!$D156 -> 7648 | F78: 0 | G78: 0
A79: Eternitledninger ≤ Ø50 mm | B79: meter | C79: =Genanskaffelsespriser!E157 -> 75 | D79: 0 | E79: =Genanskaffelsespriser!$D157 -> 1823 | F79: 0 | G79: 0
A80: Eternitledninger Ø 50mm < Ledningsnet ≤ Ø110 mm | B80: meter | C80: =Genanskaffelsespriser!E158 -> 75 | D80: 0 | E80: =Genanskaffelsespriser!$D158 -> 2345 | F80: 0 | G80: 0
A81: Eternitledninger Ø110 mm < Ledningsnet ≤ Ø 250 mm | B81: meter | C81: =Genanskaffelsespriser!E159 -> 75 | D81: 0 | E81: =Genanskaffelsespriser!$D159 -> 2783 | F81: 0 | G81: 0
A82: Eternitledninger Ø 250 mm < Ledningsnet ≤ Ø 500mm | B82: meter | C82: =Genanskaffelsespriser!E160 -> 75 | D82: 0 | E82: =Genanskaffelsespriser!$D160 -> 4885 | F82: 0 | G82: 0
A83: Eternitledninger Ledningsnet > Ø 500 mm | B83: meter | C83: =Genanskaffelsespriser!E161 -> 75 | D83: 0 | E83: =Genanskaffelsespriser!$D161 -> 10641 | F83: 0 | G83: 0
A84: Skelbrønd, Konstruktioner | B84: stk. | C84: =Genanskaffelsespriser!E162 -> 50 | D84: 0 | E84: =Genanskaffelsespriser!$D162 -> 13540 | F84: 0 | G84: 0
A85: Skelbrønd, Mek./EL | B85: stk. | C85: =Genanskaffelsespriser!E163 -> 15 | D85: 0 | E85: =Genanskaffelsespriser!$D163 -> 20310 | F85: 0 | G85: 0
A86: Inspektionsbrønd, Konstruktioner | B86: stk. | C86: =Genanskaffelsespriser!E164 -> 50 | D86: 0 | E86: =Genanskaffelsespriser!$D164 -> 13540 | F86: 0 | G86: 0
A87: Inspektionsbrønd, Mek./EL | B87: stk. | C87: =Genanskaffelsespriser!E165 -> 15 | D87: 0 | E87: =Genanskaffelsespriser!$D165 -> 16925 | F87: 0 | G87: 0
A88: Stik på ledningsnet, Konstruktioner | B88: stk. | C88: =Genanskaffelsespriser!E166 -> 75 | D88: 0 | E88: =Genanskaffelsespriser!$D166 -> 7555 | F88: 0 | G88: 0
A89: Stik på ledningsnet, Mek./EL | B89: stk. | C89: =Genanskaffelsespriser!E167 -> 75 | D89: 0 | E89: =Genanskaffelsespriser!$D167 -> 7555 | F89: 0 | G89: 0
A90: Ventiler
A91: Ventiler på ledningsnet ≤ Ø50 mm | B91: stk. | C91: =Genanskaffelsespriser!E169 -> 75 | D91: 0 | E91: =Genanskaffelsespriser!$D169 -> 7732 | F91: 0 | G91: 0
A92: Ventiler på Ø 50mm < Ledningsnet ≤ Ø110 mm | B92: stk. | C92: =Genanskaffelsespriser!E170 -> 75 | D92: 0 | E92: =Genanskaffelsespriser!$D170 -> 8980 | F92: 0 | G92: 0
A93: Ventiler på Ø110 mm < Ledningsnet ≤ Ø 250 mm | B93: stk. | C93: =Genanskaffelsespriser!E171 -> 75 | D93: 0 | E93: =Genanskaffelsespriser!$D171 -> 21736 | F93: 0 | G93: 0
A94: Ventiler på Ø 250 mm < Ledningsnet ≤ Ø 500mm | B94: stk. | C94: =Genanskaffelsespriser!E172 -> 75 | D94: 0 | E94: =Genanskaffelsespriser!$D172 -> 78299 | F94: 0 | G94: 0
A95: Ventiler på ledningsnet > Ø 500 mm | B95: stk. | C95: =Genanskaffelsespriser!E173 -> 75 | D95: 0 | E95: =Genanskaffelsespriser!$D173 -> 223733 | F95: 0 | G95: 0
A96: Pumpestationer, bygværker og bassiner 1
A97: Pumpestation (inkl. evt. hydrofor)/trykforøger, Konstruktioner | B97: m³/h | C97: =+Genanskaffelsespriser!$E$175 -> 50 | D97: 0 | E97: =IF(COUNTIF(D97:D97,"<>0")<=1,IF((SUM(D97:D97))>0,((+HLOOKUP((SUM(D97:D97)),Priser!$E$342:$H$344,2)+((SUM(D97:D97))-HLOOKUP((SUM(D97:D97)),Priser!$E$342:$H$344,1))*HLOOKUP((SUM(D97:D97)),Priser!$E$342:$H$344,3))*Priser!$P$341)/(SUM(D97:D97)),0)*(1+Genanskaffelsespriser!$D$196),"Fejl") -> 0 | F97: 0 | G97: 0
A98: Pumpestation (inkl. evt. hydrofor)/trykforøger, Mek./EL | B98: m³/h | C98: =+Genanskaffelsespriser!$E$176 -> 25 | D98: 0 | E98: =IF(COUNTIF(D98:D98,"<>0")<=1,IF((SUM(D98:D98))>0,((+HLOOKUP((SUM(D98:D98)),Priser!$E$342:$H$344,2)+((SUM(D98:D98))-HLOOKUP((SUM(D98:D98)),Priser!$E$342:$H$344,1))*HLOOKUP((SUM(D98:D98)),Priser!$E$342:$H$344,3))*Priser!$Q$341)/(SUM(D98:D98)),0)*(1+Genanskaffelsespriser!$D$196),"Fejl") -> 0 | F98: 0 | G98: 0
A99: Pumpestation (inkl. evt. hydrofor)/trykforøger, SRO | B99: m³/h | C99: =+Genanskaffelsespriser!$E$177 -> 10 | D99: 0 | E99: =IF(COUNTIF(D99:D99,"<>0")<=1,IF((SUM(D99:D99))>0,((+HLOOKUP((SUM(D99:D99)),Priser!$E$342:$H$344,2)+((SUM(D99:D99))-HLOOKUP((SUM(D99:D99)),Priser!$E$342:$H$344,1))*HLOOKUP((SUM(D99:D99)),Priser!$E$342:$H$344,3))*Priser!$R$341)/(SUM(D99:D99)),0)*(1+Genanskaffelsespriser!$D$196),"Fejl") -> 0 | F99: 0 | G99: 0
A100: Beholderanlæg - højdebeholder | B100: m³ | C100: =+Genanskaffelsespriser!$E$178 -> 50 | D100: 0 | E100: =IF(COUNTIF(D100:D100,"<>0")<=1,IF((SUM(D100:D100))>0,(+HLOOKUP((SUM(D100:D100)),Priser!$E$168:$J$170,2)+((SUM(D100:D100))-HLOOKUP((SUM(D100:D100)),Priser!$E$168:$J$170,1))*HLOOKUP((SUM(D100:D100)),Priser!$E$168:$J$170,3))/(SUM(D100:D100)),0)*(1+Genanskaffelsespriser!$D$196),"Fejl") -> 0 | F100: 0 | G100: 0
A101: Beholderanlæg - vandtårn | B101: m³ | C101: =+Genanskaffelsespriser!$E$179 -> 50 | D101: 0 | E101: =IF(COUNTIF(D101:D101,"<>0")<=1,IF((SUM(D101:D101))>0,(+HLOOKUP((SUM(D101:D101)),Priser!$E$191:$J$193,2)+((SUM(D101:D101))-HLOOKUP((SUM(D101:D101)),Priser!$E$191:$J$193,1))*HLOOKUP((SUM(D101:D101)),Priser!$E$191:$J$193,3))/(SUM(D101:D101)),0)*(1+Genanskaffelsespriser!$D$196),"Fejl") -> 0 | F101: 0 | G101: 0
A102: Pumpestationer, bygværker og bassiner 2
A103: Pumpestation (inkl. evt. hydrofor)/trykforøger, Konstruktioner | B103: m³/h | C103: =+Genanskaffelsespriser!$E$175 -> 50 | D103: 0 | E103: =IF(COUNTIF(D103:D103,"<>0")<=1,IF((SUM(D103:D103))>0,((+HLOOKUP((SUM(D103:D103)),Priser!$E$342:$H$344,2)+((SUM(D103:D103))-HLOOKUP((SUM(D103:D103)),Priser!$E$342:$H$344,1))*HLOOKUP((SUM(D103:D103)),Priser!$E$342:$H$344,3))*Priser!$P$341)/(SUM(D103:D103)),0)*(1+Genanskaffelsespriser!$D$196),"Fejl") -> 0 | F103: 0 | G103: 0
A104: Pumpestation (inkl. evt. hydrofor)/trykforøger, Mek./EL | B104: m³/h | C104: =+Genanskaffelsespriser!$E$176 -> 25 | D104: 0 | E104: =IF(COUNTIF(D104:D104,"<>0")<=1,IF((SUM(D104:D104))>0,((+HLOOKUP((SUM(D104:D104)),Priser!$E$342:$H$344,2)+((SUM(D104:D104))-HLOOKUP((SUM(D104:D104)),Priser!$E$342:$H$344,1))*HLOOKUP((SUM(D104:D104)),Priser!$E$342:$H$344,3))*Priser!$Q$341)/(SUM(D104:D104)),0)*(1+Genanskaffelsespriser!$D$196),"Fejl") -> 0 | F104: 0 | G104: 0
A105: Pumpestation (inkl. evt. hydrofor)/trykforøger, SRO | B105: m³/h | C105: =+Genanskaffelsespriser!$E$177 -> 10 | D105: 0 | E105: =IF(COUNTIF(D105:D105,"<>0")<=1,IF((SUM(D105:D105))>0,((+HLOOKUP((SUM(D105:D105)),Priser!$E$342:$H$344,2)+((SUM(D105:D105))-HLOOKUP((SUM(D105:D105)),Priser!$E$342:$H$344,1))*HLOOKUP((SUM(D105:D105)),Priser!$E$342:$H$344,3))*Priser!$R$341)/(SUM(D105:D105)),0)*(1+Genanskaffelsespriser!$D$196),"Fejl") -> 0 | F105: 0 | G105: 0
A106: Beholderanlæg - højdebeholder | B106: m³ | C106: =+Genanskaffelsespriser!$E$178 -> 50 | D106: 0 | E106: =IF(COUNTIF(D106:D106,"<>0")<=1,IF((SUM(D106:D106))>0,(+HLOOKUP((SUM(D106:D106)),Priser!$E$168:$J$170,2)+((SUM(D106:D106))-HLOOKUP((SUM(D106:D106)),Priser!$E$168:$J$170,1))*HLOOKUP((SUM(D106:D106)),Priser!$E$168:$J$170,3))/(SUM(D106:D106)),0)*(1+Genanskaffelsespriser!$D$196),"Fejl") -> 0 | F106: 0 | G106: 0
A107: Beholderanlæg - vandtårn | B107: m³ | C107: =+Genanskaffelsespriser!$E$179 -> 50 | D107: 0 | E107: =IF(COUNTIF(D107:D107,"<>0")<=1,IF((SUM(D107:D107))>0,(+HLOOKUP((SUM(D107:D107)),Priser!$E$191:$J$193,2)+((SUM(D107:D107))-HLOOKUP((SUM(D107:D107)),Priser!$E$191:$J$193,1))*HLOOKUP((SUM(D107:D107)),Priser!$E$191:$J$193,3))/(SUM(D107:D107)),0)*(1+Genanskaffelsespriser!$D$196),"Fejl") -> 0 | F107: 0 | G107: 0
A108: Pumpestationer, bygværker og bassiner 3
A109: Pumpestation (inkl. evt. hydrofor)/trykforøger, Konstruktioner | B109: m³/h | C109: =+Genanskaffelsespriser!$E$175 -> 50 | D109: 0 | E109: =IF(COUNTIF(D109:D109,"<>0")<=1,IF((SUM(D109:D109))>0,((+HLOOKUP((SUM(D109:D109)),Priser!$E$342:$H$344,2)+((SUM(D109:D109))-HLOOKUP((SUM(D109:D109)),Priser!$E$342:$H$344,1))*HLOOKUP((SUM(D109:D109)),Priser!$E$342:$H$344,3))*Priser!$P$341)/(SUM(D109:D109)),0)*(1+Genanskaffelsespriser!$D$196),"Fejl") -> 0 | F109: =D109*E109 -> 0 | G109: =F109/C109 -> 0
A110: Pumpestation (inkl. evt. hydrofor)/trykforøger, Mek./EL | B110: m³/h | C110: =+Genanskaffelsespriser!$E$176 -> 25 | D110: 0 | E110: =IF(COUNTIF(D110:D110,"<>0")<=1,IF((SUM(D110:D110))>0,((+HLOOKUP((SUM(D110:D110)),Priser!$E$342:$H$344,2)+((SUM(D110:D110))-HLOOKUP((SUM(D110:D110)),Priser!$E$342:$H$344,1))*HLOOKUP((SUM(D110:D110)),Priser!$E$342:$H$344,3))*Priser!$Q$341)/(SUM(D110:D110)),0)*(1+Genanskaffelsespriser!$D$196),"Fejl") -> 0 | F110: 0 | G110: 0
A111: Pumpestation (inkl. evt. hydrofor)/trykforøger, SRO | B111: m³/h | C111: =+Genanskaffelsespriser!$E$177 -> 10 | D111: 0 | E111: =IF(COUNTIF(D111:D111,"<>0")<=1,IF((SUM(D111:D111))>0,((+HLOOKUP((SUM(D111:D111)),Priser!$E$342:$H$344,2)+((SUM(D111:D111))-HLOOKUP((SUM(D111:D111)),Priser!$E$342:$H$344,1))*HLOOKUP((SUM(D111:D111)),Priser!$E$342:$H$344,3))*Priser!$R$341)/(SUM(D111:D111)),0)*(1+Genanskaffelsespriser!$D$196),"Fejl") -> 0 | F111: 0 | G111: 0
A112: Beholderanlæg - højdebeholder | B112: m³ | C112: =+Genanskaffelsespriser!$E$178 -> 50 | D112: 0 | E112: =IF(COUNTIF(D112:D112,"<>0")<=1,IF((SUM(D112:D112))>0,(+HLOOKUP((SUM(D112:D112)),Priser!$E$168:$J$170,2)+((SUM(D112:D112))-HLOOKUP((SUM(D112:D112)),Priser!$E$168:$J$170,1))*HLOOKUP((SUM(D112:D112)),Priser!$E$168:$J$170,3))/(SUM(D112:D112)),0)*(1+Genanskaffelsespriser!$D$196),"Fejl") -> 0 | F112: 0 | G112: 0
A113: Beholderanlæg - vandtårn | B113: m³ | C113: =+Genanskaffelsespriser!$E$179 -> 50 | D113: 0 | E113: =IF(COUNTIF(D113:D113,"<>0")<=1,IF((SUM(D113:D113))>0,(+HLOOKUP((SUM(D113:D113)),Priser!$E$191:$J$193,2)+((SUM(D113:D113))-HLOOKUP((SUM(D113:D113)),Priser!$E$191:$J$193,1))*HLOOKUP((SUM(D113:D113)),Priser!$E$191:$J$193,3))/(SUM(D113:D113)),0)*(1+Genanskaffelsespriser!$D$196),"Fejl") -> 0 | F113: 0 | G113: 0
A114: Pumpestationer, bygværker og bassiner 4
A115: Pumpestation (inkl. evt. hydrofor)/trykforøger, Konstruktioner | B115: m³/h | C115: =+Genanskaffelsespriser!$E$175 -> 50 | D115: 0 | E115: =IF(COUNTIF(D115:D115,"<>0")<=1,IF((SUM(D115:D115))>0,((+HLOOKUP((SUM(D115:D115)),Priser!$E$342:$H$344,2)+((SUM(D115:D115))-HLOOKUP((SUM(D115:D115)),Priser!$E$342:$H$344,1))*HLOOKUP((SUM(D115:D115)),Priser!$E$342:$H$344,3))*Priser!$P$341)/(SUM(D115:D115)),0)*(1+Genanskaffelsespriser!$D$196),"Fejl") -> 0 | F115: =D115*E115 -> 0 | G115: =F115/C115 -> 0
A116: Pumpestation (inkl. evt. hydrofor)/trykforøger, Mek./EL | B116: m³/h | C116: =+Genanskaffelsespriser!$E$176 -> 25 | D116: 0 | E116: =IF(COUNTIF(D116:D116,"<>0")<=1,IF((SUM(D116:D116))>0,((+HLOOKUP((SUM(D116:D116)),Priser!$E$342:$H$344,2)+((SUM(D116:D116))-HLOOKUP((SUM(D116:D116)),Priser!$E$342:$H$344,1))*HLOOKUP((SUM(D116:D116)),Priser!$E$342:$H$344,3))*Priser!$Q$341)/(SUM(D116:D116)),0)*(1+Genanskaffelsespriser!$D$196),"Fejl") -> 0 | F116: 0 | G116: 0
A117: Pumpestation (inkl. evt. hydrofor)/trykforøger, SRO | B117: m³/h | C117: =+Genanskaffelsespriser!$E$177 -> 10 | D117: 0 | E117: =IF(COUNTIF(D117:D117,"<>0")<=1,IF((SUM(D117:D117))>0,((+HLOOKUP((SUM(D117:D117)),Priser!$E$342:$H$344,2)+((SUM(D117:D117))-HLOOKUP((SUM(D117:D117)),Priser!$E$342:$H$344,1))*HLOOKUP((SUM(D117:D117)),Priser!$E$342:$H$344,3))*Priser!$R$341)/(SUM(D117:D117)),0)*(1+Genanskaffelsespriser!$D$196),"Fejl") -> 0 | F117: 0 | G117: 0
A118: Beholderanlæg - højdebeholder | B118: m³ | C118: =+Genanskaffelsespriser!$E$178 -> 50 | D118: 0 | E118: =IF(COUNTIF(D118:D118,"<>0")<=1,IF((SUM(D118:D118))>0,(+HLOOKUP((SUM(D118:D118)),Priser!$E$168:$J$170,2)+((SUM(D118:D118))-HLOOKUP((SUM(D118:D118)),Priser!$E$168:$J$170,1))*HLOOKUP((SUM(D118:D118)),Priser!$E$168:$J$170,3))/(SUM(D118:D118)),0)*(1+Genanskaffelsespriser!$D$196),"Fejl") -> 0 | F118: 0 | G118: 0
A119: Beholderanlæg - vandtårn | B119: m³ | C119: =+Genanskaffelsespriser!$E$179 -> 50 | D119: 0 | E119: =IF(COUNTIF(D119:D119,"<>0")<=1,IF((SUM(D119:D119))>0,(+HLOOKUP((SUM(D119:D119)),Priser!$E$191:$J$193,2)+((SUM(D119:D119))-HLOOKUP((SUM(D119:D119)),Priser!$E$191:$J$193,1))*HLOOKUP((SUM(D119:D119)),Priser!$E$191:$J$193,3))/(SUM(D119:D119)),0)*(1+Genanskaffelsespriser!$D$196),"Fejl") -> 0 | F119: 0 | G119: 0
A120: Pumpestationer, bygværker og bassiner 5
A121: Pumpestation (inkl. evt. hydrofor)/trykforøger, Konstruktioner | B121: m³/h | C121: =+Genanskaffelsespriser!$E$175 -> 50 | D121: 0 | E121: =IF(COUNTIF(D121:D121,"<>0")<=1,IF((SUM(D121:D121))>0,((+HLOOKUP((SUM(D121:D121)),Priser!$E$342:$H$344,2)+((SUM(D121:D121))-HLOOKUP((SUM(D121:D121)),Priser!$E$342:$H$344,1))*HLOOKUP((SUM(D121:D121)),Priser!$E$342:$H$344,3))*Priser!$P$341)/(SUM(D121:D121)),0)*(1+Genanskaffelsespriser!$D$196),"Fejl") -> 0 | F121: =D121*E121 -> 0 | G121: =F121/C121 -> 0
A122: Pumpestation (inkl. evt. hydrofor)/trykforøger, Mek./EL | B122: m³/h | C122: =+Genanskaffelsespriser!$E$176 -> 25 | D122: 0 | E122: =IF(COUNTIF(D122:D122,"<>0")<=1,IF((SUM(D122:D122))>0,((+HLOOKUP((SUM(D122:D122)),Priser!$E$342:$H$344,2)+((SUM(D122:D122))-HLOOKUP((SUM(D122:D122)),Priser!$E$342:$H$344,1))*HLOOKUP((SUM(D122:D122)),Priser!$E$342:$H$344,3))*Priser!$Q$341)/(SUM(D122:D122)),0)*(1+Genanskaffelsespriser!$D$196),"Fejl") -> 0 | F122: 0 | G122: 0
A123: Pumpestation (inkl. evt. hydrofor)/trykforøger, SRO | B123: m³/h | C123: =+Genanskaffelsespriser!$E$177 -> 10 | D123: 0 | E123: =IF(COUNTIF(D123:D123,"<>0")<=1,IF((SUM(D123:D123))>0,((+HLOOKUP((SUM(D123:D123)),Priser!$E$342:$H$344,2)+((SUM(D123:D123))-HLOOKUP((SUM(D123:D123)),Priser!$E$342:$H$344,1))*HLOOKUP((SUM(D123:D123)),Priser!$E$342:$H$344,3))*Priser!$R$341)/(SUM(D123:D123)),0)*(1+Genanskaffelsespriser!$D$196),"Fejl") -> 0 | F123: 0 | G123: 0
A124: Beholderanlæg - højdebeholder | B124: m³ | C124: =+Genanskaffelsespriser!$E$178 -> 50 | D124: 0 | E124: =IF(COUNTIF(D124:D124,"<>0")<=1,IF((SUM(D124:D124))>0,(+HLOOKUP((SUM(D124:D124)),Priser!$E$168:$J$170,2)+((SUM(D124:D124))-HLOOKUP((SUM(D124:D124)),Priser!$E$168:$J$170,1))*HLOOKUP((SUM(D124:D124)),Priser!$E$168:$J$170,3))/(SUM(D124:D124)),0)*(1+Genanskaffelsespriser!$D$196),"Fejl") -> 0 | F124: 0 | G124: 0
A125: Beholderanlæg - vandtårn | B125: m³ | C125: =+Genanskaffelsespriser!$E$179 -> 50 | D125: 0 | E125: =IF(COUNTIF(D125:D125,"<>0")<=1,IF((SUM(D125:D125))>0,(+HLOOKUP((SUM(D125:D125)),Priser!$E$191:$J$193,2)+((SUM(D125:D125))-HLOOKUP((SUM(D125:D125)),Priser!$E$191:$J$193,1))*HLOOKUP((SUM(D125:D125)),Priser!$E$191:$J$193,3))/(SUM(D125:D125)),0)*(1+Genanskaffelsespriser!$D$196),"Fejl") -> 0 | F125: 0 | G125: 0
A126: Pumpestationer, bygværker og bassiner 6
A127: Pumpestation (inkl. evt. hydrofor)/trykforøger, Konstruktioner | B127: m³/h | C127: =+Genanskaffelsespriser!$E$175 -> 50 | D127: 0 | E127: =IF(COUNTIF(D127:D127,"<>0")<=1,IF((SUM(D127:D127))>0,((+HLOOKUP((SUM(D127:D127)),Priser!$E$342:$H$344,2)+((SUM(D127:D127))-HLOOKUP((SUM(D127:D127)),Priser!$E$342:$H$344,1))*HLOOKUP((SUM(D127:D127)),Priser!$E$342:$H$344,3))*Priser!$P$341)/(SUM(D127:D127)),0)*(1+Genanskaffelsespriser!$D$196),"Fejl") -> 0 | F127: =D127*E127 -> 0 | G127: =F127/C127 -> 0
A128: Pumpestation (inkl. evt. hydrofor)/trykforøger, Mek./EL | B128: m³/h | C128: =+Genanskaffelsespriser!$E$176 -> 25 | D128: 0 | E128: =IF(COUNTIF(D128:D128,"<>0")<=1,IF((SUM(D128:D128))>0,((+HLOOKUP((SUM(D128:D128)),Priser!$E$342:$H$344,2)+((SUM(D128:D128))-HLOOKUP((SUM(D128:D128)),Priser!$E$342:$H$344,1))*HLOOKUP((SUM(D128:D128)),Priser!$E$342:$H$344,3))*Priser!$Q$341)/(SUM(D128:D128)),0)*(1+Genanskaffelsespriser!$D$196),"Fejl") -> 0 | F128: 0 | G128: 0
A129: Pumpestation (inkl. evt. hydrofor)/trykforøger, SRO | B129: m³/h | C129: =+Genanskaffelsespriser!$E$177 -> 10 | D129: 0 | E129: =IF(COUNTIF(D129:D129,"<>0")<=1,IF((SUM(D129:D129))>0,((+HLOOKUP((SUM(D129:D129)),Priser!$E$342:$H$344,2)+((SUM(D129:D129))-HLOOKUP((SUM(D129:D129)),Priser!$E$342:$H$344,1))*HLOOKUP((SUM(D129:D129)),Priser!$E$342:$H$344,3))*Priser!$R$341)/(SUM(D129:D129)),0)*(1+Genanskaffelsespriser!$D$196),"Fejl") -> 0 | F129: 0 | G129: 0
A130: Beholderanlæg - højdebeholder | B130: m³ | C130: =+Genanskaffelsespriser!$E$178 -> 50 | D130: 0 | E130: =IF(COUNTIF(D130:D130,"<>0")<=1,IF((SUM(D130:D130))>0,(+HLOOKUP((SUM(D130:D130)),Priser!$E$168:$J$170,2)+((SUM(D130:D130))-HLOOKUP((SUM(D130:D130)),Priser!$E$168:$J$170,1))*HLOOKUP((SUM(D130:D130)),Priser!$E$168:$J$170,3))/(SUM(D130:D130)),0)*(1+Genanskaffelsespriser!$D$196),"Fejl") -> 0 | F130: 0 | G130: 0
A131: Beholderanlæg - vandtårn | B131: m³ | C131: =+Genanskaffelsespriser!$E$179 -> 50 | D131: 0 | E131: =IF(COUNTIF(D131:D131,"<>0")<=1,IF((SUM(D131:D131))>0,(+HLOOKUP((SUM(D131:D131)),Priser!$E$191:$J$193,2)+((SUM(D131:D131))-HLOOKUP((SUM(D131:D131)),Priser!$E$191:$J$193,1))*HLOOKUP((SUM(D131:D131)),Priser!$E$191:$J$193,3))/(SUM(D131:D131)),0)*(1+Genanskaffelsespriser!$D$196),"Fejl") -> 0 | F131: 0 | G131: 0
A132: Pumpestationer, bygværker og bassiner 7
A133: Pumpestation (inkl. evt. hydrofor)/trykforøger, Konstruktioner | B133: m³/h | C133: =+Genanskaffelsespriser!$E$175 -> 50 | D133: 0 | E133: =IF(COUNTIF(D133:D133,"<>0")<=1,IF((SUM(D133:D133))>0,((+HLOOKUP((SUM(D133:D133)),Priser!$E$342:$H$344,2)+((SUM(D133:D133))-HLOOKUP((SUM(D133:D133)),Priser!$E$342:$H$344,1))*HLOOKUP((SUM(D133:D133)),Priser!$E$342:$H$344,3))*Priser!$P$341)/(SUM(D133:D133)),0)*(1+Genanskaffelsespriser!$D$196),"Fejl") -> 0 | F133: =D133*E133 -> 0 | G133: =F133/C133 -> 0
A134: Pumpestation (inkl. evt. hydrofor)/trykforøger, Mek./EL | B134: m³/h | C134: =+Genanskaffelsespriser!$E$176 -> 25 | D134: 0 | E134: =IF(COUNTIF(D134:D134,"<>0")<=1,IF((SUM(D134:D134))>0,((+HLOOKUP((SUM(D134:D134)),Priser!$E$342:$H$344,2)+((SUM(D134:D134))-HLOOKUP((SUM(D134:D134)),Priser!$E$342:$H$344,1))*HLOOKUP((SUM(D134:D134)),Priser!$E$342:$H$344,3))*Priser!$Q$341)/(SUM(D134:D134)),0)*(1+Genanskaffelsespriser!$D$196),"Fejl") -> 0 | F134: 0 | G134: 0
A135: Pumpestation (inkl. evt. hydrofor)/trykforøger, SRO | B135: m³/h | C135: =+Genanskaffelsespriser!$E$177 -> 10 | D135: 0 | E135: =IF(COUNTIF(D135:D135,"<>0")<=1,IF((SUM(D135:D135))>0,((+HLOOKUP((SUM(D135:D135)),Priser!$E$342:$H$344,2)+((SUM(D135:D135))-HLOOKUP((SUM(D135:D135)),Priser!$E$342:$H$344,1))*HLOOKUP((SUM(D135:D135)),Priser!$E$342:$H$344,3))*Priser!$R$341)/(SUM(D135:D135)),0)*(1+Genanskaffelsespriser!$D$196),"Fejl") -> 0 | F135: 0 | G135: 0
A136: Beholderanlæg - højdebeholder | B136: m³ | C136: =+Genanskaffelsespriser!$E$178 -> 50 | D136: 0 | E136: =IF(COUNTIF(D136:D136,"<>0")<=1,IF((SUM(D136:D136))>0,(+HLOOKUP((SUM(D136:D136)),Priser!$E$168:$J$170,2)+((SUM(D136:D136))-HLOOKUP((SUM(D136:D136)),Priser!$E$168:$J$170,1))*HLOOKUP((SUM(D136:D136)),Priser!$E$168:$J$170,3))/(SUM(D136:D136)),0)*(1+Genanskaffelsespriser!$D$196),"Fejl") -> 0 | F136: 0 | G136: 0
A137: Beholderanlæg - vandtårn | B137: m³ | C137: =+Genanskaffelsespriser!$E$179 -> 50 | D137: 0 | E137: =IF(COUNTIF(D137:D137,"<>0")<=1,IF((SUM(D137:D137))>0,(+HLOOKUP((SUM(D137:D137)),Priser!$E$191:$J$193,2)+((SUM(D137:D137))-HLOOKUP((SUM(D137:D137)),Priser!$E$191:$J$193,1))*HLOOKUP((SUM(D137:D137)),Priser!$E$191:$J$193,3))/(SUM(D137:D137)),0)*(1+Genanskaffelsespriser!$D$196),"Fejl") -> 0 | F137: 0 | G137: 0
A138: Pumpestationer, bygværker og bassiner 8
A139: Pumpestation (inkl. evt. hydrofor)/trykforøger, Konstruktioner | B139: m³/h | C139: =+Genanskaffelsespriser!$E$175 -> 50 | D139: 0 | E139: =IF(COUNTIF(D139:D139,"<>0")<=1,IF((SUM(D139:D139))>0,((+HLOOKUP((SUM(D139:D139)),Priser!$E$342:$H$344,2)+((SUM(D139:D139))-HLOOKUP((SUM(D139:D139)),Priser!$E$342:$H$344,1))*HLOOKUP((SUM(D139:D139)),Priser!$E$342:$H$344,3))*Priser!$P$341)/(SUM(D139:D139)),0)*(1+Genanskaffelsespriser!$D$196),"Fejl") -> 0 | F139: =D139*E139 -> 0 | G139: =F139/C139 -> 0
A140: Pumpestation (inkl. evt. hydrofor)/trykforøger, Mek./EL | B140: m³/h | C140: =+Genanskaffelsespriser!$E$176 -> 25 | D140: 0 | E140: =IF(COUNTIF(D140:D140,"<>0")<=1,IF((SUM(D140:D140))>0,((+HLOOKUP((SUM(D140:D140)),Priser!$E$342:$H$344,2)+((SUM(D140:D140))-HLOOKUP((SUM(D140:D140)),Priser!$E$342:$H$344,1))*HLOOKUP((SUM(D140:D140)),Priser!$E$342:$H$344,3))*Priser!$Q$341)/(SUM(D140:D140)),0)*(1+Genanskaffelsespriser!$D$196),"Fejl") -> 0 | F140: 0 | G140: 0
A141: Pumpestation (inkl. evt. hydrofor)/trykforøger, SRO | B141: m³/h | C141: =+Genanskaffelsespriser!$E$177 -> 10 | D141: 0 | E141: =IF(COUNTIF(D141:D141,"<>0")<=1,IF((SUM(D141:D141))>0,((+HLOOKUP((SUM(D141:D141)),Priser!$E$342:$H$344,2)+((SUM(D141:D141))-HLOOKUP((SUM(D141:D141)),Priser!$E$342:$H$344,1))*HLOOKUP((SUM(D141:D141)),Priser!$E$342:$H$344,3))*Priser!$R$341)/(SUM(D141:D141)),0)*(1+Genanskaffelsespriser!$D$196),"Fejl") -> 0 | F141: 0 | G141: 0
A142: Beholderanlæg - højdebeholder | B142: m³ | C142: =+Genanskaffelsespriser!$E$178 -> 50 | D142: 0 | E142: =IF(COUNTIF(D142:D142,"<>0")<=1,IF((SUM(D142:D142))>0,(+HLOOKUP((SUM(D142:D142)),Priser!$E$168:$J$170,2)+((SUM(D142:D142))-HLOOKUP((SUM(D142:D142)),Priser!$E$168:$J$170,1))*HLOOKUP((SUM(D142:D142)),Priser!$E$168:$J$170,3))/(SUM(D142:D142)),0)*(1+Genanskaffelsespriser!$D$196),"Fejl") -> 0 | F142: 0 | G142: 0
A143: Beholderanlæg - vandtårn | B143: m³ | C143: =+Genanskaffelsespriser!$E$179 -> 50 | D143: 0 | E143: =IF(COUNTIF(D143:D143,"<>0")<=1,IF((SUM(D143:D143))>0,(+HLOOKUP((SUM(D143:D143)),Priser!$E$191:$J$193,2)+((SUM(D143:D143))-HLOOKUP((SUM(D143:D143)),Priser!$E$191:$J$193,1))*HLOOKUP((SUM(D143:D143)),Priser!$E$191:$J$193,3))/(SUM(D143:D143)),0)*(1+Genanskaffelsespriser!$D$196),"Fejl") -> 0 | F143: 0 | G143: 0
A144: Pumpestationer, bygværker og bassiner 9
A145: Pumpestation (inkl. evt. hydrofor)/trykforøger, Konstruktioner | B145: m³/h | C145: =+Genanskaffelsespriser!$E$175 -> 50 | D145: 0 | E145: =IF(COUNTIF(D145:D145,"<>0")<=1,IF((SUM(D145:D145))>0,((+HLOOKUP((SUM(D145:D145)),Priser!$E$342:$H$344,2)+((SUM(D145:D145))-HLOOKUP((SUM(D145:D145)),Priser!$E$342:$H$344,1))*HLOOKUP((SUM(D145:D145)),Priser!$E$342:$H$344,3))*Priser!$P$341)/(SUM(D145:D145)),0)*(1+Genanskaffelsespriser!$D$196),"Fejl") -> 0 | F145: =D145*E145 -> 0 | G145: =F145/C145 -> 0
A146: Pumpestation (inkl. evt. hydrofor)/trykforøger, Mek./EL | B146: m³/h | C146: =+Genanskaffelsespriser!$E$176 -> 25 | D146: 0 | E146: =IF(COUNTIF(D146:D146,"<>0")<=1,IF((SUM(D146:D146))>0,((+HLOOKUP((SUM(D146:D146)),Priser!$E$342:$H$344,2)+((SUM(D146:D146))-HLOOKUP((SUM(D146:D146)),Priser!$E$342:$H$344,1))*HLOOKUP((SUM(D146:D146)),Priser!$E$342:$H$344,3))*Priser!$Q$341)/(SUM(D146:D146)),0)*(1+Genanskaffelsespriser!$D$196),"Fejl") -> 0 | F146: 0 | G146: 0
A147: Pumpestation (inkl. evt. hydrofor)/trykforøger, SRO | B147: m³/h | C147: =+Genanskaffelsespriser!$E$177 -> 10 | D147: 0 | E147: =IF(COUNTIF(D147:D147,"<>0")<=1,IF((SUM(D147:D147))>0,((+HLOOKUP((SUM(D147:D147)),Priser!$E$342:$H$344,2)+((SUM(D147:D147))-HLOOKUP((SUM(D147:D147)),Priser!$E$342:$H$344,1))*HLOOKUP((SUM(D147:D147)),Priser!$E$342:$H$344,3))*Priser!$R$341)/(SUM(D147:D147)),0)*(1+Genanskaffelsespriser!$D$196),"Fejl") -> 0 | F147: 0 | G147: 0
A148: Beholderanlæg - højdebeholder | B148: m³ | C148: =+Genanskaffelsespriser!$E$178 -> 50 | D148: 0 | E148: =IF(COUNTIF(D148:D148,"<>0")<=1,IF((SUM(D148:D148))>0,(+HLOOKUP((SUM(D148:D148)),Priser!$E$168:$J$170,2)+((SUM(D148:D148))-HLOOKUP((SUM(D148:D148)),Priser!$E$168:$J$170,1))*HLOOKUP((SUM(D148:D148)),Priser!$E$168:$J$170,3))/(SUM(D148:D148)),0)*(1+Genanskaffelsespriser!$D$196),"Fejl") -> 0 | F148: 0 | G148: 0
A149: Beholderanlæg - vandtårn | B149: m³ | C149: =+Genanskaffelsespriser!$E$179 -> 50 | D149: 0 | E149: =IF(COUNTIF(D149:D149,"<>0")<=1,IF((SUM(D149:D149))>0,(+HLOOKUP((SUM(D149:D149)),Priser!$E$191:$J$193,2)+((SUM(D149:D149))-HLOOKUP((SUM(D149:D149)),Priser!$E$191:$J$193,1))*HLOOKUP((SUM(D149:D149)),Priser!$E$191:$J$193,3))/(SUM(D149:D149)),0)*(1+Genanskaffelsespriser!$D$196),"Fejl") -> 0 | F149: 0 | G149: 0
A150: Pumpestationer, bygværker og bassiner 10
A151: Pumpestation (inkl. evt. hydrofor)/trykforøger, Konstruktioner | B151: m³/h | C151: =+Genanskaffelsespriser!$E$175 -> 50 | D151: 0 | E151: =IF(COUNTIF(D151:D151,"<>0")<=1,IF((SUM(D151:D151))>0,((+HLOOKUP((SUM(D151:D151)),Priser!$E$342:$H$344,2)+((SUM(D151:D151))-HLOOKUP((SUM(D151:D151)),Priser!$E$342:$H$344,1))*HLOOKUP((SUM(D151:D151)),Priser!$E$342:$H$344,3))*Priser!$P$341)/(SUM(D151:D151)),0)*(1+Genanskaffelsespriser!$D$196),"Fejl") -> 0 | F151: =D151*E151 -> 0 | G151: =F151/C151 -> 0
A152: Pumpestation (inkl. evt. hydrofor)/trykforøger, Mek./EL | B152: m³/h | C152: =+Genanskaffelsespriser!$E$176 -> 25 | D152: 0 | E152: =IF(COUNTIF(D152:D152,"<>0")<=1,IF((SUM(D152:D152))>0,((+HLOOKUP((SUM(D152:D152)),Priser!$E$342:$H$344,2)+((SUM(D152:D152))-HLOOKUP((SUM(D152:D152)),Priser!$E$342:$H$344,1))*HLOOKUP((SUM(D152:D152)),Priser!$E$342:$H$344,3))*Priser!$Q$341)/(SUM(D152:D152)),0)*(1+Genanskaffelsespriser!$D$196),"Fejl") -> 0 | F152: 0 | G152: 0
A153: Pumpestation (inkl. evt. hydrofor)/trykforøger, SRO | B153: m³/h | C153: =+Genanskaffelsespriser!$E$177 -> 10 | D153: 0 | E153: =IF(COUNTIF(D153:D153,"<>0")<=1,IF((SUM(D153:D153))>0,((+HLOOKUP((SUM(D153:D153)),Priser!$E$342:$H$344,2)+((SUM(D153:D153))-HLOOKUP((SUM(D153:D153)),Priser!$E$342:$H$344,1))*HLOOKUP((SUM(D153:D153)),Priser!$E$342:$H$344,3))*Priser!$R$341)/(SUM(D153:D153)),0)*(1+Genanskaffelsespriser!$D$196),"Fejl") -> 0 | F153: 0 | G153: 0
A154: Beholderanlæg - højdebeholder | B154: m³ | C154: =+Genanskaffelsespriser!$E$178 -> 50 | D154: 0 | E154: =IF(COUNTIF(D154:D154,"<>0")<=1,IF((SUM(D154:D154))>0,(+HLOOKUP((SUM(D154:D154)),Priser!$E$168:$J$170,2)+((SUM(D154:D154))-HLOOKUP((SUM(D154:D154)),Priser!$E$168:$J$170,1))*HLOOKUP((SUM(D154:D154)),Priser!$E$168:$J$170,3))/(SUM(D154:D154)),0)*(1+Genanskaffelsespriser!$D$196),"Fejl") -> 0 | F154: 0 | G154: 0
A155: Beholderanlæg - vandtårn | B155: m³ | C155: =+Genanskaffelsespriser!$E$179 -> 50 | D155: 0 | E155: =IF(COUNTIF(D155:D155,"<>0")<=1,IF((SUM(D155:D155))>0,(+HLOOKUP((SUM(D155:D155)),Priser!$E$191:$J$193,2)+((SUM(D155:D155))-HLOOKUP((SUM(D155:D155)),Priser!$E$191:$J$193,1))*HLOOKUP((SUM(D155:D155)),Priser!$E$191:$J$193,3))/(SUM(D155:D155)),0)*(1+Genanskaffelsespriser!$D$196),"Fejl") -> 0 | F155: 0 | G155: 0
A156: Andre
A157: Afregningsmålere, mekaniske, | B157: stk. | C157: =Genanskaffelsespriser!E181 -> 8 | D157: 0 | E157: =Genanskaffelsespriser!$D181 -> 1300 | F157: 0 | G157: 0
A158: Afregningsmålere, elektroniske ≤ Ø 110mm (Qn 10) | B158: stk. | C158: =Genanskaffelsespriser!E182 -> 10 | D158: 0 | E158: =Genanskaffelsespriser!$D182 -> 20000 | F158: 0 | G158: 0
A159: Afregningsmålere, elektroniske > Ø110 mm | B159: stk. | C159: =Genanskaffelsespriser!E183 -> 10 | D159: 0 | E159: =Genanskaffelsespriser!$D183 -> 26000 | F159: 0 | G159: 0
A160: SRO-brønd/kvarterbrønd/sektionsbrønd, Konstruktioner | B160: stk. | C160: =Genanskaffelsespriser!E184 -> 50 | D160: 0 | E160: =Genanskaffelsespriser!$D184 -> 78845 | F160: 0 | G160: 0
A161: SRO-brønd/kvarterbrønd/sektionsbrønd, Mek./EL | B161: stk. | C161: =Genanskaffelsespriser!E185 -> 15 | D161: 0 | E161: =Genanskaffelsespriser!$D185 -> 90108 | F161: 0 | G161: 0
A162: SRO-brønd/kvarterbrønd/sektionsbrønd, SRO | B162: stk. | C162: =Genanskaffelsespriser!E186 -> 10 | D162: 0 | E162: =Genanskaffelsespriser!$D186 -> 56318 | F162: 0 | G162: 0

Sheet Fællesfunktionsanlæg
A1: FÆLLESFUNKTIONSANLÆG | B1: Enhed | C1: Standardlevetid | D1: Mængde | E1: Enhedspris | F1: Samlet værdi | G1: Afskrivning
A2: Andre
A3: Køretøjer, personbil | B3: stk. | C3: =Genanskaffelsespriser!E191 -> 5 | D3: 0 | E3: =Genanskaffelsespriser!$D191 -> 225000 | F3: =E3*D3 -> 0 | G3: =F3/C3 -> 0
A4: Køretøjer, små lastvogne (< 3.500 kg.) | B4: stk. | C4: =Genanskaffelsespriser!E192 -> 5 | D4: 0 | E4: =Genanskaffelsespriser!$D192 -> 250000 | F4: =E4*D4 -> 0 | G4: =F4/C4 -> 0
A5: Køretøjer, store lastvogne (> 3.500 kg.) | B5: stk. | C5: =Genanskaffelsespriser!E193 -> 5 | D5: 0 | E5: =Genanskaffelsespriser!$D193 -> 1300000 | F5: 0 | G5: 0
A6: Køretøjer, entreprenørmaskiner | B6: stk. | C6: =Genanskaffelsespriser!E194 -> 5 | D6: 0 | E6: =Genanskaffelsespriser!$D194 -> 400000 | F6: 0 | G6: 0

Sheet Genanskaffelsespriser (hidden)
B1: Genanskaffelsespriser | C1: Måleenhed | D1: Vægtet enhedspris | E1: Teknisk levetid
B3: Produktionsanlæg:
B4: Boringer:
B5: Boring (inkl. etablering, forerør, filter og prøvepumpning) | C5: kr./m. | D5: =2538 -> 2538 | E5: 30
B6: Råvandsstationer:
B7: Råvandsstation komplet montering og boringshus/tørbrønd | C7: kr./stk. | D7: =57810*(1+D196) -> 57810 | E7: 30
B8: Instrumenter (flowmåler+tryk transducer+alarmer) | C8: kr./stk. | D8: =65241*(1+D196) -> 65241 | E8: 10
B9: Pumpe inkl. stigrør og forerørsforsejlinger mv. | C9: kr/m³/h | D9: Variabel | E9: 15
B10: Erstatninger (OBS ingen øst-tillæg eller øvrige tillæg) | C10: kr/stk | D10: =44911 -> 44911 | E10: 30
B11: Hegn | C11: kr./stk. | D11: =85428*(1+D196) -> 85428 | E11: 15
B12: Elanlæg | C12: kr./boring | D12: =108657*(1+D196) -> 108657 | E12: 20
B13: SRO anlæg | C13: kr./boring | D13: =29256*(1+D196) -> 29256 | E13: 10
B14: Råvandsledninger - Land
B15: Ø 50mm < Ledningsnet ≤ Ø110 mm | C15: kr./m. | D15: =354*(1+D196) -> 354 | E15: 75
B16: Ø110 mm < Ledningsnet ≤ Ø 250 mm | C16: kr./m. | D16: =1018*(1+D196) -> 1018 | E16: 75
B17: Ø 250 mm < Ledningsnet ≤ Ø 500mm | C17: kr./m. | D17: =2335*(1+D196) -> 2335 | E17: 75
B18: Ledningsnet > Ø 500 mm | C18: kr./m. | D18: =5029*(1+D196) -> 5029 | E18: 75
B19: Råvandsledninger - By
B20: Ø 50mm < Ledningsnet ≤ Ø110 mm | C20: kr./m. | D20: =958*(1+D196) -> 958 | E20: 75
B21: Ø110 mm < Ledningsnet ≤ Ø 250 mm | C21: kr./m. | D21: =1684*(1+D196) -> 1684 | E21: 75
B22: Ø 250 mm < Ledningsnet ≤ Ø 500mm | C22: kr./m. | D22: =3153*(1+D196) -> 3153 | E22: 75
B23: Ledningsnet > Ø 500 mm | C23: kr./m. | D23: =5998*(1+D196) -> 5998 | E23: 75
B24: Råvandsledninger - City
B25: Ø 50mm < Ledningsnet ≤ Ø110 mm | C25: kr./m. | D25: =1495*(1+D196) -> 1495 | E25: 75
B26: Ø110 mm < Ledningsnet ≤ Ø 250 mm | C26: kr./m. | D26: =2192*(1+D196) -> 2192 | E26: 75
B27: Ø 250 mm < Ledningsnet ≤ Ø 500mm | C27: kr./m. | D27: =3773*(1+D196) -> 3773 | E27: 75
B28: Ledningsnet > Ø 500 mm | C28: kr./m. | D28: =6732*(1+D196) -> 6732 | E28: 75
B29: Vandværker: Behandling og Udpumpning
B30: Beluftningsanlæg, iltningstrappe, Kontruktioner | C30: kr/m³/h | D30: Variabel | E30: 50
B31: Beluftningsanlæg, iltningstrappe, Mek./EL | C31: kr/m³/h | D31: Variabel | E31: 25
B32: Beluftningsanlæg, ika-beluftning, Kontruktioner | C32: kr/m³/h | D32: Variabel | E32: 50
B33: Beluftningsanlæg, ika-beluftning, Mek./EL | C33: kr/m³/h | D33: Variabel | E33: 25
B34: Beluftningsanlæg, bundbeluftbning, Kontruktioner | C34: kr/m³/h | D34: Variabel | E34: 50
B35: Beluftningsanlæg, bundbeluftbning, Mek./EL | C35: kr/m³/h | D35: Variabel | E35: 25
B36: Beluftningsanlæg, rislebakke, Kontruktioner | C36: kr/m³/h | D36: Variabel | E36: 50
B37: Beluftningsanlæg, rislebakke, Mek./EL | C37: kr/m³/h | D37: Variabel | E37: 25
B38: Beluftningsanlæg, kompressorbeluftning | C38: kr/m³/h | D38: Variabel | E38: 25
B39: Beluftningsanlæg, ren ilt | C39: kr/m³/h | D39: Variabel | E39: 25
B40: Behandlingsanlæg, kalk anlæg | C40: kr/m³/h | D40: Variabel | E40: 25
B41: Behandlingsanlæg, luddosering | C41: kr/m³/h | D41: Variabel | E41: 25
B42: Filteranlæg, åbne filtre, enkelt filtrering, Kontruktioner | C42: kr/m³/h | D42: Variabel | E42: 50
B43: Filteranlæg, åbne filtre, enkelt filtrering, Mek./EL | C43: kr/m³/h | D43: Variabel | E43: 25
B44: Filteranlæg, åbne filtre, dobbelt filtrering, Kontruktioner | C44: kr/m³/h | D44: Variabel | E44: 50
B45: Filteranlæg, åbne filtre, dobbelt filtrering, Mek./EL | C45: kr/m³/h | D45: Variabel | E45: 25
B46: Filteranlæg, trykfiltre, enkelt filtrering | C46: kr/m³/h | D46: Variabel | E46: 25
B47: Filteranlæg, trykfiltre, dobbelt filtrering | C47: kr/m³/h | D47: Variabel | E47: 25
B48: Rentvandsbeholder insitu støbt | C48: kr/m³ | D48: Variabel | E48: 50
B49: Rentvandsbeholder element | C49: kr/m³ | D49: Variabel | E49: 50
B50: Udpumpningsanlæg, rentvandspumper på vandværk | C50: kr/m³/h | D50: Variabel | E50: 25
B51: Udpumpningsanlæg, Freqvensomformer | C51: kr/kW | D51: Variabel | E51: 25
B52: Udpumpningsanlæg, Hydrofor | C52: kr/lilter | D52: Variabel | E52: =25 -> 25
B53: Skyllevand-/slamhåndteringsanlæg - lukkede betonbeholdere | C53: kr/m³ | D53: Variabel | E53: 50
B54: Skyllevand-/slamhåndteringsanl. - åbne med faste sider/bund | C54: kr/m³ | D54: Variabel | E54: 50
B55: Skyllevand-/slamhåndteringsanlæg - jordbassiner | C55: kr/m³ | D55: Variabel | E55: 50
B56: Skyllevandsbehandling, inkl. UV-filter mv., Mek./EL | C56: kr/m³/h | D56: Variabel | E56: 25
B57: Skyllevandsbehandling, inkl. UV-filter mv., SRO | C57: kr/m³/h | D57: Variabel | E57: 10
B58: Nødstrømsanlæg på vandværk | C58: kr/kW | D58: Variabel | E58: 25
B59: Elanlæg - vandværk | C59: kr./m³/h | D59: Variabel | E59: 25
B60: SRO-anlæg, vandværk | C60: kr./m³/h | D60: Variabel | E60: 10
B61: Bygninger:
B62: Etageareal vandbehandlingsbygning | C62: kr/m² | D62: =18108*(1+D196) -> 18108 | E62: 75
B63: Etageareal kontor og mandskabsfaciliteter | C63: kr/m² | D63: =19309*(1+D196) -> 19309 | E63: 75
B64: Værksted | C64: kr/m² | D64: =14921*(1+D196) -> 14921 | E64: 75
B65: Lager | C65: kr/m² | D65: =14921*(1+D196) -> 14921 | E65: 75
B66: Garage og rørlager | C66: kr/m² | D66: =10444*(1+D196) -> 10444 | E66: 75
B67: Bygning for trykforøgere | C67: kr/m² | D67: =20318*(1+D196) -> 20318 | E67: 75
B68: Laboratorium (bygning, inkl. inventar+udstyr), Kontruktioner | C68: kr/m² | D68: =20362*(1+D196) -> 20362 | E68: 75
B69: Laboratorium (bygning, inkl. inventar+udstyr), Mek./EL | C69: kr/m² | D69: =13575*(1+D196) -> 13575 | E69: 10
B70: Andre:
B71: Sikring (terror, hærværk), Mek./EL | C71: kr./stk. | D71: =6372*(1+D196) -> 6372 | E71: 25
B72: Sikring (terror, hærværk), SRO | C72: kr./stk. | D72: =14868*(1+D196) -> 14868 | E72: 10
B73: Sikring, mindre avanceret (hegne, porte), Mek./EL | C73: kr./stk. | D73: =26067*(1+D196) -> 26067 | E73: 25
B74: Sikring, mindre avanceret (hegne, porte), SRO | C74: kr./stk. | D74: =60823*(1+D196) -> 60823 | E74: 10
B75: Sikring, avanceret (hegne, porte og overvågningssystemer), Mek./EL | C75: kr./stk. | D75: =56318*(1+D196) -> 56318 | E75: 25
B76: Sikring, avanceret (hegne, porte og overvågningssystemer), SRO | C76: kr./stk. | D76: =225271*(1+D196) -> 225271 | E76: 10
B79: Distributionsanlæg:
A80: 75 | B80: Ledningsnet - Land
B81: Ledningsnet ≤ Ø50 mm | C81: kr./m. | D81: =529*(1+D196) -> 529 | E81: 75
B82: Ø 50mm < Ledningsnet ≤ Ø110 mm | C82: kr./m. | D82: =808*(1+D196) -> 808 | E82: =75 -> 75
B83: Ø110 mm < Ledningsnet ≤ Ø 250 mm | C83: kr./m. | D83: =1513*(1+D196) -> 1513 | E83: 75
B84: Ø 250 mm < Ledningsnet ≤ Ø 500mm | C84: kr./m. | D84: =2944*(1+D196) -> 2944 | E84: 75
B85: Ledningsnet > Ø 500 mm | C85: kr./m. | D85: =5751*(1+D196) -> 5751 | E85: 75
B86: Støbejernsledninger ≤ Ø50 mm | C86: kr./m. | D86: =899*(1+D196) -> 899 | E86: 100
B87: Støbejernsledninger Ø 50mm < Ledningsnet ≤ Ø110 mm | C87: kr./m. | D87: =1053*(1+D196) -> 1053 | E87: 100
B88: Støbejernsledninger Ø110 mm < Ledningsnet ≤ Ø 250 mm | C88: kr./m. | D88: =1490*(1+D196) -> 1490 | E88: 100
B89: Støbejernsledninger Ø 250 mm < Ledningsnet ≤ Ø 500mm | C89: kr./m. | D89: =2762*(1+D196) -> 2762 | E89: 100
B90: Støbejernsledninger Ledningsnet > Ø 500 mm | C90: kr./m. | D90: =5484*(1+D196) -> 5484 | E90: 100
B91: Eternitledninger ≤ Ø50 mm | C91: kr./m. | D91: =655*(1+D196) -> 655 | E91: 75
B92: Eternitledninger Ø 50mm < Ledningsnet ≤ Ø110 mm | C92: kr./m. | D92: =885*(1+D196) -> 885 | E92: 75
B93: Eternitledninger Ø110 mm < Ledningsnet ≤ Ø 250 mm | C93: kr./m. | D93: =1287*(1+D196) -> 1287 | E93: 75
B94: Eternitledninger Ø 250 mm < Ledningsnet ≤ Ø 500mm | C94: kr./m. | D94: =3056*(1+D196) -> 3056 | E94: 75
B95: Eternitledninger Ledningsnet > Ø 500 mm | C95: kr./m. | D95: =8477*(1+D196) -> 8477 | E95: 75
B96: Skelbrønd, Konstruktioner | C96: kr./stk. | D96: =10415*(1+D196) -> 10415 | E96: 50
B97: Skelbrønd, Mek./EL | C97: kr./stk. | D97: =15623*(1+D196) -> 15623 | E97: 15
B98: Inspektionsbrønd, Konstruktioner | C98: kr./stk. | D98: =10415*(1+D196) -> 10415 | E98: 50
B99: Inspektionsbrønd, Mek./EL | C99: kr./stk. | D99: =13019*(1+D196) -> 13019 | E99: 15
B100: Stik på ledningsnet, Konstruktioner | C100: kr./stk. | D100: =4722*(1+D196) -> 4722 | E100: 75
B101: Stik på ledningsnet, Mek./EL | C101: kr./stk. | D101: =4722*(1+D196) -> 4722 | E101: 75
B102: Ledningsnet - By
B103: Ledningsnet ≤ Ø50 mm | C103: kr./m. | D103: =650*(1+D196) -> 650 | E103: 75
B104: Ø 50mm < Ledningsnet ≤ Ø110 mm | C104: kr./m. | D104: =958*(1+D196) -> 958 | E104: =75 -> 75
B105: Ø110 mm < Ledningsnet ≤ Ø 250 mm | C105: kr./m. | D105: =1684*(1+D196) -> 1684 | E105: =75 -> 75
B106: Ø 250 mm < Ledningsnet ≤ Ø 500mm | C106: kr./m. | D106: =3153*(1+D196) -> 3153 | E106: 75
B107: Ledningsnet > Ø 500 mm | C107: kr./m. | D107: =5998*(1+D196) -> 5998 | E107: 75
B108: Støbejernsledninger ≤ Ø50 mm | C108: kr./m. | D108: =1020*(1+D196) -> 1020 | E108: 100
B109: Støbejernsledninger Ø 50mm < Ledningsnet ≤ Ø110 mm | C109: kr./m. | D109: =1203*(1+D196) -> 1203 | E109: 100
B110: Støbejernsledninger Ø110 mm < Ledningsnet ≤ Ø 250 mm | C110: kr./m. | D110: =1661*(1+D196) -> 1661 | E110: 100
B111: Støbejernsledninger Ø 250 mm < Ledningsnet ≤ Ø 500mm | C111: kr./m. | D111: =2971*(1+D196) -> 2971 | E111: 100
B112: Støbejernsledninger Ledningsnet > Ø 500 mm | C112: kr./m. | D112: =5731*(1+D196) -> 5731 | E112: 100
B113: Eternitledninger ≤ Ø50 mm | C113: kr./m. | D113: =776*(1+D196) -> 776 | E113: 75
B114: Eternitledninger Ø 50mm < Ledningsnet ≤ Ø110 mm | C114: kr./m. | D114: =1035*(1+D196) -> 1035 | E114: 75
B115: Eternitledninger Ø110 mm < Ledningsnet ≤ Ø 250 mm | C115: kr./m. | D115: =1456*(1+D196) -> 1456 | E115: 75
B116: Eternitledninger Ø 250 mm < Ledningsnet ≤ Ø 500mm | C116: kr./m. | D116: =3265*(1+D196) -> 3265 | E116: 75
B117: Eternitledninger Ledningsnet > Ø 500 mm | C117: kr./m. | D117: =8724*(1+D196) -> 8724 | E117: 75
B118: Skelbrønd, Konstruktioner | C118: kr./stk. | D118: =11457*(1+D196) -> 11457 | E118: 50
B119: Skelbrønd, Mek./EL | C119: kr./stk. | D119: =17185*(1+D196) -> 17185 | E119: 15
B120: Inspektionsbrønd, Konstruktioner | C120: kr./stk. | D120: =11457*(1+D196) -> 11457 | E120: 50
B121: Inspektionsbrønd, Mek./EL | C121: kr./stk. | D121: =14321*(1+D196) -> 14321 | E121: 15
B122: Stik på ledningsnet, Konstruktioner | C122: kr./stk. | D122: =5666*(1+D196) -> 5666 | E122: 75
B123: Stik på ledningsnet, Mek./EL | C123: kr./stk. | D123: =5666*(1+D196) -> 5666 | E123: 75
B124: Ledningsnet - City
B125: Ledningsnet ≤ Ø50 mm | C125: kr./m. | D125: =1078*(1+D196) -> 1078 | E125: 75
B126: Ø 50mm < Ledningsnet ≤ Ø110 mm | C126: kr./m. | D126: =1495*(1+D196) -> 1495 | E126: 75
B127: Ø110 mm < Ledningsnet ≤ Ø 250 mm | C127: kr./m. | D127: =2192*(1+D196) -> 2192 | E127: =75 -> 75
B128: Ø 250 mm < Ledningsnet ≤ Ø 500mm | C128: kr./m. | D128: =3773*(1+D196) -> 3773 | E128: 75
B129: Ledningsnet > Ø 500 mm | C129: kr./m. | D129: =6732*(1+D196) -> 6732 | E129: 75
B130: Støbejernsledninger ≤ Ø50 mm | C130: kr./m. | D130: =1448*(1+D196) -> 1448 | E130: 100
B131: Støbejernsledninger Ø 50mm < Ledningsnet ≤ Ø110 mm | C131: kr./m. | D131: =1740*(1+D196) -> 1740 | E131: 100
B132: Støbejernsledninger Ø110 mm < Ledningsnet ≤ Ø 250 mm | C132: kr./m. | D132: =2169*(1+D196) -> 2169 | E132: 100
B133: Støbejernsledninger Ø 250 mm < Ledningsnet ≤ Ø 500mm | C133: kr./m. | D133: =3591*(1+D196) -> 3591 | E133: 100
B134: Støbejernsledninger Ledningsnet > Ø 500 mm | C134: kr./m. | D134: =6465*(1+D196) -> 6465 | E134: 100
B135: Eternitledninger ≤ Ø50 mm | C135: kr./m. | D135: =1204*(1+D196) -> 1204 | E135: 75
B136: Eternitledninger Ø 50mm < Ledningsnet ≤ Ø110 mm | C136: kr./m. | D136: =1572*(1+D196) -> 1572 | E136: 75
B137: Eternitledninger Ø110 mm < Ledningsnet ≤ Ø 250 mm | C137: kr./m. | D137: =1966*(1+D196) -> 1966 | E137: 75
B138: Eternitledninger Ø 250 mm < Ledningsnet ≤ Ø 500mm | C138: kr./m. | D138: =3885*(1+D196) -> 3885 | E138: 75
B139: Eternitledninger Ledningsnet > Ø 500 mm | C139: kr./m. | D139: =9458*(1+D196) -> 9458 | E139: 75
B140: Skelbrønd, Konstruktioner | C140: kr./stk. | D140: =12498*(1+D196) -> 12498 | E140: 50
B141: Skelbrønd, Mek./EL | C141: kr./stk. | D141: =18747*(1+D196) -> 18747 | E141: 15
B142: Inspektionsbrønd, Konstruktioner | C142: kr./stk. | D142: =12498*(1+D196) -> 12498 | E142: 50
B143: Inspektionsbrønd, Mek./EL | C143: kr./stk. | D143: =15623*(1+D196) -> 15623 | E143: 15
B144: Stik på ledningsnet, Konstruktioner | C144: kr./stk. | D144: =6139*(1+D196) -> 6139 | E144: 75
B145: Stik på ledningsnet, Mek./EL | C145: kr./stk. | D145: =6139*(1+D196) -> 6139 | E145: 75
B146: Ledningsnet - Indre city
B147: Ledningsnet ≤ Ø50 mm | C147: kr./m. | D147: =1697*(1+D196) -> 1697 | E147: 75
B148: Ø 50mm < Ledningsnet ≤ Ø110 mm | C148: kr./m. | D148: =2268*(1+D196) -> 2268 | E148: 75
B149: Ø110 mm < Ledningsnet ≤ Ø 250 mm | C149: kr./m. | D149: =3009*(1+D196) -> 3009 | E149: 75
B150: Ø 250 mm < Ledningsnet ≤ Ø 500mm | C150: kr./m. | D150: =4773*(1+D196) -> 4773 | E150: 75
B151: Ledningsnet > Ø 500 mm | C151: kr./m. | D151: =7915*(1+D196) -> 7915 | E151: 75
B152: Støbejernsledninger ≤ Ø50 mm | C152: kr./m. | D152: =2067*(1+D196) -> 2067 | E152: 100
B153: Støbejernsledninger Ø 50mm < Ledningsnet ≤ Ø110 mm | C153: kr./m. | D153: =2513*(1+D196) -> 2513 | E153: 100
B154: Støbejernsledninger Ø110 mm < Ledningsnet ≤ Ø 250 mm | C154: kr./m. | D154: =2986*(1+D196) -> 2986 | E154: 100
B155: Støbejernsledninger Ø 250 mm < Ledningsnet ≤ Ø 500mm | C155: kr./m. | D155: =4591*(1+D196) -> 4591 | E155: 100
B156: Støbejernsledninger Ledningsnet > Ø 500 mm | C156: kr./m. | D156: =7648*(1+D196) -> 7648 | E156: 100
B157: Eternitledninger ≤ Ø50 mm | C157: kr./m. | D157: =1823*(1+D196) -> 1823 | E157: 75
B158: Eternitledninger Ø 50mm < Ledningsnet ≤ Ø110 mm | C158: kr./m. | D158: =2345*(1+D196) -> 2345 | E158: 75
B159: Eternitledninger Ø110 mm < Ledningsnet ≤ Ø 250 mm | C159: kr./m. | D159: =2783*(1+D196) -> 2783 | E159: 75
B160: Eternitledninger Ø 250 mm < Ledningsnet ≤ Ø 500mm | C160: kr./m. | D160: =4885*(1+D196) -> 4885 | E160: 75
B161: Eternitledninger Ledningsnet > Ø 500 mm | C161: kr./m. | D161: =10641*(1+D196) -> 10641 | E161: 75
B162: Skelbrønd, Konstruktioner | C162: kr./stk. | D162: =13540*(1+D196) -> 13540 | E162: 50
B163: Skelbrønd, Mek./EL | C163: kr./stk. | D163: =20310*(1+D196) -> 20310 | E163: 15
B164: Inspektionsbrønd, Konstruktioner | C164: kr./stk. | D164: =13540*(1+D196) -> 13540 | E164: 50
B165: Inspektionsbrønd, Mek./EL | C165: kr./stk. | D165: =16925*(1+D196) -> 16925 | E165: 15
B166: Stik på ledningsnet, Konstruktioner | C166: kr./stk. | D166: =7555*(1+D196) -> 7555 | E166: 75
B167: Stik på ledningsnet, Mek./EL | C167: kr./stk. | D167: =7555*(1+D196) -> 7555 | E167: 75
B168: Ventiler
B169: Ventiler på ledningsnet ≤ Ø50 mm | C169: kr./stk. | D169: =7732*(1+D196) -> 7732 | E169: 75
B170: Ventiler på Ø 50mm < Ledningsnet ≤ Ø110 mm | C170: kr./stk. | D170: =8980*(1+D196) -> 8980 | E170: 75
B171: Ventiler på Ø110 mm < Ledningsnet ≤ Ø 250 mm | C171: kr./stk. | D171: =21736*(1+D196) -> 21736 | E171: 75
B172: Ventiler på Ø 250 mm < Ledningsnet ≤ Ø 500mm | C172: kr./stk. | D172: =78299*(1+D196) -> 78299 | E172: 75
B173: Ventiler på ledningsnet > Ø 500 mm | C173: kr./stk. | D173: =223733*(1+D196) -> 223733 | E173: 75
B174: Pumpestationer, bygværker og bassiner
B175: Pumpestation (inkl. evt. hydrofor)/trykforøger, Konstruktioner | C175: kr/m³/h | D175: Variabel | E175: 50
B176: Pumpestation (inkl. evt. hydrofor)/trykforøger, Mek./EL | C176: kr/m³/h | D176: Variabel | E176: 25
B177: Pumpestation (inkl. evt. hydrofor)/trykforøger, SRO | C177: kr/m³/h | D177: Variabel | E177: 10
B178: Beholderanlæg - højdebeholder | C178: kr/m³/h | D178: Variabel | E178: 50
B179: Beholderanlæg - vandtårn | C179: kr/m³/h | D179: Variabel | E179: 50
B180: Andre:
B181: Afregningsmålere, mekaniske | C181: kr./stk. | D181: =1300*(1+D196) -> 1300 | E181: 8
B182: Afregningsmålere, elektroniske ≤ Ø 110mm (Qn 10) | C182: kr./stk. | D182: =20000*(1+D196) -> 20000 | E182: 10
B183: Afregningsmålere, elektroniske > Ø110 mm | C183: kr./stk. | D183: =26000*(1+D196) -> 26000 | E183: 10
B184: SRO-brønd/kvarterbrønd/sektionsbrønd, Konstruktioner | C184: kr./stk. | D184: =78845*(1+D196) -> 78845 | E184: 50
B185: SRO-brønd/kvarterbrønd/sektionsbrønd, Mek./EL | C185: kr./stk. | D185: =90108*(1+D196) -> 90108 | E185: 15
B186: SRO-brønd/kvarterbrønd/sektionsbrønd, SRO | C186: kr./stk. | D186: =56318*(1+D196) -> 56318 | E186: 10
B189: Fællesfunktionsanlæg:
B190: Andre:
B191: Køretøjer, personbil | C191: kr./stk. | D191: =225000 -> 225000 | E191: 5
B192: Køretøjer, små lastvogne (< 3.500 kg.) | C192: kr./stk. | D192: =250000 -> 250000 | E192: 5
B193: Køretøjer, store lastvogne (> 3.500 kg.) | C193: kr./stk. | D193: =1300000 -> 1300000 | E193: 5
B194: Køretøjer, entreprenørmaskiner | C194: kr./stk. | D194: =400000 -> 400000 | E194: 5
B196: Regionstillæg | D196: =IF(AND(Produktionsanlæg!I2<4720,Produktionsanlæg!I2<>0),0.037,0) -> 0

Sheet Priser (hidden)
A1: Til bestemmelse af diverse tillæg | G1: Til bestemmelse af øst-tillæg | K1: Til bestemmelse af tilæg for beliggenhed af vandværksanlæg
A2: Uforudseelig, | C2: 0.2 | D2: Kan ændres | G2: Øst = Sjælland | H2: 1.1 | I2: Kan ændres | K2: Land | L2: 0.95 | M2: Kan ændres
A3: Projektering, | C3: 0.15 | D3: Kan ændres | G3: Vest = Rest af landet | H3: 1 | I3: Kan ændres | K3: By | L3: 1
A4: Administration, | C4: 0.06 | D4: Kan ændres | K4: City | L4: 1.05 | M4: Kan ændres
A5: Index factor (1.0 per 01.04.2009) | C5: 1 | D5: Kan ændres | G5: 2 | K5: Indre City | L5: 1.1 | M5: Kan ændres
A6: Totalt tillæg ufor + proj + Adm | C6: 0.4628 | G6: 1
A7: Øst / vest faktor | C7: 1
A8: Faktor | C8: 1.4628
A10: Boringer
A12: Der er benyttet priser på luftskylleboring (lufthæveboring)
A13: I Thomson er prisen opdelt i en pris for de første 10 meter + en anden pris for de efterfølgende meter
C14: kr/m | D14: kr/m
C15: 0 - 10 m | D15: efterfølgende
A16: 05-33.01 | C16: 4400 | F16: ø400 mm Boring
A17: 05-33-02 | D17: 500 | F17: ø400 mm Boring
A18: 05-51,01 | C18: 1230 | F18: Renpumpning fordelt på de første 10 meter
A19: 05-41.03 | C19: 900 | F19: Forudsættes et 10 meter ø 200 mm filter
A20: 05-42.03 | D20: 550 | F20: ø200 mm forerør
A21: Sum ekskl. tillæg | C21: 6530 | D21: 1050
A22: Sum inkl tillæg | C22: 9552.084 | D22: 1535.94
A24: Dybde | C24: Totalpris | E24: Enhedspris
A25: 50 | B25: meter | C25: 156958.44 | D25: kr | E25: 3139.1688 | F25: kr/m
A28: Råvandsstation
A31: 05-71.02 ekskl. tillæg | C31: 25700 | D31: kr/stk
A32: 05-71.01 inkl. tillæg | C32: 57809.856 | D32: kr/stk
A44: Maskin installationer boringer
D46: Kr/pr Xm³/t | E46: kr/m³
D47: 0
A48: 05-61,01 inkl. tillæg | C48: 44147.304 | D48: 10 | E48: 4414.7304 | G48: Pumpe mv 0 10
A49: 05-61,03 inkl. tillæg | C49: 62958.912 | D49: 20 | E49: 3147.9456 | G49: Pumpe mv 10 -20
A50: 05-61,05 inkl. tillæg | C50: 77148.072 | D50: 30 | E50: 2571.6024 | G50: Pumpe mv 20 - 30
A51: 05-61,07 inkl. tillæg | C51: 90254.76 | D51: 45 | E51: 2005.661333 | G51: Pumpe mv 30 - 45
A52: Skønnet inkl. tillæg | C52: 292560 | D52: 300 | E52: 975.2 | G52: Pumpe mv over 45
A54: Udpumpningsanlæg | E54: 0 | F54: 10 | G54: 20 | H54: 30 | I54: 45 | J54: 300 | K54: m³/time
E55: 0 | F55: 44147.304 | G55: 62958.912 | H55: 77148.072 | I55: 90254.76 | J55: 292560 | K55: kr
E56: 4414.7304 | F56: 1881.1608 | G56: 1418.916 | H56: 873.7792 | I56: 793.3538824 | J56: 793.3538824 | K56: kr/m³
A59: Udpumpningsanlæg | D59: 50 | E59: m³/time | F59: 94221.52941 | G59: kr
A62: Stigrør | C62: Min | D62: Middel | E62: Maks. | F62: Gennemsnit
A63: 05-61.04 + 06 + 08 | C63: 42500 | D63: 75000 | E63: 85500 | F63: 103273.68 | H63: 50 meter stigrør inkl. tillæg
A66: Extra instrumenter
A67: Skønnet ekskl. tillæg | C67: 15000 | D67: 25000 | E67: 35000 | F67: 25000 | H67: Flowmåler,
A68: Skønnet ekskl. tillæg | C68: 12000 | D68: 15000 | E68: 20000 | F68: 15400 | H68: Tryktransd.
A69: Skønnet ekskl. tillæg | C69: 2000 | D69: 4000 | E69: 7000 | F69: 4200 | H69: Alarm
A70: Sum inkl tillæg | F70: 65240.88
A78: Elinstallationer og SRO boringer
C79: Min | D79: Middel | E79: Maks. | F79: Gennemsnit
A80: 05-80.02 +03+04 ekskl tillæg | C80: 39000 | D80: 44500 | E80: 48900 | F80: 44280 | H80: Inkl. Vlt
A81: Skønnet ekskl. tillæg | C81: 10000 | D81: 30000 | E81: 50000 | F81: 30000 | H81: Fremføring af stærkstrøm / trafo
A82: I alt inkl. strømforsyning inkl. tillæg | F82: 108656.784
A83: SRO
A84: Skønnet ekskl. tillæg | C84: 10000 | D84: 20000 | E84: 30000 | F84: 20000 | H84: SRO
A85: Inkl. tillæg | F85: 29256
A87: Erstatning i f.m. etablering af boring
A88: 4.4 | C88: 44911 | E88: OBS OBS Ingen tillæg
A90: Hegn
A91: 05 - 75.01 ekskl. tillæg | C91: 80 | D91: 610 | F91: 48800 | H91: 80 meter hegn
A92: 05 75.02 ekskl. tillæg | C92: 1 | D92: 9600 | F92: 9600 | H92: Låge
A93: Sum inkl tillæg | F93: 85427.52
Q95: Anlæg | R95: Mekn/El
A96: Beluftningsanlæg | D96: Kr/pr Xm³/t | E96: 0 | F96: 10 | G96: 50 | H96: 100 | I96: 200 | J96: 500
A97: 07-31.01 inkl. tillæg | C97: 266229.6 | D97: 50 | E97: 0 | F97: 58570.512 | G97: 266229.6 | H97: 439278.84 | I97: 718819.92 | J97: 1331148 | K97: kr | L97: Iltningstrappe | N97: 100 | O97: % | Q97: 0.8 | R97: 0.2
E98: 5857.0512 | F98: 5191.4772 | G98: 3460.9848 | H98: 2795.4108 | I98: 2041.0936 | J98: 2041.0936 | K98: kr/m³/t
A99: Skønnet inkl. tillæg | C99: 399344.4 | D99: 50 | E99: 0 | F99: 87855.768 | G99: 399344.4 | H99: 658918.26 | I99: 1078229.88 | J99: 1996722 | K99: kr | L99: Ikabelufter | N99: 150 | O99: % af iltningstrappe | Q99: 0.5 | R99: 0.5
E100: 8785.5768 | F100: 7787.2158 | G100: 5191.4772 | H100: 4193.1162 | I100: 3061.6404 | J100: 3061.6404 | K100: kr/m³/t
A101: Skønnet inkl. tillæg | C101: 159737.76 | D101: 50 | E101: 0 | F101: 35142.3072 | G101: 159737.76 | H101: 263567.304 | I101: 431291.952 | J101: 798688.8 | K101: kr | L101: Rislebakke | N101: 60 | O101: % af iltningstrappe
E102: 3514.23072 | F102: 3114.88632 | G102: 2076.59088 | H102: 1677.24648 | I102: 1224.65616 | J102: 1224.65616 | K102: kr/m³/t
A103: Skønnet inkl. tillæg | C103: 239606.64 | D103: 50 | E103: 0 | F103: 52713.4608 | G103: 239606.64 | H103: 395350.956 | I103: 646937.928 | J103: 1198033.2 | K103: kr | L103: Bundbeluftning | N103: 90 | O103: % af iltningstrappe | Q103: 0.7 | R103: 0.3
E104: 5271.34608 | F104: 4672.32948 | G104: 3114.88632 | H104: 2515.86972 | I104: 1836.98424 | J104: 1836.98424 | K104: kr/m³/t
A105: Skønnet inkl. tillæg | C105: 53245.92 | D105: 50 | E105: 0 | F105: 11714.1024 | G105: 53245.92 | H105: 87855.768 | I105: 143763.984 | J105: 266229.6 | K105: kr | L105: Kompressorbeluftning | N105: 20 | O105: % af iltningstrappe
E106: 1171.41024 | F106: 1038.29544 | G106: 692.19696 | H106: 559.08216 | I106: 408.21872 | J106: 408.21872 | K106: kr/m³/t
A107: Skønnet inkl. tillæg | C107: 53245.92 | D107: 50 | E107: 0 | F107: 11714.1024 | G107: 53245.92 | H107: 87855.768 | I107: 143763.984 | J107: 266229.6 | K107: kr | L107: Rent ilt | N107: 20 | O107: % af iltningstrappe
E108: 1171.41024 | F108: 1038.29544 | G108: 692.19696 | H108: 559.08216 | I108: 408.21872 | J108: 408.21872 | K108: kr/m³/t
A109: Iltningstrappe | C109: 500 | D109: m³/time | E109: 1331148 | F109: kr
A110: Ikabelufter | C110: 75 | D110: m³/time | E110: 529131.33 | F110: kr
A111: Rislebakke | C111: 75 | D111: m³/time | E111: 211652.532 | F111: kr
A112: Bundbeluftning | C112: 75 | D112: m³/time | E112: 317478.798 | F112: kr | W112: 317000
A113: Kompressorbeluftning | C113: 75 | D113: m³/time | E113: 70550.844 | F113: kr
A114: Rent ilt | C114: 75 | D114: m³/time | E114: 70550.844 | F114: kr
A118: pH Justering | D118: Kr/pr Xm³/t | E118: 0 | F118: 50 | G118: 100 | H118: 200 | I118: 500 | J118: m³/time
A119: 07-71.01 inkl. tillæg | C119: 78552.36 | D119: 50 | E119: 0 | F119: 78552.36 | G119: 133539.012 | H119: 213662.4192 | I119: 427324.8384 | J119: kr | K119: 1000 liter kalkdoseringsanlæg Antagelse: = 50 m³/time
A120: Skønnet | C120: 235657.08 | D120: 50 | E120: 0 | F120: 235657.08 | G120: 400617.036 | H120: 640987.2576 | I120: 1281974.515 | J120: kr | K120: 300 | L120: % af kalkdoseringsanlæg = inkl kalksilo
E121: 4713.1416 | F121: 3299.19912 | G121: 2403.702216 | H121: 2136.624192 | I121: 2136.624192 | J121: kr/m³/time
A122: Skønnet | C122: 0 | D122: 50 | E122: 0 | F122: 39276.18 | G122: 66769.506 | H122: 106831.2096 | I122: 213662.4192 | J122: kr | K122: 50 | L122: % af kalkdoseingsanlæg = Luddoseringsanlæg
E123: 785.5236 | F123: 549.86652 | G123: 400.617036 | H123: 356.104032 | I123: 356.104032 | J123: kr/m³/time
A125: Kalkdoseringsanlæg inkl kalksilo | C125: 350 | D125: m³/time | E125: 961480.8864 | F125: kr
A126: Luddoseringsanlæg | C126: 100 | D126: m³/time | E126: 66769.506 | F126: kr
A131: Behandlingsanlæg
A132: Åbne filtre | D132: Kr/pr Xm³/t | E132: 0 | F132: 50 | G132: 100 | H132: 200 | I132: 500 | J132: m³/time
A133: 07-41,01 inkl. tillæg | C133: 544161.6 | D133: 50 | F133: 544161.6 | K133: Åbne filtre 2 for og 2 efter inkl. rør m.v.
A134: Skønnet inkl. tillæg | C134: 292560 | D134: 50 | F134: 292560 | J134: kr/m³/t | K134: Betonarbejder
A135: Returskylning inkl. tillæg
A136: 07-61.01 | C136: 714577.8 | D136: 50 | F136: 714577.8 | K136: Retur skylning for 2 for og 2 efter filtre inkl skyllepumpe og blæser 50 m³/t ??
C137: 1551299.4 | E137: 0 | F137: 1551299.4 | G137: 2637208.98 | H137: 4219534.368 | I137: 8439068.736 | J137: kr | Q137: Anlæg | R137: Mekn/El
E138: 31025.988 | F138: 21718.1916 | G138: 15823.25388 | H138: 14065.11456 | I138: 14065.11456 | J138: kr/m³/time | Q138: 0.4 | R138: 0.6
E140: 0 | F140: 1085909.58 | G140: 1846046.286 | H140: 2953674.058 | I140: 5907348.115 | J140: kr | Q140: 0.4 | R140: 0.6
A141: Skønnet | C141: 1085909.58 | D141: 50 | E141: 21718.1916 | F141: 15202.73412 | G141: 11076.27772 | H141: 9845.580192 | I141: 9845.580192 | J141: kr/m³/time | K141: Enkelt filtrering ekskl rør mv. | M141: 70 | N141: % af dobbelt filtrering
A144: Åbne filtre dobbelt filtrering | D144: 100 | E144: m³/time | F144: 2637208.98 | G144: kr | W144: 1986000
A145: Åbne filtre enkelt filtrering | D145: 100 | E145: m³/time | F145: 1846046.286 | G145: kr
A149: Behandlingsanlæg
A150: Lukkede filtre | E150: 0 | F150: 30 | G150: 100 | H150: 200 | I150: 500 | J150: m³/t
A151: 07-51.03 inkl. tillæg | C151: 516368.4 | E151: 0 | F151: 516368.4 | G151: 1290921 | H151: 2323657.8 | I151: 4647315.6 | J151: kr | K151: Enkelt filtrering inkl..rør mv.
C152: 353000 | E152: 17212.28 | F152: 11065.03714 | G152: 10327.368 | H152: 7745.526 | I152: 7745.526 | J152: kr/m³/time
E154: 0 | F154: 30 | G154: 100 | H154: 200 | I154: 500 | J154: m³/t
A155: Skønnet inkl. tillæg | C155: 0 | E155: 0 | F155: 722915.76 | G155: 1807289.4 | H155: 3253120.92 | I155: 6506241.84 | J155: kr | K155: Dobbeltfiltrering ekskl. rør | M155: 140 | N155: % af enkeltfiltrering ekskl. rør
E156: 24097.192 | F156: 15491.052 | G156: 14458.3152 | H156: 10843.7364 | I156: 10843.7364 | J156: kr/m³/time
A159: Lukkede filtre enkelt filtrering | D159: 100 | E159: m³/time | F159: 1290921 | G159: kr
A160: Lukkede filtre dobbelt filtrering | D160: 100 | E160: m³/time | F160: 1807289.4 | G160: kr
A164: 07-51.02 inkl. tillæg | C164: 398613
A165: Uv mv | C165: 146280
A166: I alt inkl. tillæg | C166: 544893
A168: Rentvandsbeholdere | E168: 0 | F168: 100 | G168: 500 | H168: 1000 | I168: 3000 | J168: m³
A169: 12-11.01 inkl. tillæg | C169: 5207.568 | D169: kr/m³ | E169: 0 | F169: 520756.8 | G169: 2343405.6 | H169: 4218130.08 | I169: 7500000 | J169: kr | K169: In-situ støbt rentvandsbeholder
C170: 100 m³ | E170: 5207.568 | F170: 4556.622 | G170: 3749.44896 | H170: 1640.93496 | I170: 1640.93496 | J170: kr/m³
F172: 356000 | G172: 6.5826 | H172: 1.8 | I172: 7500000
E175: 0 | F175: 120 | G175: 500 | H175: 1000 | I175: 3000 | J175: m³
A176: 12-12.01 inkl. tillæg | C176: 4242.12 | D176: kr/m³ | E176: 0 | F176: 509054.4 | G176: 1883501.28 | H176: 3390302.304 | I176: 6600000 | J176: kr | K176: Element beholder
C177: 120 m³ | E177: 4242.12 | F177: 3616.965474 | G177: 3013.602048 | H177: 1604.848848 | I177: 1604.848848 | J177: kr/m³
A182: Rentvandsbeholdere Insitustøbte | D182: 1000 | E182: m³/time | F182: 4218130.08 | G182: kr | W182: 2160000
A183: Rentvandsbeholdere Element | D183: 1000 | E183: m³/time | F183: 3390302.304 | G183: kr
A191: Vandtårne | E191: 0 | F191: 100 | G191: 500 | H191: 1000 | I191: 3000 | J191: m³/time
A192: Skønnet inkl. tillæg | E192: 0 | F192: 781135.2 | G192: 3515108.4 | H192: 6327195.12 | I192: 11250000 | J192: kr | K192: 150 | L192: % af rentvandsbeholder
E193: 7811.352 | F193: 6834.933 | G193: 5624.17344 | H193: 2461.40244 | I193: 2461.40244 | J193: kr/m³
A199: Vandtårne | D199: 1000 | E199: m³/time | F199: 6327195.12 | G199: kr
F202: 356000 | G202: 600000 | H202: 1400000 | I202: 2500000
G204: 1.685393258 | H204: 2.333333333 | I204: 1.785714286
A207: Skyllevandsbeholdere | E207: 0 | F207: 100 | G207: 200 | H207: 500 | I207: 1000 | J207: m³
A208: 08-12.01 inkl. tillæg | C208: 5207.568 | D208: kr/m³ | E208: 0 | F208: 520756.8 | G208: 833210.88 | H208: 1833063.936 | I208: 3299515.085 | J208: kr | K208: Lukket skyllevandsbeholder 30 - 80 m³
C209: 3560 | E209: 5207.568 | F209: 3124.5408 | G209: 3332.84352 | H209: 2932.902298 | I209: 2932.902298 | J209: kr/m³
A211: 12-11.02 inkl. tillæg | C211: 2516.016 | D211: kr/m³ | E211: 0 | F211: 251601.6 | G211: 402562.56 | H211: 885637.632 | I211: 1594147.738 | J211: kr | K211: Åbne beholder med faste side / bund
E212: 2516.016 | F212: 1509.6096 | G212: 1610.25024 | H212: 1417.020211 | I212: 1417.020211 | J212: kr/m³
A214: Skønnet inkl. tillæg | C214: 534 | D214: kr/m³ | E214: 0 | F214: 37740.24 | G214: 60384.384 | H214: 132845.6448 | I214: 239122.1606 | J214: kr | K214: Jordbassin | L214: 15 | M214: % af åbne beholdere
E215: 377.4024 | F215: 226.44144 | G215: 241.537536 | H215: 212.5530317 | I215: 212.5530317 | J215: kr/m³
A219: Lukkede skyllevandsbeholdere | D219: 100 | E219: m³ | F219: 520756.8 | W219: 544000
A220: Åbne beholder med faste side / bund | D220: 1000 | E220: m³ | F220: 1594147.738
A221: Jordbassin | D221: 200 | E221: m³ | F221: 60384.384
A230: Udpumpningsanlæg
A231: Pumper | D231: Kr/pr Xm³/t
A232: 09-11.03 inkl. tillæg | C232: 39349.32 | D232: 10 | E232: 3934.932 | F232: kr/m³/t
A233: 09-11.04 inkl. tillæg | C233: 51051.72 | D233: 20 | E233: 2552.586 | F233: kr/m³/t
A234: 09-11.05 inkl. tillæg | C234: 59974.8 | D234: 30 | E234: 1999.16 | F234: kr/m³/t
A236: Udpumpningsanlæg | E236: 0 | F236: 10 | G236: 20 | H236: 30 | I236: 100 | J236: 1000 | K236: m³/time
C237: 1999.16 | E237: 0 | F237: 39349.32 | G237: 51051.72 | H237: 59974.8 | I237: 149937 | J237: 899622 | K237: kr
E238: 3934.932 | F238: 1170.24 | G238: 892.308 | H238: 1285.174286 | I238: 832.9833333 | J238: 832.9833333 | K238: kr/m³
A241: Udpumpningsanlæg | D241: 180 | E241: m³/time | F241: 216575.6667 | G241: kr | W241: 183000
A250: Frekvensomformere inkl. elinstallationer | D250: Kr/pr X kW
A251: 09-12.01 inkl. tillæg | C251: 68605.32 | D251: 2.2 | E251: 46900
A252: 09-12.02 inkl. tillæg | C252: 74456.52 | D252: 4
A253: 09-12.03 inkl. tillæg | C253: 77089.56 | D253: 5.5
E255: 0 | F255: 2.2 | G255: 4 | H255: 5.5 | I255: m³/time
E256: 0 | F256: 68605.32 | G256: 74456.52 | H256: 77089.56 | I256: kr
E257: 31184.23636 | F257: 3250.666667 | G257: 1755.36 | H257: 1755.36 | I257: kr/m³
A261: Frekvensomformere | D261: 25 | E261: kW | F261: 111319.08 | G261: kr | W261: 100000
A269: Hydrofor
A270: 09-13.01 inkl. tillæg | C270: 148766.76 | D270: kr / 2,5 m³
A271: 09-13.02 inkl. tillæg | C271: 217957.2 | D271: kr / 5,0 m³
A273: Styring
A274: 9-13-03 inkl. tillæg | C274: 52075.68 | D274: kr/stk
E275: 0 | F275: 2500 | G275: 5000 | H275: m³/time
A276: Hydrofor inkl. styring | E276: 0 | F276: 200842.44 | G276: 270032.88 | H276: kr
E277: 80.336976 | F277: 27.676176 | G277: 27.676176 | H277: kr/m³
A280: Hydroforanlæg | D280: 4000 | E280: liter | F280: 242356.704 | G280: kr
A289: Nødstrømsaggregat
A290: 13-11.01 inkl. tillæg | E290: 134577.6 | F290: kr | G290: 11.5 | H290: kW
A291: 13-11.02 inkl. tillæg | E291: 155495.64 | F291: kr | G291: 16 | H291: kW
A292: 13-11.03 inkl. tillæg | E292: 174073.2 | F292: kr | G292: 22 | H292: kW
E294: 0 | F294: 11.5 | G294: 16 | H294: 22 | I294: 50 | J294: kW
E295: 0 | F295: 134577.6 | G295: 155495.64 | H295: 174073.2 | I295: 295924.44 | J295: kr
E296: 11702.4 | F296: 4648.453333 | G296: 3096.26 | H296: 4351.83 | I296: 4351.83 | J296: kr/m³
A299: Nødstrømsaggregat | D299: 100 | E299: kW | F299: 513515.94 | G299: kr
A309: El + SRO Vandværk
E311: 0 | F311: 50 | G311: 200 | H311: 1000 | I311: m³/time
A312: Eltavle + install inkl. tillæg | E312: 0 | F312: 380328 | G312: 665574 | H312: 1663935 | I312: Kr
A314: Sum | F314: 380328 | G314: 665574 | H314: 1663935 | I314: Kr
E315: 7606.56 | F315: 1901.64 | G315: 1247.95125 | H315: 1247.95125 | I315: kr/m³
A317: SRO inkl. tillæg | E317: 0 | F317: 292560 | G317: 351072 | H317: 596822.4 | I317: Kr
E318: 5851.2 | F318: 390.08 | G318: 307.188 | H318: 307.188 | I318: kr/m³
A331: Pumpestation / Trykforøgerstation
A332: Prisgrundlag | K332: Kr. ekskl | L332: Kr. inkl.
A333: Pris fra Grundfos | K333: tillæg | L333: tillæg
A334: m³/time | B334: kr | K334: kr
A335: 30 | B335: 105000 | C335: Kun pumpeanlæg inkl styring | F335: Tillæg for byg, inst., eltilslutning mv | I335: 50 | J335: % | K335: 157500 | L335: 230391
A336: 50 | B336: 135000 | C336: Kun pumpeanlæg inkl styring | F336: Tillæg for installation, eltilslutning mv | I336: 50 | J336: % | K336: 202500 | L336: 296217
A337: 250 | B337: 600000 | C337: Pris på komplet installation Aabenraa 2009 | K337: 600000 | L337: 877680
P340: Anlæg | Q340: Mekn/El | R340: SRO
A341: Maskinanlæg pumpestation / trykforøger | P341: 0.25 | Q341: 0.65 | R341: 0.1
E342: 0 | F342: 30 | G342: 50 | H342: 250 | I342: m³/time
E343: 0 | F343: 230391 | G343: 296217 | H343: 877680 | I343: Kr | J343: Inkl. El og styring
E344: 7679.7 | F344: 3291.3 | G344: 2907.315 | H344: 2907.315 | I344: Kr/m³/time
A348: Eltavle + install | D348: 100 | E348: m³/time | F348: 441582.75 | G348: 4415.8275
Q355: Anlæg | R355: Mekn/El
A356: Kvarterbrønde | Q356: 0.4 | R356: 0.6
A357: El + SRO | E357: 50000
A358: Mekaniske installationer | Q358: 0.4 | R358: 0.6
B359: Brønd inkl. nedgravning | E359: 20000
B360: Flowmåler + andre instrumneter | E360: 20000
B361: Rør og ventiler | E361: 10000
B362: Sum | E362: 100000
A367: Skyllevandsbehandling
A370: 07-51.02 inkl. tillæg | C370: 398613 | D370: 20 m³/time anlæg
A371: Uv mv inkl. tillæg | C371: 117024
... 5 more rows
